Workbook

Sheet Start
B2: ARTVAL ARTerial eVALuation Version 1.0 (June 02, 2015)
B3: ARTVAL is a model developed at the Institute for Transportation Research and Education (ITRE) at NC State University for the North Carolina Department of Transportation (NCDOT). It is a planning-level tool for analyzing operations on arterial streets, which can incorporate consideration of work zone activities on segments or intersections
B4: Step 1 : Configure Global Input Data for the Arterial Street
B5: Please enter the following data about the arterial street configuration. | H5: 2
E7: Project Name:
E8: Analyst Name:
E9: No. of Features (combined # Links and Intersections)*: | F9: 5 | G9: * see note below
E10: Analysis Start Time (Select from menu): | F10: 07:15:00 | H10: =HOUR(F10) -> 7 | I10: =MINUTE(F10)/15 -> 1 | J10: =4*H10+1*I10 -> 29
E11: Analysis End Time (Select from menu): | F11: 07:30:00 | H11: =HOUR(F11) -> 7 | I11: =MINUTE(F11)/15 -> 2 | J11: =4*H11+1*I11 -> 30
E12: Area Type (Select from Menu): | F12: Urban | J12: =J11-J10 -> 1
E13: Facility Includes Curb? (Select from Menu): | F13: Yes
E14: Facility Includes Median? (Select from Menu): | F14: Yes
E15: Does this analysis include any work zone activity? | F15: No
E16: AM Peak Direction? | F16: 2NB | G16: See Diagram Below for Assistance, and the Directions definition.
E17: Average Number of Driveways per Centerline mile: | F17: 18.7 | G17: =IF(F12="Urban","The default value is 18.7","The default value is 9.0") -> The default value is 18.7
E18: Percent Trucks on the Facility: | F18: 0.05
E19: User Delay Cost for Cars ($/Hr): | F19: 21.07 | G19: ="The default value is $"&F19 -> The default value is $21.07
E20: User Delay Cost for Trucks($/Hr): | F20: 26.08 | G20: ="The default value is $"&F20 -> The default value is $26.08
E21: Vehicle Operating Cost for Cars($/Hr): | F21: 22.85 | G21: The default value is $22.85
E22: Vehicle Operating Cost for Trucks($/Hr): | F22: 154.73 | G22: The default value is $154.73
H23: =(F22+F20)*F18+(F19+F21)*(1-F18) -> 50.7645
B24: Note : Below is a sample schematic of an Arterial Street System with three features (fea). The first and last feature are NOT included in the evaluation.
B25: All directions are labeled following NEMA naming conventions
Q85: 17:15:00
Q86: 17:30:00
Q87: 17:45:00
Q88: 18:00:00
Q89: 18:15:00
Q90: 18:30:00
Q91: 18:45:00
Q92: 19:00:00
Q93: 19:15:00
Q94: 19:30:00
Q95: 19:45:00
Q96: 20:00:00
Q97: 20:15:00
Q98: 20:30:00
Q99: 20:45:00
Q100: 21:00:00
Q101: 21:15:00
Q102: 21:30:00
Q103: 21:45:00
Q104: 22:00:00
Q105: 22:15:00
Q106: 22:30:00
Q107: 22:45:00
Q108: 23:00:00
Q109: 23:15:00
Q110: 23:30:00
Q111: 23:45:00
Q112: 1
Q113: 1.010416667
Q114: 1.020833333
Q115: 1.03125
Q116: 1.041666667
Q117: 1.052083333
Q118: 1.0625
Q119: 1.072916667
Q120: 1.083333333
Q121: 1.09375
Q122: 1.104166667
Q123: 1.114583333
Q124: 1.125
Q125: 1.135416667
Q126: 1.145833333
Q127: 1.15625
Q128: 1.166666667
Q129: 1.177083333
Q130: 1.1875
Q131: 1.197916667
Q132: 1.208333333
Q133: 1.21875
Q134: 1.229166667
Q135: 1.239583333
Q136: 1.25
Q137: 1.260416667
Q138: 1.270833333
Q139: 1.28125
Q140: 1.291666667
Q141: 1.302083333
Q142: 1.3125
Q143: 1.322916667
Q144: 1.333333333
Q145: 1.34375
Q146: 1.354166667
Q147: 1.364583333
Q148: 1.375
Q149: 1.385416667
Q150: 1.395833333
Q151: 1.40625
Q152: 1.416666667
Q153: 1.427083333
Q154: 1.4375
Q155: 1.447916667
Q156: 1.458333333
Q157: 1.46875
Q158: 1.479166667
Q159: 1.489583333
Q160: 1.5
Q161: 1.510416667
Q162: 1.520833333
Q163: 1.53125
Q164: 1.541666667
Q165: 1.552083333
Q166: 1.5625
Q167: 1.572916667
Q168: 1.583333333
Q169: 1.59375
Q170: 1.604166667
Q171: 1.614583333
Q172: 1.625
Q173: 1.635416667
Q174: 1.645833333
Q175: 1.65625
Q176: 1.666666667
Q177: 1.677083333
Q178: 1.6875
Q179: 1.697916667
Q180: 1.708333333
Q181: 1.71875
Q182: 1.729166667
Q183: 1.739583333
Q184: 1.75
Q185: 1.760416667
Q186: 1.770833333
Q187: 1.78125
Q188: 1.791666667
Q189: 1.802083333
Q190: 1.8125
Q191: 1.822916667
Q192: 1.833333333
Q193: 1.84375
Q194: 1.854166667
Q195: 1.864583333
Q196: 1.875
Q197: 1.885416667
Q198: 1.895833333
Q199: 1.90625
Q200: 1.916666667
Q201: 1.927083333
Q202: 1.9375
Q203: 1.947916667
Q204: 1.958333333
Q205: 1.96875
Q206: 1.979166667
Q207: 1.989583333
Q208: 2
Q209: 2.010416667
Q210: 2.020833333
Q211: 2.03125
Q212: 2.041666667
Q213: 2.052083333
Q214: 2.0625
Q215: 2.072916667
Q216: 2.083333333
Q217: 2.09375
Q218: 2.104166667
Q219: 2.114583333
Q220: 2.125
Q221: 2.135416667
Q222: 2.145833333
Q223: 2.15625
Q224: 2.166666667
Q225: 2.177083333
Q226: 2.1875
Q227: 2.197916667
Q228: 2.208333333
Q229: 2.21875
Q230: 2.229166667
Q231: 2.239583333
Q232: 2.25
Q233: 2.260416667
Q234: 2.270833333
Q235: 2.28125
Q236: 2.291666667
Q237: 2.302083333
Q238: 2.3125
Q239: 2.322916667
Q240: 2.333333333
Q241: 2.34375
Q242: 2.354166667
Q243: 2.364583333
Q244: 2.375
Q245: 2.385416667
Q246: 2.395833333
Q247: 2.40625
Q248: 2.416666667
Q249: 2.427083333
Q250: 2.4375
Q251: 2.447916667
Q252: 2.458333333
Q253: 2.46875
Q254: 2.479166667
Q255: 2.489583333
Q256: 2.5
Q257: 2.510416667
Q258: 2.520833333
Q259: 2.53125
Q260: 2.541666667
Q261: 2.552083333
... 42 more rows

Sheet Facility Features
B2: Step 2a : Enter Basic Arterial Street Data
B3: Please enter basic geometric and demand information for the facility. If the work zone analysis option is not selected in Step 1, then work zone related fields are hidden
B4: Basic Geometric Data
B5: Feature Number: | D5: - | E5: 1 | F5: 2 | G5: 3 | H5: 4 | I5: 5 | J5: -
B6: Feature Name (Enter Street or intersection name): | D6: - | J6: -
B7: Feature Type (Segment, Signalized Intersection): | D7: Link | E7: Int. | F7: Link | G7: Int. | H7: Link | I7: Int. | J7: Link
B8: Feature Length or width (ft): | D8: 0 | J8: 0
B9: WZ Active (Direction 1, Direction 2, Both Directions, None): | D9: NA | E9: None | F9: None | G9: None | H9: None | I9: None | J9: None
B10: ="Direction " &Start!F16 -> Direction 2NB | D10: 0 | E10: =D10+E8 -> 0 | F10: 0 | G10: 0 | H10: 0 | I10: 0 | J10: 0
D11: 1 | E11: 1 | F11: 1 | G11: 1 | H11: 1 | I11: 1 | J11: 1
D12: =IF(D7<>"Link",D6,"") ->  | E12: =IF(E7<>"Link",E6,"") -> 0 | F12: =IF(F7<>"Link",F6,"") ->  | G12: =IF(G7<>"Link",G6,"") -> 0 | H12: =IF(H7<>"Link",H6,"") ->  | I12: 0
B13: Main Street Data
B14: Feature Number: | D14: - | E14: 1 | F14: 2 | G14: 3 | H14: 4 | I14: 5 | J14: -
B15: Average Annual Daily Traffic, AADT (BOTH DIRECTIONS)
B16: Direction 2 | C16: Number of Through Lanes on Approach:
C17: Speed Limit (mph):
B18: Direction 6 | C18: Number of Through Lanes on the Approach:
C19: Speed Limit (mph):
B21: Cross Street Data
B22: Feature Number: | D22: - | E22: 1 | F22: 2 | G22: 3 | H22: 4 | I22: 5 | J22: -
B23: Facility Type:
B24: Direction 4 | C24: Directional AADT:
C25: Directional Distribution for AADT (towards the intersection):
C26: Number of Through Lanes on the Approach:
B27: Direction 8 | C27: Directional AADT:
C28: Directional Distribution for AADT (towards the intersection):
C29: Number of Through Lanes on the Approach:
B31: Main Street Work Zone Data Entry
B32: Feature Number: | D32: - | E32: 1 | F32: 2 | G32: 3 | H32: 4 | I32: 5 | J32: 16
B33: Direction 2 | C33: Number of Through Lanes Closed:
C34: Exclusive Turning Lanes Closed (none, right, left, both):
C35: Presence of Ledge (yes/no):
C36: Work Intensity (light/heavy):
C37: Pavement Condition (smooth/milled):
C38: Right Turn Geometry (tight/wide):
C39: Start 15 Minute Time Interval
C40: Finish 15 Minute Time Interval:
B41: Direction 6 | C41: Number of Through Lanes Closed:
C42: Exclusive Turning Lanes Closed (none, right, left, both):
C43: Presence of Ledge (yes/no):
C44: Work Intensity (light/heavy):
C45: Pavement Condition (smooth/milled):
C46: Right Turn Geometry (tight/wide):
C47: Start 15 Minute Time Interval
C48: Finish 15 Minute Time Interval:

Sheet Hourly Factors
C2: Step 2b : Enter Hourly Demand Factors for the Arterial Street
C4: Please enter the hourly demand distribution covering the entire study period in the table below.
C5: - The demand factor represents the portion of average daily traffic occuring by direction each hour of the day.
C6: - The selected analysis period from step 1 is highlighted in yello
C7: - The hourly demand factors will automatically be converted into 15-minute flow rates by linear interpolation.
C8: - If the analysts do not have access to this information, they can populate the table with defaults values.
C9: - The analyst can override any value in the yellow cells and insert facility specific hourly factors at any time.
C10: WARNING: The sum of hourly demand distribution should be equal to 100% for each direction. | G10: =G106 -> 0.003486015403 | H10: 0.004525252525 | M10: =H10 -> 0.004525252525
C11: Hour | E11: % AADT in Direction 2 (In Indicated Hour) | F11: % AADT in Direction 6 (In Indicated Hour) | G11: 0.003486015403 | H11: 0.004525252525 | M11: =H11 -> 0.004525252525
C12: From | D12: To | G12: 0.003486015403 | H12: 0.004525252525 | I12: hr start | J12: hr end | K12: k_fac Direction 2 | M12: 0.004525252525 | N12: hr start | O12: hr end | P12: k_fac Direction 6
C13: 00:00:00 | D13: 1.041666667 | E13: 0.001945683016 | F13: 0.002181818182 | G13: =E13 -> 0.001945683016 | H13: =F13 -> 0.002181818182 | I13: 00:00:00 | J13: 00:15:00 | K13: =IF(MINUTE(J13)=30,G13,IF(MINUTE(J13)=15,0.75*G13+0.25*G12,IF(MINUTE(J13)=45,0.75*G13+0.25*G15,IF(MINUTE(J13)=0,0.5*G13+0.5*G14,0)))) -> 0.002330766113 | M13: 0.002181818182 | N13: 00:00:00 | O13: 00:15:00 | P13: =IF(MINUTE(O13)=30,M13,IF(MINUTE(O13)=15,0.75*M13+0.25*M12,IF(MINUTE(O13)=45,0.75*M13+0.25*M15,IF(MINUTE(O13)=0,0.5*M13+0.5*M14,0)))) -> 0.002767676768
C14: 1.041666667 | D14: 2.083333333 | E14: 0.00186461289 | F14: 0.001939393939 | G14: =E13 -> 0.001945683016 | H14: =F13 -> 0.002181818182 | I14: 00:15:00 | J14: 00:30:00 | K14: =IF(MINUTE(J14)=30,G14,IF(MINUTE(J14)=15,0.75*G14+0.25*G13,IF(MINUTE(J14)=45,0.75*G14+0.25*G16,IF(MINUTE(J14)=0,0.5*G14+0.5*G15,0)))) -> 0.001945683016 | M14: 0.002181818182 | N14: 00:15:00 | O14: 00:30:00 | P14: =IF(MINUTE(O14)=30,M14,IF(MINUTE(O14)=15,0.75*M14+0.25*M13,IF(MINUTE(O14)=45,0.75*M14+0.25*M16,IF(MINUTE(O14)=0,0.5*M14+0.5*M15,0)))) -> 0.002181818182
C15: 2.083333333 | D15: 1.125 | E15: 0.000486420754 | F15: 0.0007272727273 | G15: =E13 -> 0.001945683016 | H15: =F13 -> 0.002181818182 | I15: 00:30:00 | J15: 00:45:00 | K15: 0.001925415484 | M15: 0.002181818182 | N15: 00:30:00 | O15: 00:45:00 | P15: 0.002121212121
C16: 1.125 | D16: 1.166666667 | E16: 0.0007296311309 | F16: 0.001454545455 | G16: =E13 -> 0.001945683016 | H16: =F13 -> 0.002181818182 | I16: 00:45:00 | J16: 01:00:00 | K16: 0.001905147953 | M16: 0.002181818182 | N16: 00:45:00 | O16: 01:00:00 | P16: 0.002060606061
C17: 1.166666667 | D17: 1.208333333 | E17: 0.002026753141 | F17: 0.002666666667 | G17: =E14 -> 0.00186461289 | H17: =F14 -> 0.001939393939 | I17: 01:00:00 | J17: 01:15:00 | K17: 0.001884880422 | M17: 0.001939393939 | N17: 01:00:00 | O17: 01:15:00 | P17: 0.002
C18: 1.208333333 | D18: 1.25 | E18: 0.008431293069 | F18: 0.01204040404 | G18: =E14 -> 0.00186461289 | H18: =F14 -> 0.001939393939 | I18: 01:15:00 | J18: 01:30:00 | K18: 0.00186461289 | M18: 0.001939393939 | N18: 01:15:00 | O18: 01:30:00 | P18: 0.001939393939
C19: 1.25 | D19: 1.291666667 | E19: 0.03640048642 | F19: 0.03749494949 | G19: =E14 -> 0.00186461289 | H19: =F14 -> 0.001939393939 | I19: 01:30:00 | J19: 01:45:00 | K19: 0.001520064856 | M19: 0.001939393939 | N19: 01:30:00 | O19: 01:45:00 | P19: 0.001636363636
C20: 1.291666667 | D20: 1.333333333 | E20: 0.07685447912 | F20: 0.08727272727 | G20: =E14 -> 0.00186461289 | H20: =F14 -> 0.001939393939 | I20: 01:45:00 | J20: 02:00:00 | K20: 0.001175516822 | M20: 0.001939393939 | N20: 01:45:00 | O20: 02:00:00 | P20: 0.001333333333
C21: 1.333333333 | D21: 1.375 | E21: 0.076773409 | F21: 0.08993939394 | G21: =E15 -> 0.000486420754 | H21: =F15 -> 0.0007272727273 | I21: 02:00:00 | J21: 02:15:00 | K21: 0.000830968788 | M21: 0.0007272727273 | N21: 02:00:00 | O21: 02:15:00 | P21: 0.00103030303
C22: 1.375 | D22: 1.416666667 | E22: 0.0616132955 | F22: 0.05931313131 | G22: =E15 -> 0.000486420754 | H22: =F15 -> 0.0007272727273 | I22: 02:15:00 | J22: 02:30:00 | K22: 0.000486420754 | M22: 0.0007272727273 | N22: 02:15:00 | O22: 02:30:00 | P22: 0.0007272727273
C23: 1.416666667 | D23: 1.458333333 | E23: 0.04953384678 | F23: 0.04460606061 | G23: =E15 -> 0.000486420754 | H23: =F15 -> 0.0007272727273 | I23: 02:30:00 | J23: 02:45:00 | K23: 0.0005472233482 | M23: 0.0007272727273 | N23: 02:30:00 | O23: 02:45:00 | P23: 0.0009090909091
C24: 1.458333333 | D24: 1.5 | E24: 0.05861370085 | F24: 0.05575757576 | G24: =E15 -> 0.000486420754 | H24: =F15 -> 0.0007272727273 | I24: 02:45:00 | J24: 03:00:00 | K24: 0.0006080259424 | M24: 0.0007272727273 | N24: 02:45:00 | O24: 03:00:00 | P24: 0.001090909091
C25: 1.5 | D25: 1.541666667 | E25: 0.06291041751 | F25: 0.05624242424 | G25: =E16 -> 0.0007296311309 | H25: =F16 -> 0.001454545455 | I25: 03:00:00 | J25: 03:15:00 | K25: 0.0006688285367 | M25: 0.001454545455 | N25: 03:00:00 | O25: 03:15:00 | P25: 0.001272727273
C26: 1.541666667 | D26: 1.583333333 | E26: 0.05869477098 | F26: 0.0564040404 | G26: =G25 -> 0.0007296311309 | H26: 0.001454545455 | I26: 03:15:00 | J26: 03:30:00 | K26: 0.0007296311309 | M26: 0.001454545455 | N26: 03:15:00 | O26: 03:30:00 | P26: 0.001454545455
C27: 1.583333333 | D27: 1.625 | E27: 0.06388325902 | F27: 0.06634343434 | G27: 0.0007296311309 | H27: 0.001454545455 | I27: 03:30:00 | J27: 03:45:00 | K27: 0.001053911634 | M27: 0.001454545455 | N27: 03:30:00 | O27: 03:45:00 | P27: 0.001757575758
C28: 1.625 | D28: 1.666666667 | E28: 0.07482772598 | F28: 0.07272727273 | G28: 0.0007296311309 | H28: 0.001454545455 | I28: 03:45:00 | J28: 04:00:00 | K28: 0.001378192136 | M28: 0.001454545455 | N28: 03:45:00 | O28: 04:00:00 | P28: 0.002060606061
C29: 1.666666667 | D29: 1.708333333 | E29: 0.08860964734 | F29: 0.08371717172 | G29: =E17 -> 0.002026753141 | H29: =F17 -> 0.002666666667 | I29: 04:00:00 | J29: 04:15:00 | K29: 0.001702472639 | M29: 0.002666666667 | N29: 04:00:00 | O29: 04:15:00 | P29: 0.002363636364
C30: 1.708333333 | D30: 1.75 | E30: 0.1052290231 | F30: 0.09301010101 | G30: =G29 -> 0.002026753141 | H30: 0.002666666667 | I30: 04:15:00 | J30: 04:30:00 | K30: 0.002026753141 | M30: 0.002666666667 | N30: 04:15:00 | O30: 04:30:00 | P30: 0.002666666667
C31: 1.75 | D31: 1.791666667 | E31: 0.06866639643 | F31: 0.06278787879 | G31: 0.002026753141 | H31: 0.002666666667 | I31: 04:30:00 | J31: 04:45:00 | K31: 0.003627888123 | M31: 0.002666666667 | N31: 04:30:00 | O31: 04:45:00 | P31: 0.00501010101
C32: 1.791666667 | D32: 1.833333333 | E32: 0.03940008107 | F32: 0.04727272727 | G32: 0.002026753141 | H32: 0.002666666667 | I32: 04:45:00 | J32: 05:00:00 | K32: 0.005229023105 | M32: 0.002666666667 | N32: 04:45:00 | O32: 05:00:00 | P32: 0.007353535354
C33: 1.833333333 | D33: 1.875 | E33: 0.02999594649 | F33: 0.03296969697 | G33: =E18 -> 0.008431293069 | H33: =F18 -> 0.01204040404 | I33: 05:00:00 | J33: 05:15:00 | K33: 0.006830158087 | M33: 0.01204040404 | N33: 05:00:00 | O33: 05:15:00 | P33: 0.009696969697
C34: 1.875 | D34: 1.916666667 | E34: 0.02010539116 | F34: 0.01931313131 | G34: =G33 -> 0.008431293069 | H34: 0.01204040404 | I34: 05:15:00 | J34: 05:30:00 | K34: 0.008431293069 | M34: 0.01204040404 | N34: 05:15:00 | O34: 05:30:00 | P34: 0.01204040404
C35: 1.916666667 | D35: 1.958333333 | E35: 0.008917713822 | F35: 0.009292929293 | G35: 0.008431293069 | H35: 0.01204040404 | I35: 05:30:00 | J35: 05:45:00 | K35: 0.01542359141 | M35: 0.01204040404 | N35: 05:30:00 | O35: 05:45:00 | P35: 0.0184040404
C36: 1.958333333 | D36: 2 | E36: 0.003486015403 | F36: 0.004525252525 | G36: 0.008431293069 | H36: 0.01204040404 | I36: 05:45:00 | J36: 06:00:00 | K36: 0.02241588974 | M36: 0.01204040404 | N36: 05:45:00 | O36: 06:00:00 | P36: 0.02476767677
D37: sum= | E37: =SUM(E13:E36) -> 1 | F37: =SUM(F13:F36) -> 1 | G37: =E19 -> 0.03640048642 | H37: =F19 -> 0.03749494949 | I37: 06:00:00 | J37: 06:15:00 | K37: 0.02940818808 | M37: 0.03749494949 | N37: 06:00:00 | O37: 06:15:00 | P37: 0.03113131313
F38: 26 | G38: =G37 -> 0.03640048642 | H38: 0.03749494949 | I38: 06:15:00 | J38: 06:30:00 | K38: 0.03640048642 | M38: 0.03749494949 | N38: 06:15:00 | O38: 06:30:00 | P38: 0.03749494949
F39: 27 | G39: 0.03640048642 | H39: 0.03749494949 | I39: 06:30:00 | J39: 06:45:00 | K39: 0.0465139846 | M39: 0.03749494949 | N39: 06:30:00 | O39: 06:45:00 | P39: 0.04993939394
F40: 28 | G40: 0.03640048642 | H40: 0.03749494949 | I40: 06:45:00 | J40: 07:00:00 | K40: 0.05662748277 | M40: 0.03749494949 | N40: 06:45:00 | O40: 07:00:00 | P40: 0.06238383838
F41: 29 | G41: =E20 -> 0.07685447912 | H41: =F20 -> 0.08727272727 | I41: 07:00:00 | J41: 07:15:00 | K41: 0.06674098095 | M41: 0.08727272727 | N41: 07:00:00 | O41: 07:15:00 | P41: 0.07482828283
F42: 30 | G42: =G41 -> 0.07685447912 | H42: 0.08727272727 | I42: 07:15:00 | J42: 07:30:00 | K42: 0.07685447912 | M42: 0.08727272727 | N42: 07:15:00 | O42: 07:30:00 | P42: 0.08727272727
F43: 31 | G43: 0.07685447912 | H43: 0.08727272727 | I43: 07:30:00 | J43: 07:45:00 | K43: 0.07683421159 | M43: 0.08727272727 | N43: 07:30:00 | O43: 07:45:00 | P43: 0.08793939394
F44: 32 | G44: 0.07685447912 | H44: 0.08727272727 | I44: 07:45:00 | J44: 08:00:00 | K44: 0.07681394406 | M44: 0.08727272727 | N44: 07:45:00 | O44: 08:00:00 | P44: 0.08860606061
F45: 33 | G45: =E21 -> 0.076773409 | H45: =F21 -> 0.08993939394 | I45: 08:00:00 | J45: 08:15:00 | K45: 0.07679367653 | M45: 0.08993939394 | N45: 08:00:00 | O45: 08:15:00 | P45: 0.08927272727
F46: 34 | G46: =G45 -> 0.076773409 | H46: 0.08993939394 | I46: 08:15:00 | J46: 08:30:00 | K46: 0.076773409 | M46: 0.08993939394 | N46: 08:15:00 | O46: 08:30:00 | P46: 0.08993939394
F47: 35 | G47: 0.076773409 | H47: 0.08993939394 | I47: 08:30:00 | J47: 08:45:00 | K47: 0.07298338062 | M47: 0.08993939394 | N47: 08:30:00 | O47: 08:45:00 | P47: 0.08228282828
F48: 36 | G48: 0.076773409 | H48: 0.08993939394 | I48: 08:45:00 | J48: 09:00:00 | K48: 0.06919335225 | M48: 0.08993939394 | N48: 08:45:00 | O48: 09:00:00 | P48: 0.07462626263
F49: 37 | G49: =E22 -> 0.0616132955 | H49: =F22 -> 0.05931313131 | I49: 09:00:00 | J49: 09:15:00 | K49: 0.06540332388 | M49: 0.05931313131 | N49: 09:00:00 | O49: 09:15:00 | P49: 0.06696969697
F50: 38 | G50: =G49 -> 0.0616132955 | H50: 0.05931313131 | I50: 09:15:00 | J50: 09:30:00 | K50: 0.0616132955 | M50: 0.05931313131 | N50: 09:15:00 | O50: 09:30:00 | P50: 0.05931313131
F51: 39 | G51: 0.0616132955 | H51: 0.05931313131 | I51: 09:30:00 | J51: 09:45:00 | K51: 0.05859343332 | M51: 0.05931313131 | N51: 09:30:00 | O51: 09:45:00 | P51: 0.05563636364
F52: 40 | G52: 0.0616132955 | H52: 0.05931313131 | I52: 09:45:00 | J52: 10:00:00 | K52: 0.05557357114 | M52: 0.05931313131 | N52: 09:45:00 | O52: 10:00:00 | P52: 0.05195959596
F53: 41 | G53: =E23 -> 0.04953384678 | H53: =F23 -> 0.04460606061 | I53: 10:00:00 | J53: 10:15:00 | K53: 0.05255370896 | M53: 0.04460606061 | N53: 10:00:00 | O53: 10:15:00 | P53: 0.04828282828
F54: 42 | G54: =G53 -> 0.04953384678 | H54: 0.04460606061 | I54: 10:15:00 | J54: 10:30:00 | K54: 0.04953384678 | M54: 0.04460606061 | N54: 10:15:00 | O54: 10:30:00 | P54: 0.04460606061
F55: 43 | G55: 0.04953384678 | H55: 0.04460606061 | I55: 10:30:00 | J55: 10:45:00 | K55: 0.0518038103 | M55: 0.04460606061 | N55: 10:30:00 | O55: 10:45:00 | P55: 0.04739393939
F56: 44 | G56: 0.04953384678 | H56: 0.04460606061 | I56: 10:45:00 | J56: 11:00:00 | K56: 0.05407377381 | M56: 0.04460606061 | N56: 10:45:00 | O56: 11:00:00 | P56: 0.05018181818
F57: 45 | G57: =E24 -> 0.05861370085 | H57: =F24 -> 0.05575757576 | I57: 11:00:00 | J57: 11:15:00 | K57: 0.05634373733 | M57: 0.05575757576 | N57: 11:00:00 | O57: 11:15:00 | P57: 0.05296969697
F58: 46 | G58: =G57 -> 0.05861370085 | H58: 0.05575757576 | I58: 11:15:00 | J58: 11:30:00 | K58: 0.05861370085 | M58: 0.05575757576 | N58: 11:15:00 | O58: 11:30:00 | P58: 0.05575757576
F59: 47 | G59: 0.05861370085 | H59: 0.05575757576 | I59: 11:30:00 | J59: 11:45:00 | K59: 0.05968788002 | M59: 0.05575757576 | N59: 11:30:00 | O59: 11:45:00 | P59: 0.05587878788
F60: 48 | G60: 0.05861370085 | H60: 0.05575757576 | I60: 11:45:00 | J60: 12:00:00 | K60: 0.06076205918 | M60: 0.05575757576 | N60: 11:45:00 | O60: 12:00:00 | P60: 0.056
F61: 49 | G61: =E25 -> 0.06291041751 | H61: =F25 -> 0.05624242424 | I61: 12:00:00 | J61: 12:15:00 | K61: 0.06183623835 | M61: 0.05624242424 | N61: 12:00:00 | O61: 12:15:00 | P61: 0.05612121212
F62: 50 | G62: =G61 -> 0.06291041751 | H62: 0.05624242424 | I62: 12:15:00 | J62: 12:30:00 | K62: 0.06291041751 | M62: 0.05624242424 | N62: 12:15:00 | O62: 12:30:00 | P62: 0.05624242424
F63: 51 | G63: 0.06291041751 | H63: 0.05624242424 | I63: 12:30:00 | J63: 12:45:00 | K63: 0.06185650588 | M63: 0.05624242424 | N63: 12:30:00 | O63: 12:45:00 | P63: 0.05628282828
F64: 52 | G64: 0.06291041751 | H64: 0.05624242424 | I64: 12:45:00 | J64: 13:00:00 | K64: 0.06080259424 | M64: 0.05624242424 | N64: 12:45:00 | O64: 13:00:00 | P64: 0.05632323232
F65: 53 | G65: =E26 -> 0.05869477098 | H65: =F26 -> 0.0564040404 | I65: 13:00:00 | J65: 13:15:00 | K65: 0.05974868261 | M65: 0.0564040404 | N65: 13:00:00 | O65: 13:15:00 | P65: 0.05636363636
F66: 54 | G66: =G65 -> 0.05869477098 | H66: 0.0564040404 | I66: 13:15:00 | J66: 13:30:00 | K66: 0.05869477098 | M66: 0.0564040404 | N66: 13:15:00 | O66: 13:30:00 | P66: 0.0564040404
F67: 55 | G67: 0.05869477098 | H67: 0.0564040404 | I67: 13:30:00 | J67: 13:45:00 | K67: 0.05999189299 | M67: 0.0564040404 | N67: 13:30:00 | O67: 13:45:00 | P67: 0.05888888889
F68: 56 | G68: 0.05869477098 | H68: 0.0564040404 | I68: 13:45:00 | J68: 14:00:00 | K68: 0.061289015 | M68: 0.0564040404 | N68: 13:45:00 | O68: 14:00:00 | P68: 0.06137373737
F69: 57 | G69: =E27 -> 0.06388325902 | H69: =F27 -> 0.06634343434 | I69: 14:00:00 | J69: 14:15:00 | K69: 0.06258613701 | M69: 0.06634343434 | N69: 14:00:00 | O69: 14:15:00 | P69: 0.06385858586
F70: 58 | G70: =G69 -> 0.06388325902 | H70: 0.06634343434 | I70: 14:15:00 | J70: 14:30:00 | K70: 0.06388325902 | M70: 0.06634343434 | N70: 14:15:00 | O70: 14:30:00 | P70: 0.06634343434
F71: 59 | G71: 0.06388325902 | H71: 0.06634343434 | I71: 14:30:00 | J71: 14:45:00 | K71: 0.06661937576 | M71: 0.06634343434 | N71: 14:30:00 | O71: 14:45:00 | P71: 0.06793939394
F72: 60 | G72: 0.06388325902 | H72: 0.06634343434 | I72: 14:45:00 | J72: 15:00:00 | K72: 0.0693554925 | M72: 0.06634343434 | N72: 14:45:00 | O72: 15:00:00 | P72: 0.06953535354
F73: 61 | G73: =E28 -> 0.07482772598 | H73: =F28 -> 0.07272727273 | I73: 15:00:00 | J73: 15:15:00 | K73: 0.07209160924 | M73: 0.07272727273 | N73: 15:00:00 | O73: 15:15:00 | P73: 0.07113131313
F74: 62 | G74: =G73 -> 0.07482772598 | H74: 0.07272727273 | I74: 15:15:00 | J74: 15:30:00 | K74: 0.07482772598 | M74: 0.07272727273 | N74: 15:15:00 | O74: 15:30:00 | P74: 0.07272727273
F75: 63 | G75: 0.07482772598 | H75: 0.07272727273 | I75: 15:30:00 | J75: 15:45:00 | K75: 0.07827320632 | M75: =H75 -> 0.07272727273 | N75: 15:30:00 | O75: 15:45:00 | P75: 0.07547474747
F76: 64 | G76: 0.07482772598 | H76: 0.07272727273 | I76: 15:45:00 | J76: 16:00:00 | K76: 0.08171868666 | M76: 0.07272727273 | N76: 15:45:00 | O76: 16:00:00 | P76: 0.07822222222
F77: 65 | G77: =E29 -> 0.08860964734 | H77: =F29 -> 0.08371717172 | I77: 16:00:00 | J77: 16:15:00 | K77: 0.085164167 | M77: 0.08371717172 | N77: 16:00:00 | O77: 16:15:00 | P77: 0.08096969697
F78: 66 | G78: =G77 -> 0.08860964734 | H78: 0.08371717172 | I78: 16:15:00 | J78: 16:30:00 | K78: =IF(MINUTE(J78)=30,G78,IF(MINUTE(J78)=15,0.75*G78+0.25*G77,IF(MINUTE(J78)=45,0.75*G78+0.25*G80,IF(MINUTE(J78)=0,0.5*G78+0.5*G79,0)))) -> 0.08860964734 | M78: 0.08371717172 | N78: 16:15:00 | O78: 16:30:00 | P78: =IF(MINUTE(O78)=30,M78,IF(MINUTE(O78)=15,0.75*M78+0.25*M77,IF(MINUTE(O78)=45,0.75*M78+0.25*M80,IF(MINUTE(O78)=0,0.5*M78+0.5*M79,0)))) -> 0.08371717172
F79: 67 | G79: 0.08860964734 | H79: 0.08371717172 | I79: 16:30:00 | J79: 16:45:00 | K79: 0.09276449128 | M79: 0.08371717172 | N79: 16:30:00 | O79: 16:45:00 | P79: 0.08604040404
F80: 68 | G80: 0.08860964734 | H80: 0.08371717172 | I80: 16:45:00 | J80: 17:00:00 | K80: 0.09691933522 | M80: 0.08371717172 | N80: 16:45:00 | O80: 17:00:00 | P80: 0.08836363636
F81: 69 | G81: =E30 -> 0.1052290231 | H81: =F30 -> 0.09301010101 | I81: 17:00:00 | J81: 17:15:00 | K81: 0.1010741792 | M81: 0.09301010101 | N81: 17:00:00 | O81: 17:15:00 | P81: 0.09068686869
F82: 70 | G82: =G81 -> 0.1052290231 | H82: 0.09301010101 | I82: 17:15:00 | J82: 17:30:00 | K82: 0.1052290231 | M82: 0.09301010101 | N82: 17:15:00 | O82: 17:30:00 | P82: 0.09301010101
F83: 71 | G83: 0.1052290231 | H83: 0.09301010101 | I83: 17:30:00 | J83: 17:45:00 | K83: 0.09608836644 | M83: 0.09301010101 | N83: 17:30:00 | O83: 17:45:00 | P83: 0.08545454545
F84: 72 | G84: 0.1052290231 | H84: 0.09301010101 | I84: 17:45:00 | J84: 18:00:00 | K84: 0.08694770977 | M84: 0.09301010101 | N84: 17:45:00 | O84: 18:00:00 | P84: 0.0778989899
F85: 73 | G85: =E31 -> 0.06866639643 | H85: =F31 -> 0.06278787879 | I85: 18:00:00 | J85: 18:15:00 | K85: 0.0778070531 | M85: 0.06278787879 | N85: 18:00:00 | O85: 18:15:00 | P85: 0.07034343434
F86: 74 | G86: =G85 -> 0.06866639643 | H86: 0.06278787879 | I86: 18:15:00 | J86: 18:30:00 | K86: 0.06866639643 | M86: 0.06278787879 | N86: 18:15:00 | O86: 18:30:00 | P86: 0.06278787879
F87: 75 | G87: 0.06866639643 | H87: 0.06278787879 | I87: 18:30:00 | J87: 18:45:00 | K87: 0.06134981759 | M87: 0.06278787879 | N87: 18:30:00 | O87: 18:45:00 | P87: 0.05890909091
F88: 76 | G88: 0.06866639643 | H88: 0.06278787879 | I88: 18:45:00 | J88: 19:00:00 | K88: 0.05403323875 | M88: 0.06278787879 | N88: 18:45:00 | O88: 19:00:00 | P88: 0.05503030303
F89: 77 | G89: =E32 -> 0.03940008107 | H89: =F32 -> 0.04727272727 | I89: 19:00:00 | J89: 19:15:00 | K89: 0.04671665991 | M89: 0.04727272727 | N89: 19:00:00 | O89: 19:15:00 | P89: 0.05115151515
F90: 78 | G90: =G89 -> 0.03940008107 | H90: 0.04727272727 | I90: 19:15:00 | J90: 19:30:00 | K90: 0.03940008107 | M90: 0.04727272727 | N90: 19:15:00 | O90: 19:30:00 | P90: 0.04727272727
F91: 79 | G91: 0.03940008107 | H91: 0.04727272727 | I91: 19:30:00 | J91: 19:45:00 | K91: 0.03704904743 | M91: 0.04727272727 | N91: 19:30:00 | O91: 19:45:00 | P91: 0.0436969697
F92: 80 | G92: 0.03940008107 | H92: 0.04727272727 | I92: 19:45:00 | J92: 20:00:00 | K92: 0.03469801378 | M92: 0.04727272727 | N92: 19:45:00 | O92: 20:00:00 | P92: 0.04012121212
F93: 81 | G93: =E33 -> 0.02999594649 | H93: =F33 -> 0.03296969697 | I93: 20:00:00 | J93: 20:15:00 | K93: 0.03234698014 | M93: 0.03296969697 | N93: 20:00:00 | O93: 20:15:00 | P93: 0.03654545455
F94: 82 | G94: =G93 -> 0.02999594649 | H94: 0.03296969697 | I94: 20:15:00 | J94: 20:30:00 | K94: 0.02999594649 | M94: 0.03296969697 | N94: 20:15:00 | O94: 20:30:00 | P94: 0.03296969697
F95: 83 | G95: 0.02999594649 | H95: 0.03296969697 | I95: 20:30:00 | J95: 20:45:00 | K95: 0.02752330766 | M95: 0.03296969697 | N95: 20:30:00 | O95: 20:45:00 | P95: 0.02955555556
F96: 84 | G96: 0.02999594649 | H96: 0.03296969697 | I96: 20:45:00 | J96: 21:00:00 | K96: 0.02505066883 | M96: 0.03296969697 | N96: 20:45:00 | O96: 21:00:00 | P96: 0.02614141414
F97: 85 | G97: =E34 -> 0.02010539116 | H97: =F34 -> 0.01931313131 | I97: 21:00:00 | J97: 21:15:00 | K97: 0.02257803 | M97: 0.01931313131 | N97: 21:00:00 | O97: 21:15:00 | P97: 0.02272727273
F98: 86 | G98: =G97 -> 0.02010539116 | H98: 0.01931313131 | I98: 21:15:00 | J98: 21:30:00 | K98: 0.02010539116 | M98: 0.01931313131 | N98: 21:15:00 | O98: 21:30:00 | P98: 0.01931313131
F99: 87 | G99: 0.02010539116 | H99: 0.01931313131 | I99: 21:30:00 | J99: 21:45:00 | K99: 0.01730847183 | M99: 0.01931313131 | N99: 21:30:00 | O99: 21:45:00 | P99: 0.01680808081
F100: 88 | G100: 0.02010539116 | H100: 0.01931313131 | I100: 21:45:00 | J100: 22:00:00 | K100: 0.01451155249 | M100: 0.01931313131 | N100: 21:45:00 | O100: 22:00:00 | P100: 0.0143030303
F101: 89 | G101: =E35 -> 0.008917713822 | H101: =F35 -> 0.009292929293 | I101: 22:00:00 | J101: 22:15:00 | K101: 0.01171463316 | M101: 0.009292929293 | N101: 22:00:00 | O101: 22:15:00 | P101: 0.0117979798
F102: 90 | G102: =G101 -> 0.008917713822 | H102: 0.009292929293 | I102: 22:15:00 | J102: 22:30:00 | K102: 0.008917713822 | M102: 0.009292929293 | N102: 22:15:00 | O102: 22:30:00 | P102: 0.009292929293
F103: 91 | G103: 0.008917713822 | H103: 0.009292929293 | I103: 22:30:00 | J103: 22:45:00 | K103: 0.007559789218 | M103: 0.009292929293 | N103: 22:30:00 | O103: 22:45:00 | P103: 0.008101010101
F104: 92 | G104: 0.008917713822 | H104: 0.009292929293 | I104: 22:45:00 | J104: 23:00:00 | K104: 0.006201864613 | M104: 0.009292929293 | N104: 22:45:00 | O104: 23:00:00 | P104: 0.006909090909
F105: 93 | G105: =E36 -> 0.003486015403 | H105: =F36 -> 0.004525252525 | I105: 23:00:00 | J105: 23:15:00 | K105: 0.004843940008 | M105: 0.004525252525 | N105: 23:00:00 | O105: 23:15:00 | P105: 0.005717171717
F106: 94 | G106: =G105 -> 0.003486015403 | H106: 0.004525252525 | I106: 23:15:00 | J106: 23:30:00 | K106: 0.003486015403 | M106: 0.004525252525 | N106: 23:15:00 | O106: 23:30:00 | P106: 0.004525252525
F107: 95 | G107: 0.003486015403 | H107: 0.004525252525 | I107: 23:30:00 | J107: 23:45:00 | K107: 0.003100932306 | M107: 0.004525252525 | N107: 23:30:00 | O107: 23:45:00 | P107: 0.003939393939
F108: 96 | G108: 0.003486015403 | H108: 0.004525252525 | I108: 23:45:00 | J108: 1 | K108: 0.00271584921 | M108: 0.004525252525 | N108: 23:45:00 | O108: 1 | P108: 0.003353535354
G109: =G13 -> 0.001945683016 | H109: 0.002181818182 | M109: 0.002181818182
G110: 0.001945683016 | H110: 0.002181818182 | M110: 0.002181818182
G111: 0.001945683016 | H111: 0.002181818182 | M111: 0.002181818182
G112: 0.001945683016 | H112: 0.002181818182 | M112: 0.002181818182

Sheet t=1
E1: 1 | F1: 2 | G1: 3 | H1: 4 | I1: 5 | J1: 0 | K1: 0 | L1: 0 | M1: 0 | N1: 0 | O1: 0 | P1: 0 | Q1: 0 | R1: 0 | S1: 0 | T1: 0 | U1: 0 | V1: 0 | W1: 0 | X1: 0
B2: Step 3: Enter Detailed Analysis Period Information
B3: Detailed geometric and demand information for the facility in current analysis period are listed in the table below.
B4: Default values are show as green shading, custom user inputs are shown in yellow shading
B5: The analyst can override any values in the cells with green or yellow shading.
B7: ="Detailed Input WorkSheet for " &Start!F7 -> Detailed Input WorkSheet for
B8: Feature Number: | D8: - | E8: 1 | F8: 2 | G8: 3 | H8: 4 | I8: 5 | J8: -
B9: Feature Type (Link, Signalized Intersection, Roundabout, TWSC): | D9: Link | E9: Int. | F9: Link | G9: Int. | H9: Link | I9: Int. | J9: Link
B10: Feature Length (ft): | D10: 0 | J10: 0
A11: 1 | B11: Direction 2 (NEMA) | C11: Mid-Segment 15 minute Flow Rate Per Hour:
C12: Total Delay Due to Turns into Access Points (sec/veh):
C13: Delay Due to Other Mid-Segment Sources (sec/veh):
C14: Width of upstream boundary interFeature (ft):
C15: Length of segment with restrictive median (ft):
C16: Proportion of Street with Curb on Right-Hand Side:
C17: Base Free Flow Speed (mph):
C27: Turn Percentage from exclusive (Right +Left) turn lanes:
C28: Hourly Through Flow Rate Per Lane (vph):
C29: Cycle length (sec):
C30: Lost time Per cycle (sec):
C31: Green Time Per Cycle (sec):
C32: Platoon Ratio:
B33: Direction 6 (NEMA) | C33: Mid-Segment 15 minute Flow Rate Per Hour:
C34: Total Delay Due to Turns into Access Points (sec/veh):
C35: Delay Due to Other Mid-Segment Sources (sec/veh):
C36: Width of upstream boundary interFeature (ft):
C37: Length of segment with restrictive median (ft):
C38: Proportion of Street with Curb on Right-Hand Side:
C39: Base Free Flow Speed (mph):
C49: Turn Percentage from exclusive (Right +Left) turn lanes:
C50: Hourly Through Flow Rate Per Lane (vph):
C51: Cycle length (sec): | E51: 60 | F51: 60 | G51: 60 | H51: 60 | I51: 60
C52: Lost time Per cycle (sec): | E52: 20 | F52: 8 | G52: 20 | H52: 8 | I52: 20
C53: Green Time Per Cycle (sec): | E53: 47.64793325 | F53: 43.81526524 | G53: 47.64793325 | H53: 41.73008758 | I53: 47.64793325
C54: Platoon Ratio: | E54: 1.33 | F54: 1.33 | G54: 1.33 | H54: 1.33 | I54: 1.33
E61: 125 | F61: 200 | G61: 200 | H61: 125 | I61: 125
E62: 125 | F62: 200 | G62: 200 | H62: 125 | I62: 125
D68: 1160 | F68: 1527 | H68: 1432 | J68: 1336
D69: 0.47 | F69: 0.47 | H69: 0.47 | J69: 0.47
D70: 0 | F70: 0 | H70: 0 | J70: 0
D72: 0 | F72: 1890 | H72: 1463 | J72: 0
D73: 1 | F73: 1 | H73: 1 | J73: 1
F74: 45 | H74: 45
E84: 0 | F84: 0.013 | G84: 0 | H84: 0 | I84: 0
E86: 60 | G86: 60 | I86: 60
E87: 5 | F87: 4 | G87: 5 | H87: 4 | I87: 5
E88: 47.64793325 | G88: 47.64793325 | I88: 47.64793325
D90: 2710 | F90: 3566 | H90: 3344 | J90: 3120
D91: 0.47 | F91: 0.47 | H91: 0.47 | J91: 0.47
D92: 0 | F92: 0 | H92: 0 | J92: 0
D94: 0 | F94: 1890 | H94: 1463 | J94: 0
D95: 1 | F95: 1 | H95: 1 | J95: 1
F96: 45 | H96: 45
E106: 0.254 | F106: 0.093 | G106: 0.046 | H106: 0.098 | I106: 0.05
E108: 100 | G108: 100 | I108: 100
E109: 5 | F109: 4 | G109: 5 | H109: 4 | I109: 5
E110: 69.30608472 | G110: 69.30608472 | I110: 69.30608472
B119: ="Detailed Output WorkSheet for " &Start!F7 -> Detailed Output WorkSheet for
B120: Feature NUMBER: | D120: - | E120: 1 | F120: 2 | G120: 3 | H120: 4 | I120: 5 | J120: -
A121: 1 | C121: Feature Name: | D121: - | J121: -
B122: Feature Type (Segment, Signalized InterFeature, Roundabout, TWSC): | D122: Link | E122: Int. | F122: Link | G122: Int. | H122: Link | I122: Int. | J122: Link
B123: Feature Length (ft): | D123: 0 | J123: 0
B124: Direction 2 (NEMA) | C124: Number of Lanes on Arterial: | F124: 2 | H124: 2
C126: 15 Minute Demand On Arterial(vph): | F126: 1527 | H126: 1432
C127: Through g/c Ratio: | E127: 0.4607988875 | G127: 0.4607988875 | I127: 0.4607988875
C128: Saturation Flow Rate Per Lane(vph): | E128: 1764.705882 | G128: 1764.705882 | I128: 1764.705882
C129: Approach Capacity (vph): | E129: 1626.349015 | G129: 1626.349015 | I129: 1626.349015
C130: Demand to Capacity Ratio (V/C): | E130: 0.7132540369 | G130: 0.9389128571 | I130: 0.880499811
C132: Uniform Delay (sec): | E132: 12.99225699 | G132: 15.37346469 | I132: 14.67714022 | K132: =SUM(D132:J132) -> 43.0428619 | L132: sec
C133: Incremental_delay (sec): | E133: 1.717299737 | G133: 3.493187857 | I133: 2.739032132 | K133: =SUM(D133:J133) -> 7.949519725 | L133: sec
C134: Control Delay (sec): | E134: 14.70955673 | G134: 18.86665255 | I134: 17.41617235 | K134: =SUM(D134:J134) -> 50.99238162 | L134: sec
C135: Intersection Approach LOS: | E135: B | G135: B | I135: B
C136: Speed Limit (mph): | F136: 45 | H136: 45
C137: Base Free Flow Speed (mph): | F137: 43.612 | H137: 43.612
C138: Free Flow Speed (mph): | F138: 32.12826261 | H138: 32.12826261
C139: Travel Speed (mph): | F139: 14.30251238 | H139: 13.70270943
C140: Travel Speed as Proportion of Base Free Flow Speed: | F140: 0.3279490135 | H140: 0.3141958504
C141: HCM Segment Level of Service: | F141: E | H141: E
C143: Segment Running Time (min): | F143: 1.18719915 | H143: 0.9229941654 | K143: =SUM(D143:J143) -> 2.110193315 | L143: min
C144: Travel time per vehicle (min) | F144: 1.501643359 | H144: 1.213263705 | K144: =SUM(D144:J144) -> 2.714907063 | L144: min
C145: Free-flow travel time (min) | F145: 0.4924624582 | H145: 0.3812024214 | K145: =SUM(D145:J145) -> 0.8736648796 | L145: min
C146: Travel Time Index: | F146: 3.049254484 | H146: 3.182728221 | K146: =K144/K145 -> 3.107492503
C148: Queue Size (veh): | F148: 0 | H148: 0 | K148: =SUM(D148:J148) -> 0 | L148: veh
C150: Vehicles Hours of Delay (VHD): | F150: 6.420913481 | H150: 4.964632323 | K150: =SUM(D150:J150) -> 11.3855458 | L150: Veh-Hr
C151: User Cost($): | F151: 325.9544624 | H151: 252.0270776 | K151: =SUM(D151:J151) -> 577.98154
B166: Direction 6 (NEMA) | C166: Number of Lanes on Arterial: | F166: 3 | H166: 3
C168: 15 Minute Demand On Arterial(vph): | F168: 3566 | H168: 3344
C169: Through g/c Ratio: | E169: 0.4607988875 | G169: 0.4607988875 | I169: 0.4607988875
C170: Saturation Flow Rate Per Lane(vph): | E170: 1764.705882 | G170: 1764.705882 | I170: 1764.705882
C171: Approach Capacity (vph): | E171: 2439.523522 | G171: 2439.523522 | I171: 2439.523522
C172: Demand to Capacity Ratio (V/C): | E172: 1.090473601 | G172: 1.307704546 | I172: 1.055329033
C174: Uniform Delay (sec): | E174: 16.17603338 | G174: 16.17603338 | I174: 16.17603338 | K174: =SUM(D174:J174) -> 48.52810013 | L174: sec
C175: Incremental_delay (sec): | E175: 39.35368601 | G175: 135.6907473 | I175: 24.154057 | K175: 199.1984903 | L175: sec
C176: Control Delay (sec): | E176: 50.9678104 | G176: 147.3048717 | I176: 35.76818139 | K176: 234.0408635 | L176: sec
C177: Intersection Approach LOS: | E177: F | G177: F | I177: F
C178: Speed Limit (mph): | F178: 45 | H178: 45
C179: Base Free Flow Speed (mph): | F179: 43.768 | H179: 43.768
C180: Free Flow Speed (mph): | F180: 32.16295857 | H180: 32.16295857
C181: Travel Speed (mph): | F181: 10.24745403 | H181: 4.879736953
C182: Travel Speed as Proportion of Base Free Flow Speed: | F182: 0.2341311925 | H182: 0.1114909741
C183: HCM Segment Level of Service: | F183: F | H183: F
C185: Segment Running Time (min): | F185: 1.24640076 | H185: 0.9518647452 | K185: =SUM(D185:J185) -> 2.198265505 | L185: min
C186: Travel time per vehicle (min) | F186: 2.095864266 | H186: 3.40694594 | K186: =SUM(D186:J186) -> 5.502810207 | L186: min
C187: Free-flow travel time (min) | F187: 0.4907071999 | H187: 0.3798437214 | K187: =SUM(D187:J187) -> 0.8705509214 | L187: min
C188: Travel Time Index: | F188: 4.271109669 | H188: 8.969335934 | K188: =K186/K187 -> 6.321066432
C190: Queue Size (veh): | F190: 0 | H190: 0 | K190: =SUM(D190:J190) -> 0 | L190: veh
C192: Vehicles Hours of Delay (VHD): | F192: 23.84995875 | H192: 42.17762425 | K192: =SUM(D192:J192) -> 66.02758299 | L192: Veh-Hr
C193: User Cost($): | F193: 1210.731231 | H193: 2141.126006 | K193: =SUM(D193:J193) -> 3351.857237
E225: 4 | G225: 4 | I225: 4
E227: 0.069
E229: 60 | F229: 60 | G229: 60 | H229: 60 | I229: 60
E230: 5 | F230: 8 | G230: 5 | H230: 8 | I230: 5
E231: 47.64793325 | F231: 40.68560344 | G231: 47.64793325 | H231: 41.73008758 | I231: 47.64793325
E232: 1 | F232: 2 | G232: 1 | H232: 1 | I232: 1
E247: 4 | G247: 4 | I247: 4
E249: 0.151
E251: 60 | F251: 60 | G251: 60 | H251: 60 | I251: 60
E252: 5 | F252: 8 | G252: 5 | H252: 8 | I252: 5
E253: 47.64793325 | F253: 40.68560344 | G253: 47.64793325 | H253: 41.73008758 | I253: 47.64793325
E254: 1.33 | F254: 2 | G254: 1.33 | H254: 1.33 | I254: 1.33

Sheet Output sheets (AP) (hidden)
A3: Seg. | D3: Output WorkSheet
A4: Int. | D4: Analysis Date: | E4: 2013-01-30
A5: Rnabt. | D5: Arterial Facility Ttitle: | E5: US70
D6: SECTION NUMBER: | E6: 1 | F6: 2 | G6: 3 | H6: 4 | I6: 5 | J6: 6 | K6: 7 | L6: 8 | M6: 9 | N6: 10 | O6: 11 | P6: 12 | Q6: 13 | R6: Facility Wide
A7: Yes | D7: CATEGORY(Segment, Intersection, or Roundabout): | E7: Seg. | F7: Int. | G7: Seg. | H7: Seg. | I7: Seg. | J7: Int. | K7: Seg. | L7: Rnabt. | M7: Seg. | N7: Seg. | O7: Seg. | P7: Int. | Q7: Seg.
A8: No | D8: WORK ZONE ACTIVE (Yes/No): | E8: No | F8: Yes | G8: No | H8: Yes | I8: No | J8: No | K8: No | L8: No | M8: No | N8: Yes | O8: No | P8: No | Q8: No
D9: Length (ft) | E9: 2000 | F9: 300 | G9: 1000 | H9: 1000 | I9: 1000 | J9: 300 | K9: 1200 | L9: 190 | M9: 1000 | N9: 1000 | O9: 1450 | P9: 275 | Q9: 2580 | R9: =SUM(E9:Q9)/5280 -> 2.517992424 | S9: Miles
B10: Direction 1 | C10: Basic Output | D10: Free flow speed (mph)
D11: Space mean speed (mph) | AB11: =IF(X11>3.6,0,IF(X11<3,10.5,22.778*X11*X11-167.83*X11+309)) -> 10.5
D12: Segment density (veh/mi/lane)
D13: Segment capacity (vph) | AB13: =IF(X13>1.8,0,IF(X16<2.5,-3.2143*X13+5.7929,IF(X16<3.5,-2.1429*X13+3.8714,-0.0661*X13*X13-0.9405*X13+1.8952))) -> 5.7929
D14: Segment demand (vph)
D15: Segment volume served (vph)
D16: d/c ratio | AB16: =IF(X16>5,0,-2.43*X16+12.13) -> 12.13
D17: v/c ratio
D18: Travel time per vehicle (min)
D19: Free-flow travel time (min)
D20: Freeway mainline delay (min)
D21: System delay-- includes on-ramps (min) | AB21: =IF(X21<0.3,0,IF(X21>1.2,12.1,3.7016*X21*X21+8.1648*X21-2.9797)) -> 0
D22: VMTD Veh-miles / interval (Demand)
D23: VMTV Veh-miles / interval (Volume served)
D24: VHT travel / interval (hrs)
D25: VHD delay /interval (hrs)
D26: Space mean speed = VMTV / VHT (mph)
D27: Segment density (pc/mi/lane)*
D28: Density-based LOS on segment
D29: Demand-based LOS on segment
D30: Travel Time Index (TTI)
C31: WZ Output | D31: WZ Output1
D32: WZ Output2
D33: WZ Output3
D34: WZ Output4
D35: WZ Output5
D36: WZ Output6
B37: Direction 2 | C37: Basic Output | D37: Free flow speed (mph)
D38: Space mean speed (mph) | AB38: =IF(X38>3.6,0,IF(X38<3,10.5,22.778*X38*X38-167.83*X38+309)) -> 10.5
D39: Segment density (veh/mi/lane)
D40: Segment capacity (vph) | AB40: =IF(X40>1.8,0,IF(X43<2.5,-3.2143*X40+5.7929,IF(X43<3.5,-2.1429*X40+3.8714,-0.0661*X40*X40-0.9405*X40+1.8952))) -> 5.7929
D41: Segment demand (vph)
D42: Segment volume served (vph)
D43: d/c ratio | AB43: =IF(X43>5,0,-2.43*X43+12.13) -> 12.13
D44: v/c ratio
D45: Travel time per vehicle (min)
D46: Free-flow travel time (min)
D47: Freeway mainline delay (min)
D48: System delay-- includes on-ramps (min) | AB48: =IF(X48<0.3,0,IF(X48>1.2,12.1,3.7016*X48*X48+8.1648*X48-2.9797)) -> 0
D49: VMTD Veh-miles / interval (Demand)
D50: VMTV Veh-miles / interval (Volume served)
D51: VHT travel / interval (hrs)
D52: VHD delay /interval (hrs)
D53: Space mean speed = VMTV / VHT (mph)
D54: Segment density (pc/mi/lane)*
D55: Density-based LOS on segment
D56: Demand-based LOS on segment
D57: Travel Time Index (TTI)
C58: WZ Output | D58: WZ Output1
D59: WZ Output2
D60: WZ Output3
D61: WZ Output4
D62: WZ Output5
D63: WZ Output6

Sheet FlowChart (hidden)

Sheet Facility Summary (hidden)
B2: Summary Results by Feature and Facility
B3: Start time: | C3: =Start!F10 -> 07:15:00
B4: End Time: | C4: =Start!F11 -> 07:30:00
B5: This worksheet provides, a summary of the performance measures across the total study period.
B9: ="Detailed Output WorkSheet for "&Start!F7 -> Detailed Output WorkSheet for
B10: FEATURE NUMBER: | E10: 1 | F10: 2 | G10: 3 | H10: 4 | I10: 5
D11: Feature Nick Name:
B12: Feature Type (Segment, Signalized Intersection, Roundabout, TWSC): | E12: Int. | F12: Link | G12: Int. | H12: Link | I12: Int.
D13: Feature Length (ft): | J13: Facility Wide
B14: Direction 2 (NEMA) | D14: Number of Lanes: | F14: 2 | H14: 2
D15: Average g/c: | E15: 0.6216989961 | G15: 0.6216989961 | I15: 0.6216989961
D16: Uniform Delay (sec): | E16: 11.84626991 | G16: 14.06196605 | I16: 13.41057661 | J16: =SUM(E16:I16) -> 39.31881257
D17: Incremental_delay (sec): | E17: 1.081679227 | G17: 2.087522848 | I17: 1.676758638 | J17: =SUM(E17:I17) -> 4.845960713
D18: Control Delay (sec): | E18: 12.92794914 | G18: 16.1494889 | I18: 15.08733525 | J18: =SUM(E18:I18) -> 44.16477329
D19: Speed Limit(mph): | F19: 45 | H19: 45
D20: Travel Speed(mph): | F20: 14.73659451 | H20: 14.14902452
D21: Running Time(min): | F21: 1.189518336 | H21: 0.9247073769 | J21: =SUM(E21:I21) -> 2.114225713 | K21: min
D22: Travel Time(min): | F22: 1.458676485 | H22: 1.176162964 | J22: =SUM(E22:I22) -> 2.634839449 | K22: min
D23: Total Stop Rate:
D24: Total User Cost: | F24: 631.9647 | H24: 487.5101 | J24: =SUM(E24:I24) -> 1119.4748
E47: 0.7910561392
E48: 1.789985779
E49: 0.2161521054
E50: 6.638803922
B56: Direction 6 (NEMA) | D56: Number of Lanes: | F56: 3 | H56: 3
D57: Average g/c: | E57: 0.6216989961 | G57: 0.6216989961 | I57: 0.6216989961
D58: Uniform Delay (sec): | E58: 14.87913344 | G58: 16.39953883 | I58: 14.68482111 | J58: =SUM(E58:I58) -> 45.96349337
D59: Incremental_delay (sec): | E59: 19.93424084 | G59: 68.20337103 | I59: 12.32062687 | J59: =SUM(E59:I59) -> 100.4582388
D60: Control Delay (sec): | E60: 25.74130304 | G60: 74.01043323 | I60: 18.12768907 | J60: =SUM(E60:I60) -> 117.8794253
D61: Speed Limit(mph): | F61: 45 | H61: 45
D62: Speed(mph): | F62: 13.75509036 | H62: 11.13739189
D63: Running Time(min): | F63: 1.24098111 | H63: 0.9478316664 | J63: =SUM(E63:I63) -> 2.188812776 | K63: min
D64: Travel Time(min): | F64: 1.670002827 | H64: 2.181338887 | J64: =SUM(E64:I64) -> 3.851341714 | K64: min
D65: Total Stop Rate:
D66: Total User Cost: | F66: 1752.0957 | H66: 2529.2163 | J66: =SUM(E66:I66) -> 4281.312
E121: 1

Sheet Signal Timing
E1: 00:15:00
C2: Step 4 : Advanced Signal Timing
C4: Please enter advanced signal plan for the arterial street
C6: Feature Number: | D6: Feature Name: | E6: Analysis Period # | G6: 1 | H6: 2 | I6: 3 | J6: 4 | K6: 5 | L6: 6 | M6: 7 | N6: 8 | O6: 9 | P6: 10 | Q6: 11 | R6: 12 | S6: 13 | T6: 14 | U6: 15 | V6: 16 | W6: 17 | X6: 18 | Y6: 19 | Z6: 20 | AA6: 21 | AB6: 22 | AC6: 23 | AD6: 24 | AE6: 25 | AF6: 26 | AG6: 27 | AH6: 28 | AI6: 29 | AJ6: 30 | AK6: 31 | AL6: 32 | AM6: 33 | AN6: 34 | AO6: 35 | AP6: 36 | AQ6: 37 | AR6: 38 | AS6: 39 | AT6: 40 | AU6: 41 | AV6: 42 | AW6: 43 | AX6: 44 | AY6: 45 | AZ6: 46 | BA6: 47 | BB6: 48 | BC6: 49 | BD6: 50 | BE6: 51 | BF6: 52 | BG6: 53 | BH6: 54 | BI6: 55 | BJ6: 56 | BK6: 57 | BL6: 58 | BM6: 59 | BN6: 60 | BO6: 61 | BP6: 62 | BQ6: 63 | BR6: 64 | BS6: 65 | BT6: 66 | BU6: 67 | BV6: 68 | BW6: 69 | BX6: 70 | BY6: 71 | BZ6: 72 | CA6: 73 | CB6: 74 | CC6: 75 | CD6: 76 | CE6: 77 | CF6: 78 | CG6: 79 | CH6: 80 | CI6: 81 | CJ6: 82 | CK6: 83 | CL6: 84 | CM6: 85 | CN6: 86 | CO6: 87 | CP6: 88 | CQ6: 89 | CR6: 90 | CS6: 91 | CT6: 92 | CU6: 93 | CV6: 94 | CW6: 95 | CX6: 96
E7: Start Time | G7: =Start!F10 -> 07:15:00 | H7: =G8 -> 07:30:00 | I7: 07:45:00 | J7: 08:00:00 | K7: 08:15:00 | L7: 08:30:00 | M7: 08:45:00 | N7: 09:00:00 | O7: 09:15:00 | P7: 09:30:00 | Q7: 09:45:00 | R7: 10:00:00 | S7: 10:15:00 | T7: 10:30:00 | U7: 10:45:00 | V7: 11:00:00 | W7: 11:15:00 | X7: 11:30:00 | Y7: 11:45:00 | Z7: 12:00:00 | AA7: 12:15:00 | AB7: 12:30:00 | AC7: 12:45:00 | AD7: 13:00:00 | AE7: 13:15:00 | AF7: 13:30:00 | AG7: 13:45:00 | AH7: 14:00:00 | AI7: 14:15:00 | AJ7: 14:30:00 | AK7: 14:45:00 | AL7: 15:00:00 | AM7: 15:15:00 | AN7: =AM8 -> 15:30:00 | AO7: 15:45:00 | AP7: 16:00:00 | AQ7: 16:15:00 | AR7: 16:30:00 | AS7: 16:45:00 | AT7: 17:00:00 | AU7: 17:15:00 | AV7: 17:30:00 | AW7: 17:45:00 | AX7: 18:00:00 | AY7: 18:15:00 | AZ7: 18:30:00 | BA7: 18:45:00 | BB7: 19:00:00 | BC7: 19:15:00 | BD7: 19:30:00 | BE7: 19:45:00 | BF7: 20:00:00 | BG7: 20:15:00 | BH7: 20:30:00 | BI7: 20:45:00 | BJ7: 21:00:00 | BK7: 21:15:00 | BL7: 21:30:00 | BM7: 21:45:00 | BN7: 22:00:00 | BO7: 22:15:00 | BP7: 22:30:00 | BQ7: 22:45:00 | BR7: 23:00:00 | BS7: 23:15:00 | BT7: =BS8 -> 23:30:00 | BU7: 23:45:00 | BV7: 1 | BW7: 1.010416667 | BX7: 1.020833333 | BY7: 1.03125 | BZ7: 1.041666667 | CA7: 1.052083333 | CB7: 1.0625 | CC7: 1.072916667 | CD7: 1.083333333 | CE7: 1.09375 | CF7: 1.104166667 | CG7: 1.114583333 | CH7: 1.125 | CI7: 1.135416667 | CJ7: 1.145833333 | CK7: 1.15625 | CL7: 1.166666667 | CM7: 1.177083333 | CN7: 1.1875 | CO7: 1.197916667 | CP7: 1.208333333 | CQ7: 1.21875 | CR7: 1.229166667 | CS7: 1.239583333 | CT7: 1.25 | CU7: 1.260416667 | CV7: 1.270833333 | CW7: 1.28125 | CX7: 1.291666667
E8: End Time | G8: =G7+$E$1 -> 07:30:00 | H8: 07:45:00 | I8: 08:00:00 | J8: 08:15:00 | K8: 08:30:00 | L8: 08:45:00 | M8: 09:00:00 | N8: 09:15:00 | O8: 09:30:00 | P8: 09:45:00 | Q8: 10:00:00 | R8: 10:15:00 | S8: 10:30:00 | T8: 10:45:00 | U8: 11:00:00 | V8: 11:15:00 | W8: 11:30:00 | X8: 11:45:00 | Y8: 12:00:00 | Z8: 12:15:00 | AA8: 12:30:00 | AB8: 12:45:00 | AC8: 13:00:00 | AD8: 13:15:00 | AE8: 13:30:00 | AF8: 13:45:00 | AG8: 14:00:00 | AH8: 14:15:00 | AI8: 14:30:00 | AJ8: 14:45:00 | AK8: 15:00:00 | AL8: 15:15:00 | AM8: =AM7+$E$1 -> 15:30:00 | AN8: 15:45:00 | AO8: 16:00:00 | AP8: 16:15:00 | AQ8: 16:30:00 | AR8: 16:45:00 | AS8: 17:00:00 | AT8: 17:15:00 | AU8: 17:30:00 | AV8: 17:45:00 | AW8: 18:00:00 | AX8: 18:15:00 | AY8: 18:30:00 | AZ8: 18:45:00 | BA8: 19:00:00 | BB8: 19:15:00 | BC8: 19:30:00 | BD8: 19:45:00 | BE8: 20:00:00 | BF8: 20:15:00 | BG8: 20:30:00 | BH8: 20:45:00 | BI8: 21:00:00 | BJ8: 21:15:00 | BK8: 21:30:00 | BL8: 21:45:00 | BM8: 22:00:00 | BN8: 22:15:00 | BO8: 22:30:00 | BP8: 22:45:00 | BQ8: 23:00:00 | BR8: 23:15:00 | BS8: =BS7+$E$1 -> 23:30:00 | BT8: 23:45:00 | BU8: 1 | BV8: 1.010416667 | BW8: 1.020833333 | BX8: 1.03125 | BY8: 1.041666667 | BZ8: 1.052083333 | CA8: 1.0625 | CB8: 1.072916667 | CC8: 1.083333333 | CD8: 1.09375 | CE8: 1.104166667 | CF8: 1.114583333 | CG8: 1.125 | CH8: 1.135416667 | CI8: 1.145833333 | CJ8: 1.15625 | CK8: 1.166666667 | CL8: 1.177083333 | CM8: 1.1875 | CN8: 1.197916667 | CO8: 1.208333333 | CP8: 1.21875 | CQ8: 1.229166667 | CR8: 1.239583333 | CS8: 1.25 | CT8: 1.260416667 | CU8: 1.270833333 | CV8: 1.28125 | CW8: 1.291666667 | CX8: 1.302083333
C9: 1 | E9: Cycle Length (sec) | H9: 300 | I9: 300 | J9: 270 | K9: 195 | L9: 75 | M9: 60 | N9: 60
E10: Green Time (sec) | F10: Dir 2 | H10: 254.7797314 | I10: 241.0054022 | J10: 214.3765776 | K10: 149.4376505 | L10: 64.37571094 | M10: 51.30416822 | N10: 51.08652115
F11: Dir 6 | H11: 254.7797314 | I11: 241.0054022 | J11: 214.3765776 | K11: 149.4376505 | L11: 64.37571094 | M11: 51.30416822 | N11: 51.08652115
E12: Lost Time Per Phase (sec) | H12: 5 | I12: 5 | J12: 5 | K12: 5 | L12: 5 | M12: 5 | N12: 5
E13: # of Phases in critical path | H13: 4 | I13: 4 | J13: 4 | K13: 4 | L13: 4 | M13: 4 | N13: 4
E14: Platoon Ratio | F14: Dir 2 | H14: 1 | I14: 1 | J14: 1 | K14: 1 | L14: 1 | M14: 1 | N14: 1
F15: Dir 6 | H15: 1.33 | I15: 1.33 | J15: 1.33 | K15: 1.33 | L15: 1.33 | M15: 1.33 | N15: 1.33
C16: 3 | D16: S. Moore St. | E16: Cycle Length (sec) | H16: 300 | I16: 300 | J16: 270 | K16: 195 | L16: 75 | M16: 60 | N16: 60
E17: Green Time (sec) | F17: Dir 2 | H17: 254.7797314 | I17: 241.0054022 | J17: 214.3765776 | K17: 149.4376505 | L17: 47.20885469 | M17: 51.30416822 | N17: 51.08652115
F18: Dir 6 | H18: 254.7797314 | I18: 241.0054022 | J18: 214.3765776 | K18: 149.4376505 | L18: 47.20885469 | M18: 51.30416822 | N18: 51.08652115
E19: Lost Time Per Phase (sec) | H19: 5 | I19: 5 | J19: 5 | K19: 5 | L19: 5 | M19: 5 | N19: 5
E20: # of Phases in critical path | H20: 4 | I20: 4 | J20: 4 | K20: 4 | L20: 4 | M20: 4 | N20: 4
E21: Platoon Ratio | F21: Dir 2 | H21: 1 | I21: 1 | J21: 1 | K21: 1 | L21: 1 | M21: 1 | N21: 1
F22: Dir 6 | H22: 1.33 | I22: 1.33 | J22: 1.33 | K22: 1.33 | L22: 1.33 | M22: 1.33 | N22: 1.33
C23: 5 | D23: Robertson Rd. | E23: Cycle Length (sec) | H23: 300 | I23: 300 | J23: 270 | K23: 195 | L23: 75 | M23: 60 | N23: 60
E24: Green Time (sec) | F24: Dir 2 | H24: 254.7797314 | I24: 241.0054022 | J24: 214.3765776 | K24: 149.4376505 | L24: 64.37571094 | M24: 51.30416822 | N24: 51.08652115
F25: Dir 6 | H25: 254.7797314 | I25: 241.0054022 | J25: 214.3765776 | K25: 149.4376505 | L25: 64.37571094 | M25: 51.30416822 | N25: 51.08652115
E26: Lost Time Per Phase (sec) | H26: 5 | I26: 5 | J26: 5 | K26: 5 | L26: 5 | M26: 5 | N26: 5
E27: # of Phases in critical path | H27: 4 | I27: 4 | J27: 4 | K27: 4 | L27: 4 | M27: 4 | N27: 4
E28: Platoon Ratio | F28: Dir 2 | H28: 1 | I28: 1 | J28: 1 | K28: 1 | L28: 1 | M28: 1 | N28: 1
F29: Dir 6 | H29: 1.33 | I29: 1.33 | J29: 1.33 | K29: 1.33 | L29: 1.33 | M29: 1.33 | N29: 1.33
C30: 7 | D30: Avent Ferry | E30: Cycle Length (sec) | G30: 180 | H30: 180 | I30: 180 | J30: 180 | K30: 180 | L30: 180
E31: Green Time (sec) | F31: Dir 2 | G31: 88.18810668 | H31: 87.2036668 | I31: 86.4683852 | J31: 80.04159398 | K31: 79.10641476 | L31: 78.09824609
F32: Dir 6 | G32: 88.18810668 | H32: 87.2036668 | I32: 86.4683852 | J32: 80.04159398 | K32: 79.10641476 | L32: 78.09824609
E33: Lost Time Per Phase (sec) | G33: 4 | H33: 4 | I33: 4 | J33: 4 | K33: 4 | L33: 4
E34: # of Phases in critical path | G34: 4 | H34: 4 | I34: 4 | J34: 4 | K34: 4 | L34: 4
E35: Platoon Ratio | F35: Dir 2 | G35: 1 | H35: 1 | I35: 1 | J35: 1 | K35: 1 | L35: 1
F36: Dir 6 | G36: 1.33 | H36: 1.33 | I36: 1.33 | J36: 1.33 | K36: 1.33 | L36: 1.33
C37: =C30+1 -> 8 | D37: Shotwell Rd | E37: Cycle Length (sec)
E38: Green Time (sec) | F38: Dir 2
F39: Dir 6
E40: Lost Time Per Phase (sec)
E41: # of Phases in critical path
E42: Platoon Ratio | F42: Dir 2
F43: Dir 6
C44: =C37+1 -> 9 | D44: Shotwell Rd | E44: Cycle Length (sec)
E45: Green Time (sec) | F45: Dir 2
F46: Dir 6
E47: Lost Time Per Phase (sec)
E48: # of Phases in critical path
E49: Platoon Ratio | F49: Dir 2
F50: Dir 6
C51: =C44+1 -> 10 | D51: Shotwell Rd | E51: Cycle Length (sec)
E52: Green Time (sec) | F52: Dir 2
F53: Dir 6
E54: Lost Time Per Phase (sec)
E55: # of Phases in critical path
E56: Platoon Ratio | F56: Dir 2
F57: Dir 6
C58: =C51+1 -> 11 | D58: Shotwell Rd | E58: Cycle Length (sec)
E59: Green Time (sec) | F59: Dir 2
F60: Dir 6
E61: Lost Time Per Phase (sec)
E62: # of Phases in critical path
E63: Platoon Ratio | F63: Dir 2
F64: Dir 6
C65: =C58+1 -> 12 | D65: Shotwell Rd | E65: Cycle Length (sec)
E66: Green Time (sec) | F66: Dir 2
F67: Dir 6
E68: Lost Time Per Phase (sec)
E69: # of Phases in critical path
E70: Platoon Ratio | F70: Dir 2
F71: Dir 6
C72: =C65+1 -> 13 | D72: Shotwell Rd | E72: Cycle Length (sec)
E73: Green Time (sec) | F73: Dir 2
F74: Dir 6
E75: Lost Time Per Phase (sec)
E76: # of Phases in critical path
E77: Platoon Ratio | F77: Dir 2
F78: Dir 6
C79: =C72+1 -> 14 | D79: Shotwell Rd | E79: Cycle Length (sec)
E80: Green Time (sec) | F80: Dir 2
F81: Dir 6
E82: Lost Time Per Phase (sec)
E83: # of Phases in critical path
E84: Platoon Ratio | F84: Dir 2
F85: Dir 6
C86: =C79+1 -> 15 | D86: Shotwell Rd | E86: Cycle Length (sec)
E87: Green Time (sec) | F87: Dir 2
F88: Dir 6
E89: Lost Time Per Phase (sec)
E90: # of Phases in critical path
E91: Platoon Ratio | F91: Dir 2
F92: Dir 6
C93: =C86+1 -> 16 | D93: Shotwell Rd | E93: Cycle Length (sec)
E94: Green Time (sec) | F94: Dir 2
F95: Dir 6
E96: Lost Time Per Phase (sec)
E97: # of Phases in critical path
E98: Platoon Ratio | F98: Dir 2
F99: Dir 6
C100: =C93+1 -> 17 | D100: Shotwell Rd | E100: Cycle Length (sec)
E101: Green Time (sec) | F101: Dir 2
F102: Dir 6
E103: Lost Time Per Phase (sec)
E104: # of Phases in critical path
E105: Platoon Ratio | F105: Dir 2
F106: Dir 6
C107: =C100+1 -> 18 | D107: Shotwell Rd | E107: Cycle Length (sec)
E108: Green Time (sec) | F108: Dir 2
F109: Dir 6
E110: Lost Time Per Phase (sec)
E111: # of Phases in critical path
E112: Platoon Ratio | F112: Dir 2
F113: Dir 6
C114: =C107+1 -> 19 | D114: Shotwell Rd | E114: Cycle Length (sec)
E115: Green Time (sec) | F115: Dir 2
F116: Dir 6
E117: Lost Time Per Phase (sec)
E118: # of Phases in critical path
E119: Platoon Ratio | F119: Dir 2
F120: Dir 6
C121: =C114+1 -> 20 | D121: Shotwell Rd | E121: Cycle Length (sec)
E122: Green Time (sec) | F122: Dir 2
F123: Dir 6
E124: Lost Time Per Phase (sec)
E125: # of Phases in critical path
E126: Platoon Ratio | F126: Dir 2
F127: Dir 6
C128: =C121+1 -> 21 | D128: Shotwell Rd | E128: Cycle Length (sec)
E129: Green Time (sec) | F129: Dir 2
F130: Dir 6
E131: Lost Time Per Phase (sec)
E132: # of Phases in critical path
E133: Platoon Ratio | F133: Dir 2
F134: Dir 6
C135: =C128+1 -> 22 | D135: Shotwell Rd | E135: Cycle Length (sec)
E136: Green Time (sec) | F136: Dir 2
F137: Dir 6
E138: Lost Time Per Phase (sec)
E139: # of Phases in critical path
E140: Platoon Ratio | F140: Dir 2
F141: Dir 6

Sheet Admin (hidden)
M1: Hourly factor Urban | Q1: Dual Peak
A2: Area Types | B2: 1 | C2: Urban | E2: Major Facility Types | F2: 1 | G2: Major Arterial | I2: Major
B3: 2 | C3: SubUrban | F3: 2 | G3: Minor Arterial | I3: Minor | K3: 1
B4: 3 | F4: 3 | G4: Collector | K4: 2 | M4: 0 | N4: 0.004156558071 | O4: 0.002680159732 | Q4: 0.002181818182 | R4: 0.001945683016
K5: 3 | M5: 1 | N5: 0.002531204978 | O5: 0.00132197886 | Q5: 0.001939393939 | R5: 0.00186461289
K6: 4 | M6: 2 | N6: 0.001575399122 | O6: 0.001210606678 | Q6: 0.0007272727273 | R6: 0.000486420754
A7: Current number of APs | B7: 1 | C7: Smooth | F7: 1 | G7: Enabled | J7: Hours : | K7: 5 | M7: 3 | N7: 0.0014865407 | O7: 0.002086854655 | Q7: 0.001454545455 | R7: 0.0007296311309
A8: Current Number of Sections | B8: 5 | C8: Milled | E8: Signal Setting | F8: 2 | G8: Disabled | K8: 6 | M8: 4 | N8: 0.001947638218 | O8: 0.005162712541 | Q8: 0.002666666667 | R8: 0.002026753141
A9: Yes and No | B9: Yes | F9: 3 | J9: 00:00:00 | K9: 7 | M9: 5 | N9: 0.006645980653 | O9: 0.01886467619 | Q9: 0.01204040404 | R9: 0.008431293069
B10: No | J10: 00:15:00 | K10: 8 | M10: 6 | N10: 0.01879578542 | O10: 0.05989809324 | Q10: 0.03749494949 | R10: 0.03640048642
C11: Tight | E11: Coordinated Cycle length | G11: 120 | J11: 00:30:00 | K11: 9 | M11: 7 | N11: 0.044674522 | O11: 0.1043095344 | Q11: 0.08727272727 | R11: 0.07685447912
C12: Wide | J12: 00:45:00 | K12: 10 | M12: 8 | N12: 0.04930184032 | O12: 0.08450751292 | Q12: 0.08993939394 | R12: 0.076773409
J13: 01:00:00 | K13: 11 | M13: 9 | N13: 0.04697045123 | O13: 0.06414105858 | Q13: 0.05931313131 | R13: 0.0616132955
J14: 01:15:00 | K14: 12 | M14: 10 | N14: 0.05114669265 | O14: 0.05512637548 | Q14: 0.04460606061 | R14: 0.04953384678
A15: Section Type | B15: Link | E15: Peak Direction | G15: 2NB | J15: 01:30:00 | K15: 13 | M15: 11 | N15: 0.05798534652 | O15: 0.06420353895 | Q15: 0.05575757576 | R15: 0.05861370085
B16: Int. | G16: 2EB | J16: 01:45:00 | K16: 14 | M16: 12 | N16: 0.06467552525 | O16: 0.06934249712 | Q16: 0.05624242424 | R16: 0.06291041751
B17: RBT | G17: 6WB | J17: 02:00:00 | K17: 15 | M17: 13 | N17: 0.06596679812 | O17: 0.06124368677 | Q17: 0.0564040404 | R17: 0.05869477098
B18: TWSC | G18: 6SB | J18: 02:15:00 | K18: 16 | M18: 14 | N18: 0.06802660164 | O18: 0.06475071836 | Q18: 0.06634343434 | R18: 0.06388325902
J19: 02:30:00 | K19: 17 | M19: 15 | N19: 0.08244874544 | O19: 0.06176621304 | Q19: 0.07272727273 | R19: 0.07482772598
E20: Progression Quality | G20: Non-Coordinated | J20: 02:45:00 | K20: 18 | M20: 16 | N20: 0.09928083281 | O20: 0.06887349618 | Q20: 0.08371717172 | R20: 0.08860964734
A21: Work Zone Active | B21: D2 | G21: Normal | J21: 03:00:00 | K21: 19 | M21: 17 | N21: 0.1198842362 | O21: 0.07071011734 | Q21: 0.09301010101 | R21: 0.1052290231
B22: D6 | G22: Coordinated | J22: 03:15:00 | K22: 20 | M22: 18 | N22: 0.08501875048 | O22: 0.05025652949 | Q22: 0.06278787879 | R22: 0.06866639643
B23: D2&D6 | J23: 03:30:00 | K23: 21 | M23: 19 | N23: 0.05634233805 | O23: 0.03750418647 | Q23: 0.04727272727 | R23: 0.03940008107
B24: None | J24: 03:45:00 | K24: 22 | M24: 20 | N24: 0.03791609272 | O24: 0.02389195017 | Q24: 0.03296969697 | R24: 0.02999594649
E25: Turn Lane Configuration | G25: None | J25: 04:00:00 | K25: 23 | M25: 21 | N25: 0.02571605066 | O25: 0.01580582961 | Q25: 0.01931313131 | R25: 0.02010539116
G26: Left | J26: 04:15:00 | K26: 24 | M26: 22 | N26: 0.00485498914 | O26: 0.007920324278 | Q26: 0.009292929293 | R26: 0.008917713822
A27: Coordination Setting | B27: Actu. | G27: Right | J27: 04:30:00 | K27: 25 | M27: 23 | N27: 0.002651079596 | O27: 0.004421348961 | Q27: 0.004525252525 | R27: 0.003486015403
B28: Coor. | G28: Both | J28: 04:45:00 | K28: 26
A29: Dictated Cycle Length | B29: FALSE | J29: 05:00:00 | K29: 27
A30: Default Cycle Length | B30: 180 | F30: Work Intensity | G30: Light | J30: 05:15:00 | K30: 28
A31: Delay Per mile drive way | B31: 0.1 | G31: Heavy | J31: 05:30:00 | K31: 29
J32: 05:45:00 | K32: 30
J33: 06:00:00 | K33: 31
A34: Main arterial type | B34: minor arterial type | C34: Percent Turn Major | D34: Percent Turn Minor | E34: Lost time per cycle for 2 phase | J34: 06:15:00 | K34: 32
A35: Major | B35: Major | C35: 0.1 | D35: 0.15 | J35: 06:30:00 | K35: 33
A36: Major | B36: Intermediate | C36: 0.11 | D36: 0.15 | J36: 06:45:00 | K36: 34
A37: Major | B37: Minor | C37: 0.12 | D37: 0.15 | J37: 07:00:00 | K37: 35
A38: Intermediate | B38: Major | C38: 0.13 | D38: 0.15 | J38: 07:15:00 | K38: 36
A39: Intermediate | B39: Intermediate | C39: 0.14 | D39: 0.15 | J39: 07:30:00 | K39: 37
A40: Intermediate | B40: Minor | C40: 0.15 | D40: 0.15 | J40: 07:45:00 | K40: 38
A41: Minor | B41: Major | C41: 0.16 | D41: 0.15 | J41: 08:00:00 | K41: 39
A42: Minor | B42: Intermediate | C42: 0.17 | D42: 0.15 | J42: 08:15:00 | K42: 40
A43: Minor | B43: Minor | C43: 0.08 | D43: 0.15 | J43: 08:30:00 | K43: 41
J44: 08:45:00 | K44: 42
J45: 09:00:00 | K45: 43
A46: Saturation Flow Rate: | B46: Major Arterial | C46: 1800 | J46: 09:15:00 | K46: 44
B47: Minor Arterial | C47: 1750 | J47: 09:30:00 | K47: 45
B48: Collector | C48: 1700 | J48: 09:45:00 | K48: 46
J49: 10:00:00 | K49: 47
A50: Sat flow for minor | B50: Major | C50: 1800 | J50: 10:15:00 | K50: 48
B51: Minor | C51: 1700 | J51: 10:30:00 | K51: 49
J52: 10:45:00 | K52: 50
J53: 11:00:00 | K53: 51
J54: 11:15:00 | K54: 52
J55: 11:30:00 | K55: 53
J56: 11:45:00 | K56: 54
J57: 12:00:00 | K57: 55
J58: 12:15:00 | K58: 56
J59: 12:30:00 | K59: 57
J60: 12:45:00 | K60: 58
J61: 13:00:00 | K61: 59
J62: 13:15:00 | K62: 60
J63: 13:30:00
J64: 13:45:00
J65: 14:00:00
J66: 14:15:00
J67: 14:30:00
J68: 14:45:00
J69: 15:00:00
J70: 15:15:00
J71: 15:30:00
J72: 15:45:00
J73: 16:00:00
J74: 16:15:00
J75: 16:30:00
J76: 16:45:00
J77: 17:00:00
J78: 17:15:00
J79: 17:30:00
J80: 17:45:00
J81: 18:00:00
J82: 18:15:00
J83: 18:30:00
J84: 18:45:00
J85: 19:00:00
J86: 19:15:00
J87: 19:30:00
J88: 19:45:00
J89: 20:00:00
J90: 20:15:00
J91: 20:30:00
J92: 20:45:00
J93: 21:00:00
J94: 21:15:00
J95: 21:30:00
J96: 21:45:00
J97: 22:00:00
J98: 22:15:00
J99: 22:30:00
J100: 22:45:00
J101: 23:00:00
J102: 23:15:00
J103: 23:30:00
J104: 23:45:00
A125: Chart Formulas
B126: =0 -> 0 | C126: =B126+'Facility Features'!E8 -> 0 | D126: =C126+'Facility Features'!#REF! ->  | E126: =D126+'Facility Features'!#REF! ->  | F126: =E126+'Facility Features'!#REF! ->  | G126: =F126+'Facility Features'!#REF! ->  | H126: =G126+'Facility Features'!#REF! ->  | I126: =H126+'Facility Features'!#REF! ->  | J126: =I126+'Facility Features'!J8 ->  | K126: =J126+'Facility Features'!#REF! ->  | L126: =K126+'Facility Features'!#REF! ->  | M126: =L126+'Facility Features'!#REF! ->  | N126: =M126+'Facility Features'!#REF! ->  | O126: =N126+'Facility Features'!#REF! ->  | P126: =O126+'Facility Features'!#REF! ->  | Q126: =P126+'Facility Features'!#REF! ->  | R126: =Q126+'Facility Features'!#REF! ->  | S126: =R126+'Facility Features'!#REF! ->  | T126: =S126+'Facility Features'!#REF! -> 

Sheet Unserved Vehicles (hidden)
B2: Unserved Vehicles on the Facility Features(veh):
B3: Direction 2:
B4: Feature #: | E4: 1 | F4: 2 | G4: 3 | H4: 4 | I4: 5
B5: Feature Name:
B6: Feature Type: | E6: Int. | F6: Link | G6: Int. | H6: Link | I6: Int.
B7: Feature Length:
B8: t=1 | C8: =Start!F10 -> 07:15:00 | D8: =C8+'Signal Timing'!$E$1 -> 07:30:00 | F8: 0 | H8: 0
B9: t=2 | C9: =D8 -> 07:30:00 | D9: =C9+'Signal Timing'!$E$1 -> 07:45:00 | F9: 0 | H9: 0
B10: t=3 | C10: =D9 -> 07:45:00 | D10: =C10+'Signal Timing'!$E$1 -> 08:00:00 | F10: 0 | H10: 0
B11: t=4 | C11: 08:00:00 | D11: =C11+'Signal Timing'!$E$1 -> 08:15:00 | F11: 0 | H11: 0
B12: t=5 | C12: 08:15:00 | D12: =C12+'Signal Timing'!$E$1 -> 08:30:00 | F12: 0 | H12: 0
B13: t=6 | C13: 08:30:00 | D13: =C13+'Signal Timing'!$E$1 -> 08:45:00 | F13: 2034.89568 | H13: 0
B14: t=7 | C14: 08:45:00 | D14: =C14+'Signal Timing'!$E$1 -> 09:00:00 | F14: 1322.234223 | H14: 0
B15: t=8 | C15: 09:00:00 | D15: =C15+'Signal Timing'!$E$1 -> 09:15:00 | F15: 755.1747095 | H15: 0
B16: t=9 | C16: 09:15:00 | D16: =C16+'Signal Timing'!$E$1 -> 09:30:00 | F16: 0 | H16: 0
B17: t=10 | C17: 09:30:00 | D17: =C17+'Signal Timing'!$E$1 -> 09:45:00 | F17: 0 | H17: 0
B18: t=11 | C18: 09:45:00 | D18: =C18+'Signal Timing'!$E$1 -> 10:00:00 | F18: 0 | H18: 0
B19: t=12 | C19: 10:00:00 | D19: =C19+'Signal Timing'!$E$1 -> 10:15:00 | F19: 0 | H19: 0
B20: t=13 | C20: 10:15:00 | D20: =C20+'Signal Timing'!$E$1 -> 10:30:00 | F20: 0 | H20: 0
B21: t=14 | C21: 10:30:00 | D21: =C21+'Signal Timing'!$E$1 -> 10:45:00 | F21: 0 | H21: 0
B22: t=15 | C22: 10:45:00 | D22: =C22+'Signal Timing'!$E$1 -> 11:00:00 | F22: 0 | H22: 0
B23: t=16 | C23: 11:00:00 | D23: =C23+'Signal Timing'!$E$1 -> 11:15:00 | F23: 0 | H23: 0
B24: t=17 | C24: 11:15:00 | D24: =C24+'Signal Timing'!$E$1 -> 11:30:00 | F24: 0 | H24: 0
B25: t=18 | C25: 11:30:00 | D25: =C25+'Signal Timing'!$E$1 -> 11:45:00 | F25: 0 | H25: 0
B26: t=19 | C26: 11:45:00 | D26: =C26+'Signal Timing'!$E$1 -> 12:00:00 | F26: 0 | H26: 0
B27: t=20 | C27: 12:00:00 | D27: =C27+'Signal Timing'!$E$1 -> 12:15:00 | F27: 0 | H27: 0
B28: t=21 | C28: 12:15:00 | D28: =C28+'Signal Timing'!$E$1 -> 12:30:00
B29: t=22 | C29: 12:30:00 | D29: =C29+'Signal Timing'!$E$1 -> 12:45:00
B30: t=23 | C30: 12:45:00 | D30: =C30+'Signal Timing'!$E$1 -> 13:00:00
B31: t=24 | C31: 13:00:00 | D31: =C31+'Signal Timing'!$E$1 -> 13:15:00
B32: t=25 | C32: 13:15:00 | D32: =C32+'Signal Timing'!$E$1 -> 13:30:00
B33: t=26 | C33: 13:30:00 | D33: =C33+'Signal Timing'!$E$1 -> 13:45:00
B34: t=27 | C34: 13:45:00 | D34: =C34+'Signal Timing'!$E$1 -> 14:00:00
B35: t=28 | C35: 14:00:00 | D35: =C35+'Signal Timing'!$E$1 -> 14:15:00
B36: t=29 | C36: 14:15:00 | D36: =C36+'Signal Timing'!$E$1 -> 14:30:00
B37: t=30 | C37: 14:30:00 | D37: =C37+'Signal Timing'!$E$1 -> 14:45:00
B38: t=31 | C38: 14:45:00 | D38: =C38+'Signal Timing'!$E$1 -> 15:00:00
B39: t=32 | C39: 15:00:00 | D39: =C39+'Signal Timing'!$E$1 -> 15:15:00
B40: t=33 | C40: 15:15:00 | D40: =C40+'Signal Timing'!$E$1 -> 15:30:00
B41: t=34 | C41: 15:30:00 | D41: =C41+'Signal Timing'!$E$1 -> 15:45:00
B42: t=35 | C42: 15:45:00 | D42: =C42+'Signal Timing'!$E$1 -> 16:00:00
B43: t=36 | C43: 16:00:00 | D43: =C43+'Signal Timing'!$E$1 -> 16:15:00
B44: t=37 | C44: 16:15:00 | D44: =C44+'Signal Timing'!$E$1 -> 16:30:00
B45: t=38 | C45: 16:30:00 | D45: =C45+'Signal Timing'!$E$1 -> 16:45:00
B46: t=39 | C46: 16:45:00 | D46: =C46+'Signal Timing'!$E$1 -> 17:00:00
B47: t=40 | C47: 17:00:00 | D47: =C47+'Signal Timing'!$E$1 -> 17:15:00
B48: t=41 | C48: 17:15:00 | D48: =C48+'Signal Timing'!$E$1 -> 17:30:00
B49: t=42 | C49: 17:30:00 | D49: =C49+'Signal Timing'!$E$1 -> 17:45:00
B50: t=43 | C50: 17:45:00 | D50: =C50+'Signal Timing'!$E$1 -> 18:00:00
B51: t=44 | C51: 18:00:00 | D51: =C51+'Signal Timing'!$E$1 -> 18:15:00
B52: t=45 | C52: 18:15:00 | D52: =C52+'Signal Timing'!$E$1 -> 18:30:00
B53: t=46 | C53: 18:30:00 | D53: =C53+'Signal Timing'!$E$1 -> 18:45:00
B54: t=47 | C54: 18:45:00 | D54: =C54+'Signal Timing'!$E$1 -> 19:00:00
B55: t=48 | C55: 19:00:00 | D55: =C55+'Signal Timing'!$E$1 -> 19:15:00
B56: t=49 | C56: 19:15:00 | D56: =C56+'Signal Timing'!$E$1 -> 19:30:00
B57: t=50 | C57: 19:30:00 | D57: =C57+'Signal Timing'!$E$1 -> 19:45:00
B58: t=51 | C58: 19:45:00 | D58: =C58+'Signal Timing'!$E$1 -> 20:00:00
B59: t=52 | C59: 20:00:00 | D59: =C59+'Signal Timing'!$E$1 -> 20:15:00
B60: t=53 | C60: 20:15:00 | D60: =C60+'Signal Timing'!$E$1 -> 20:30:00
B61: t=54 | C61: 20:30:00 | D61: =C61+'Signal Timing'!$E$1 -> 20:45:00
B62: t=55 | C62: 20:45:00 | D62: =C62+'Signal Timing'!$E$1 -> 21:00:00
B63: t=56 | C63: 21:00:00 | D63: =C63+'Signal Timing'!$E$1 -> 21:15:00
B64: t=57 | C64: 21:15:00 | D64: =C64+'Signal Timing'!$E$1 -> 21:30:00
B65: t=58 | C65: 21:30:00 | D65: =C65+'Signal Timing'!$E$1 -> 21:45:00
B66: t=59 | C66: 21:45:00 | D66: =C66+'Signal Timing'!$E$1 -> 22:00:00
B67: t=60 | C67: 22:00:00 | D67: =C67+'Signal Timing'!$E$1 -> 22:15:00
B68: t=61 | C68: 22:15:00 | D68: =C68+'Signal Timing'!$E$1 -> 22:30:00
B69: t=62 | C69: 22:30:00 | D69: =C69+'Signal Timing'!$E$1 -> 22:45:00
B70: t=63 | C70: 22:45:00 | D70: =C70+'Signal Timing'!$E$1 -> 23:00:00
B71: t=64 | C71: 23:00:00 | D71: =C71+'Signal Timing'!$E$1 -> 23:15:00
B72: t=65 | C72: 23:15:00 | D72: =C72+'Signal Timing'!$E$1 -> 23:30:00
B73: t=66 | C73: 23:30:00 | D73: =C73+'Signal Timing'!$E$1 -> 23:45:00
B74: t=67 | C74: =D73 -> 23:45:00 | D74: =C74+'Signal Timing'!$E$1 -> 1
B75: t=68 | C75: 1 | D75: =C75+'Signal Timing'!$E$1 -> 1.010416667
B76: t=69 | C76: 1.010416667 | D76: =C76+'Signal Timing'!$E$1 -> 1.020833333
B77: t=70 | C77: 1.020833333 | D77: =C77+'Signal Timing'!$E$1 -> 1.03125
B78: t=71 | C78: 1.03125 | D78: =C78+'Signal Timing'!$E$1 -> 1.041666667
B79: t=72 | C79: 1.041666667 | D79: =C79+'Signal Timing'!$E$1 -> 1.052083333
B80: t=73 | C80: 1.052083333 | D80: =C80+'Signal Timing'!$E$1 -> 1.0625
B81: t=74 | C81: 1.0625 | D81: =C81+'Signal Timing'!$E$1 -> 1.072916667
B82: t=75 | C82: 1.072916667 | D82: =C82+'Signal Timing'!$E$1 -> 1.083333333
B83: t=76 | C83: 1.083333333 | D83: =C83+'Signal Timing'!$E$1 -> 1.09375
B84: t=77 | C84: 1.09375 | D84: =C84+'Signal Timing'!$E$1 -> 1.104166667
B85: t=78 | C85: 1.104166667 | D85: =C85+'Signal Timing'!$E$1 -> 1.114583333
B86: t=79 | C86: 1.114583333 | D86: =C86+'Signal Timing'!$E$1 -> 1.125
B87: t=80 | C87: 1.125 | D87: =C87+'Signal Timing'!$E$1 -> 1.135416667
B88: t=81 | C88: 1.135416667 | D88: =C88+'Signal Timing'!$E$1 -> 1.145833333
B89: t=82 | C89: 1.145833333 | D89: =C89+'Signal Timing'!$E$1 -> 1.15625
B90: t=83 | C90: 1.15625 | D90: =C90+'Signal Timing'!$E$1 -> 1.166666667
B91: t=84 | C91: 1.166666667 | D91: =C91+'Signal Timing'!$E$1 -> 1.177083333
B92: t=85 | C92: 1.177083333 | D92: =C92+'Signal Timing'!$E$1 -> 1.1875
B93: t=86 | C93: 1.1875 | D93: =C93+'Signal Timing'!$E$1 -> 1.197916667
B94: t=87 | C94: 1.197916667 | D94: =C94+'Signal Timing'!$E$1 -> 1.208333333
B95: t=88 | C95: 1.208333333 | D95: =C95+'Signal Timing'!$E$1 -> 1.21875
B96: t=89 | C96: 1.21875 | D96: =C96+'Signal Timing'!$E$1 -> 1.229166667
B97: t=90 | C97: 1.229166667 | D97: =C97+'Signal Timing'!$E$1 -> 1.239583333
B98: t=91 | C98: 1.239583333 | D98: =C98+'Signal Timing'!$E$1 -> 1.25
B99: t=92 | C99: 1.25 | D99: =C99+'Signal Timing'!$E$1 -> 1.260416667
B100: t=93 | C100: 1.260416667 | D100: =C100+'Signal Timing'!$E$1 -> 1.270833333
B101: t=94 | C101: 1.270833333 | D101: =C101+'Signal Timing'!$E$1 -> 1.28125
B102: t=95 | C102: 1.28125 | D102: =C102+'Signal Timing'!$E$1 -> 1.291666667
B103: t=96 | C103: 1.291666667 | D103: =C103+'Signal Timing'!$E$1 -> 1.302083333
B105: Direction 6:
B106: Feature #: | E106: 1 | F106: 2 | G106: 3 | H106: 4 | I106: 5
B107: Feature Name:
B108: Feature Type: | E108: Int. | F108: Link | G108: Int. | H108: Link | I108: Int.
B109: Feature Length:
B110: t=1 | C110: =C8 -> 07:15:00 | D110: =D8 -> 07:30:00 | F110: 0 | H110: 0
B111: t=2 | C111: =C9 -> 07:30:00 | D111: 07:45:00 | F111: 0 | H111: 0
B112: t=3 | C112: =C10 -> 07:45:00 | D112: 08:00:00 | F112: 0 | H112: 0
B113: t=4 | C113: =C11 -> 08:00:00 | D113: 08:15:00 | F113: 0 | H113: 0
B114: t=5 | C114: =C12 -> 08:15:00 | D114: 08:30:00 | F114: 0 | H114: 0
B115: t=6 | C115: =C13 -> 08:30:00 | D115: 08:45:00 | F115: 0 | H115: 1416.14568
B116: t=7 | C116: =C14 -> 08:45:00 | D116: 09:00:00 | F116: 0 | H116: 0
B117: t=8 | C117: =C15 -> 09:00:00 | D117: 09:15:00 | F117: 0 | H117: 0
B118: t=9 | C118: =C16 -> 09:15:00 | D118: 09:30:00 | F118: 0 | H118: 0
B119: t=10 | C119: =C17 -> 09:30:00 | D119: 09:45:00 | F119: 0 | H119: 0
B120: t=11 | C120: =C18 -> 09:45:00 | D120: 10:00:00 | F120: 0 | H120: 0
B121: t=12 | C121: =C19 -> 10:00:00 | D121: 10:15:00 | F121: 0 | H121: 0
B122: t=13 | C122: =C20 -> 10:15:00 | D122: 10:30:00 | F122: 0 | H122: 0
B123: t=14 | C123: =C21 -> 10:30:00 | D123: 10:45:00 | F123: 0 | H123: 0
B124: t=15 | C124: =C22 -> 10:45:00 | D124: 11:00:00 | F124: 0 | H124: 0
B125: t=16 | C125: =C23 -> 11:00:00 | D125: 11:15:00 | F125: 0 | H125: 0
B126: t=17 | C126: =C24 -> 11:15:00 | D126: 11:30:00 | F126: 0 | H126: 0
B127: t=18 | C127: =C25 -> 11:30:00 | D127: 11:45:00 | F127: 0 | H127: 0
B128: t=19 | C128: =C26 -> 11:45:00 | D128: 12:00:00 | F128: 0 | H128: 0
B129: t=20 | C129: =C27 -> 12:00:00 | D129: 12:15:00 | F129: 0 | H129: 0
B130: t=21 | C130: =C28 -> 12:15:00 | D130: 12:30:00
B131: t=22 | C131: =C29 -> 12:30:00 | D131: 12:45:00
B132: t=23 | C132: =C30 -> 12:45:00 | D132: 13:00:00
B133: t=24 | C133: =C31 -> 13:00:00 | D133: 13:15:00
B134: t=25 | C134: =C32 -> 13:15:00 | D134: 13:30:00
B135: t=26 | C135: =C33 -> 13:30:00 | D135: 13:45:00
B136: t=27 | C136: =C34 -> 13:45:00 | D136: 14:00:00
B137: t=28 | C137: =C35 -> 14:00:00 | D137: 14:15:00
B138: t=29 | C138: =C36 -> 14:15:00 | D138: 14:30:00
B139: t=30 | C139: =C37 -> 14:30:00 | D139: 14:45:00
B140: t=31 | C140: =C38 -> 14:45:00 | D140: 15:00:00
B141: t=32 | C141: =C39 -> 15:00:00 | D141: 15:15:00
B142: t=33 | C142: =C40 -> 15:15:00 | D142: 15:30:00
B143: t=34 | C143: =C41 -> 15:30:00 | D143: 15:45:00
B144: t=35 | C144: =C42 -> 15:45:00 | D144: 16:00:00
B145: t=36 | C145: =C43 -> 16:00:00 | D145: 16:15:00
B146: t=37 | C146: =C44 -> 16:15:00 | D146: 16:30:00
B147: t=38 | C147: =C45 -> 16:30:00 | D147: 16:45:00
B148: t=39 | C148: =C46 -> 16:45:00 | D148: 17:00:00
B149: t=40 | C149: =C47 -> 17:00:00 | D149: 17:15:00
B150: t=41 | C150: =C48 -> 17:15:00 | D150: 17:30:00
B151: t=42 | C151: =C49 -> 17:30:00 | D151: 17:45:00
B152: t=43 | C152: =C50 -> 17:45:00 | D152: 18:00:00
B153: t=44 | C153: =C51 -> 18:00:00 | D153: 18:15:00
B154: t=45 | C154: =C52 -> 18:15:00 | D154: 18:30:00
B155: t=46 | C155: =C53 -> 18:30:00 | D155: 18:45:00
B156: t=47 | C156: =C54 -> 18:45:00 | D156: 19:00:00
B157: t=48 | C157: =C55 -> 19:00:00 | D157: 19:15:00
B158: t=49 | C158: =C56 -> 19:15:00 | D158: 19:30:00
B159: t=50 | C159: =C57 -> 19:30:00 | D159: 19:45:00
B160: t=51 | C160: =C58 -> 19:45:00 | D160: 20:00:00
B161: t=52 | C161: =C59 -> 20:00:00 | D161: 20:15:00
B162: t=53 | C162: =C60 -> 20:15:00 | D162: 20:30:00
B163: t=54 | C163: =C61 -> 20:30:00 | D163: 20:45:00
B164: t=55 | C164: =C62 -> 20:45:00 | D164: 21:00:00
B165: t=56 | C165: =C63 -> 21:00:00 | D165: 21:15:00
B166: t=57 | C166: =C64 -> 21:15:00 | D166: 21:30:00
B167: t=58 | C167: =C65 -> 21:30:00 | D167: 21:45:00
B168: t=59 | C168: =C66 -> 21:45:00 | D168: 22:00:00
B169: t=60 | C169: =C67 -> 22:00:00 | D169: 22:15:00
B170: t=61 | C170: =C68 -> 22:15:00 | D170: 22:30:00
B171: t=62 | C171: =C69 -> 22:30:00 | D171: 22:45:00
B172: t=63 | C172: =C70 -> 22:45:00 | D172: 23:00:00
B173: t=64 | C173: =C71 -> 23:00:00 | D173: 23:15:00
B174: t=65 | C174: =C72 -> 23:15:00 | D174: 23:30:00
B175: t=66 | C175: =C73 -> 23:30:00 | D175: 23:45:00
B176: t=67 | C176: =C74 -> 23:45:00 | D176: 1
B177: t=68 | C177: =C75 -> 1 | D177: 1.010416667
B178: t=69 | C178: =C76 -> 1.010416667 | D178: 1.020833333
B179: t=70 | C179: =C77 -> 1.020833333 | D179: 1.03125
B180: t=71 | C180: =C78 -> 1.03125 | D180: 1.041666667
B181: t=72 | C181: =C79 -> 1.041666667 | D181: 1.052083333
B182: t=73 | C182: =C80 -> 1.052083333 | D182: 1.0625
B183: t=74 | C183: =C81 -> 1.0625 | D183: 1.072916667
B184: t=75 | C184: =C82 -> 1.072916667 | D184: 1.083333333
B185: t=76 | C185: =C83 -> 1.083333333 | D185: 1.09375
B186: t=77 | C186: =C84 -> 1.09375 | D186: 1.104166667
B187: t=78 | C187: =C85 -> 1.104166667 | D187: 1.114583333
B188: t=79 | C188: =C86 -> 1.114583333 | D188: 1.125
B189: t=80 | C189: =C87 -> 1.125 | D189: 1.135416667
B190: t=81 | C190: =C88 -> 1.135416667 | D190: 1.145833333
B191: t=82 | C191: =C89 -> 1.145833333 | D191: 1.15625
B192: t=83 | C192: =C90 -> 1.15625 | D192: 1.166666667
B193: t=84 | C193: =C91 -> 1.166666667 | D193: 1.177083333
B194: t=85 | C194: =C92 -> 1.177083333 | D194: 1.1875
B195: t=86 | C195: =C93 -> 1.1875 | D195: 1.197916667
B196: t=87 | C196: =C94 -> 1.197916667 | D196: 1.208333333
B197: t=88 | C197: =C95 -> 1.208333333 | D197: 1.21875
B198: t=89 | C198: =C96 -> 1.21875 | D198: 1.229166667
B199: t=90 | C199: =C97 -> 1.229166667 | D199: 1.239583333
B200: t=91 | C200: =C98 -> 1.239583333 | D200: 1.25
B201: t=92 | C201: =C99 -> 1.25 | D201: 1.260416667
B202: t=93 | C202: =C100 -> 1.260416667 | D202: 1.270833333
... 3 more rows

Sheet TTI (hidden)
B2: Travel Time Index (TTI) on the Facility Features:
B4: Direction 2:
B5: Feature #: | E5: 1 | F5: 2 | G5: 3 | H5: 4 | I5: 5
B6: Feature Name:
B7: Feature Type: | E7: Int. | F7: Link | G7: Int. | H7: Link | I7: Int.
B8: t=1 | C8: ='Unserved Vehicles'!C8 -> 07:15:00 | D8: ='Unserved Vehicles'!D8 -> 07:30:00 | F8: 3.049254484 | H8: 3.182728221
B9: t=2 | C9: ='Unserved Vehicles'!C9 -> 07:30:00 | D9: ='Unserved Vehicles'!D9 -> 07:45:00 | F9: 2.874756414 | H9: 2.988077096
B10: t=3 | C10: ='Unserved Vehicles'!C10 -> 07:45:00 | D10: ='Unserved Vehicles'!D10 -> 08:00:00 | F10: 3.103353121 | H10: 3.26571351
B11: t=4 | C11: ='Unserved Vehicles'!C11 -> 08:00:00 | D11: ='Unserved Vehicles'!D11 -> 08:15:00 | F11: 3.141472574 | H11: 3.307582029
B12: t=5 | C12: ='Unserved Vehicles'!C12 -> 08:15:00 | D12: ='Unserved Vehicles'!D12 -> 08:30:00 | F12: 3.202229167 | H12: 3.37696363
B13: t=6 | C13: ='Unserved Vehicles'!C13 -> 08:30:00 | D13: ='Unserved Vehicles'!D13 -> 08:45:00 | F13: 7.543811794 | H13: 3.19517826
B14: t=7 | C14: ='Unserved Vehicles'!C14 -> 08:45:00 | D14: ='Unserved Vehicles'!D14 -> 09:00:00 | F14: 3.237646685 | H14: 3.302564343
B15: t=8 | C15: ='Unserved Vehicles'!C15 -> 09:00:00 | D15: ='Unserved Vehicles'!D15 -> 09:15:00 | F15: 3.260564571 | H15: 3.34109949
B16: t=9 | C16: ='Unserved Vehicles'!C16 -> 09:15:00 | D16: ='Unserved Vehicles'!D16 -> 09:30:00 | F16: 2.590866702 | H16: 2.867687336
B17: t=10 | C17: ='Unserved Vehicles'!C17 -> 09:30:00 | D17: ='Unserved Vehicles'!D17 -> 09:45:00 | F17: 2.713125248 | H17: 3.054487258
B18: t=11 | C18: ='Unserved Vehicles'!C18 -> 09:45:00 | D18: ='Unserved Vehicles'!D18 -> 10:00:00 | F18: 2.716441196 | H18: 3.060493931
B19: t=12 | C19: ='Unserved Vehicles'!C19 -> 10:00:00 | D19: ='Unserved Vehicles'!D19 -> 10:15:00 | F19: 2.699204644 | H19: 3.032676568
B20: t=13 | C20: ='Unserved Vehicles'!C20 -> 10:15:00 | D20: ='Unserved Vehicles'!D20 -> 10:30:00 | F20: 2.697105143 | H20: 3.028585555
B21: t=14 | C21: ='Unserved Vehicles'!C21 -> 10:30:00 | D21: ='Unserved Vehicles'!D21 -> 10:45:00 | F21: 2.695131929 | H21: 3.025526502
B22: t=15 | C22: ='Unserved Vehicles'!C22 -> 10:45:00 | D22: ='Unserved Vehicles'!D22 -> 11:00:00 | F22: 2.693781436 | H22: 3.022561436
B23: t=16 | C23: ='Unserved Vehicles'!C23 -> 11:00:00 | D23: ='Unserved Vehicles'!D23 -> 11:15:00 | F23: 2.596941756 | H23: 2.87450372
B24: t=17 | C24: ='Unserved Vehicles'!C24 -> 11:15:00 | D24: ='Unserved Vehicles'!D24 -> 11:30:00 | F24: 2.611348911 | H24: 2.896809106
B25: t=18 | C25: ='Unserved Vehicles'!C25 -> 11:30:00 | D25: ='Unserved Vehicles'!D25 -> 11:45:00 | F25: 2.625648112 | H25: 2.91892317
B26: t=19 | C26: ='Unserved Vehicles'!C26 -> 11:45:00 | D26: ='Unserved Vehicles'!D26 -> 12:00:00 | F26: 2.63985433 | H26: 2.941683443
B27: t=20 | C27: ='Unserved Vehicles'!C27 -> 12:00:00 | D27: ='Unserved Vehicles'!D27 -> 12:15:00 | F27: 2.653753286 | H27: 2.964746808
B28: t=21 | C28: ='Unserved Vehicles'!C28 -> 12:15:00 | D28: ='Unserved Vehicles'!D28 -> 12:30:00
B29: t=22 | C29: ='Unserved Vehicles'!C29 -> 12:30:00 | D29: ='Unserved Vehicles'!D29 -> 12:45:00
B30: t=23 | C30: ='Unserved Vehicles'!C30 -> 12:45:00 | D30: ='Unserved Vehicles'!D30 -> 13:00:00
B31: t=24 | C31: ='Unserved Vehicles'!C31 -> 13:00:00 | D31: ='Unserved Vehicles'!D31 -> 13:15:00
B32: t=25 | C32: ='Unserved Vehicles'!C32 -> 13:15:00 | D32: ='Unserved Vehicles'!D32 -> 13:30:00
B33: t=26 | C33: ='Unserved Vehicles'!C33 -> 13:30:00 | D33: ='Unserved Vehicles'!D33 -> 13:45:00
B34: t=27 | C34: ='Unserved Vehicles'!C34 -> 13:45:00 | D34: ='Unserved Vehicles'!D34 -> 14:00:00
B35: t=28 | C35: ='Unserved Vehicles'!C35 -> 14:00:00 | D35: ='Unserved Vehicles'!D35 -> 14:15:00
B36: t=29 | C36: ='Unserved Vehicles'!C36 -> 14:15:00 | D36: ='Unserved Vehicles'!D36 -> 14:30:00
B37: t=30 | C37: ='Unserved Vehicles'!C37 -> 14:30:00 | D37: ='Unserved Vehicles'!D37 -> 14:45:00
B38: t=31 | C38: ='Unserved Vehicles'!C38 -> 14:45:00 | D38: ='Unserved Vehicles'!D38 -> 15:00:00
B39: t=32 | C39: ='Unserved Vehicles'!C39 -> 15:00:00 | D39: ='Unserved Vehicles'!D39 -> 15:15:00
B40: t=33 | C40: ='Unserved Vehicles'!C40 -> 15:15:00 | D40: ='Unserved Vehicles'!D40 -> 15:30:00
B41: t=34 | C41: ='Unserved Vehicles'!C41 -> 15:30:00 | D41: ='Unserved Vehicles'!D41 -> 15:45:00
B42: t=35 | C42: ='Unserved Vehicles'!C42 -> 15:45:00 | D42: ='Unserved Vehicles'!D42 -> 16:00:00
B43: t=36 | C43: ='Unserved Vehicles'!C43 -> 16:00:00 | D43: ='Unserved Vehicles'!D43 -> 16:15:00
B44: t=37 | C44: ='Unserved Vehicles'!C44 -> 16:15:00 | D44: ='Unserved Vehicles'!D44 -> 16:30:00
B45: t=38 | C45: ='Unserved Vehicles'!C45 -> 16:30:00 | D45: ='Unserved Vehicles'!D45 -> 16:45:00
B46: t=39 | C46: ='Unserved Vehicles'!C46 -> 16:45:00 | D46: ='Unserved Vehicles'!D46 -> 17:00:00
B47: t=40 | C47: ='Unserved Vehicles'!C47 -> 17:00:00 | D47: ='Unserved Vehicles'!D47 -> 17:15:00
B48: t=41 | C48: ='Unserved Vehicles'!C48 -> 17:15:00 | D48: ='Unserved Vehicles'!D48 -> 17:30:00
B49: t=42 | C49: ='Unserved Vehicles'!C49 -> 17:30:00 | D49: ='Unserved Vehicles'!D49 -> 17:45:00
B50: t=43 | C50: ='Unserved Vehicles'!C50 -> 17:45:00 | D50: ='Unserved Vehicles'!D50 -> 18:00:00
B51: t=44 | C51: ='Unserved Vehicles'!C51 -> 18:00:00 | D51: ='Unserved Vehicles'!D51 -> 18:15:00
B52: t=45 | C52: ='Unserved Vehicles'!C52 -> 18:15:00 | D52: ='Unserved Vehicles'!D52 -> 18:30:00
B53: t=46 | C53: ='Unserved Vehicles'!C53 -> 18:30:00 | D53: ='Unserved Vehicles'!D53 -> 18:45:00
B54: t=47 | C54: ='Unserved Vehicles'!C54 -> 18:45:00 | D54: ='Unserved Vehicles'!D54 -> 19:00:00
B55: t=48 | C55: ='Unserved Vehicles'!C55 -> 19:00:00 | D55: ='Unserved Vehicles'!D55 -> 19:15:00
B56: t=49 | C56: ='Unserved Vehicles'!C56 -> 19:15:00 | D56: ='Unserved Vehicles'!D56 -> 19:30:00
B57: t=50 | C57: ='Unserved Vehicles'!C57 -> 19:30:00 | D57: ='Unserved Vehicles'!D57 -> 19:45:00
B58: t=51 | C58: ='Unserved Vehicles'!C58 -> 19:45:00 | D58: ='Unserved Vehicles'!D58 -> 20:00:00
B59: t=52 | C59: ='Unserved Vehicles'!C59 -> 20:00:00 | D59: ='Unserved Vehicles'!D59 -> 20:15:00
B60: t=53 | C60: ='Unserved Vehicles'!C60 -> 20:15:00 | D60: ='Unserved Vehicles'!D60 -> 20:30:00
B61: t=54 | C61: ='Unserved Vehicles'!C61 -> 20:30:00 | D61: ='Unserved Vehicles'!D61 -> 20:45:00
B62: t=55 | C62: ='Unserved Vehicles'!C62 -> 20:45:00 | D62: ='Unserved Vehicles'!D62 -> 21:00:00
B63: t=56 | C63: ='Unserved Vehicles'!C63 -> 21:00:00 | D63: ='Unserved Vehicles'!D63 -> 21:15:00
B64: t=57 | C64: ='Unserved Vehicles'!C64 -> 21:15:00 | D64: ='Unserved Vehicles'!D64 -> 21:30:00
B65: t=58 | C65: ='Unserved Vehicles'!C65 -> 21:30:00 | D65: ='Unserved Vehicles'!D65 -> 21:45:00
B66: t=59 | C66: ='Unserved Vehicles'!C66 -> 21:45:00 | D66: ='Unserved Vehicles'!D66 -> 22:00:00
B67: t=60 | C67: ='Unserved Vehicles'!C67 -> 22:00:00 | D67: ='Unserved Vehicles'!D67 -> 22:15:00
B68: t=61 | C68: ='Unserved Vehicles'!C68 -> 22:15:00 | D68: ='Unserved Vehicles'!D68 -> 22:30:00
B69: t=62 | C69: ='Unserved Vehicles'!C69 -> 22:30:00 | D69: ='Unserved Vehicles'!D69 -> 22:45:00
B70: t=63 | C70: ='Unserved Vehicles'!C70 -> 22:45:00 | D70: ='Unserved Vehicles'!D70 -> 23:00:00
B71: t=64 | C71: ='Unserved Vehicles'!C71 -> 23:00:00 | D71: ='Unserved Vehicles'!D71 -> 23:15:00
B72: t=65 | C72: ='Unserved Vehicles'!C72 -> 23:15:00 | D72: ='Unserved Vehicles'!D72 -> 23:30:00
B73: t=66 | C73: ='Unserved Vehicles'!C73 -> 23:30:00 | D73: ='Unserved Vehicles'!D73 -> 23:45:00
B74: t=67 | C74: ='Unserved Vehicles'!C74 -> 23:45:00 | D74: ='Unserved Vehicles'!D74 -> 1
B75: t=68 | C75: ='Unserved Vehicles'!C75 -> 1 | D75: ='Unserved Vehicles'!D75 -> 1.010416667
B76: t=69 | C76: ='Unserved Vehicles'!C76 -> 1.010416667 | D76: ='Unserved Vehicles'!D76 -> 1.020833333
B77: t=70 | C77: ='Unserved Vehicles'!C77 -> 1.020833333 | D77: ='Unserved Vehicles'!D77 -> 1.03125
B78: t=71 | C78: ='Unserved Vehicles'!C78 -> 1.03125 | D78: ='Unserved Vehicles'!D78 -> 1.041666667
B79: t=72 | C79: ='Unserved Vehicles'!C79 -> 1.041666667 | D79: ='Unserved Vehicles'!D79 -> 1.052083333
B80: t=73 | C80: ='Unserved Vehicles'!C80 -> 1.052083333 | D80: ='Unserved Vehicles'!D80 -> 1.0625
B81: t=74 | C81: ='Unserved Vehicles'!C81 -> 1.0625 | D81: ='Unserved Vehicles'!D81 -> 1.072916667
B82: t=75 | C82: ='Unserved Vehicles'!C82 -> 1.072916667 | D82: ='Unserved Vehicles'!D82 -> 1.083333333
B83: t=76 | C83: ='Unserved Vehicles'!C83 -> 1.083333333 | D83: ='Unserved Vehicles'!D83 -> 1.09375
B84: t=77 | C84: ='Unserved Vehicles'!C84 -> 1.09375 | D84: ='Unserved Vehicles'!D84 -> 1.104166667
B85: t=78 | C85: ='Unserved Vehicles'!C85 -> 1.104166667 | D85: ='Unserved Vehicles'!D85 -> 1.114583333
B86: t=79 | C86: ='Unserved Vehicles'!C86 -> 1.114583333 | D86: ='Unserved Vehicles'!D86 -> 1.125
B87: t=80 | C87: ='Unserved Vehicles'!C87 -> 1.125 | D87: ='Unserved Vehicles'!D87 -> 1.135416667
B88: t=81 | C88: ='Unserved Vehicles'!C88 -> 1.135416667 | D88: ='Unserved Vehicles'!D88 -> 1.145833333
B89: t=82 | C89: ='Unserved Vehicles'!C89 -> 1.145833333 | D89: ='Unserved Vehicles'!D89 -> 1.15625
B90: t=83 | C90: ='Unserved Vehicles'!C90 -> 1.15625 | D90: ='Unserved Vehicles'!D90 -> 1.166666667
B91: t=84 | C91: ='Unserved Vehicles'!C91 -> 1.166666667 | D91: ='Unserved Vehicles'!D91 -> 1.177083333
B92: t=85 | C92: ='Unserved Vehicles'!C92 -> 1.177083333 | D92: ='Unserved Vehicles'!D92 -> 1.1875
B93: t=86 | C93: ='Unserved Vehicles'!C93 -> 1.1875 | D93: ='Unserved Vehicles'!D93 -> 1.197916667
B94: t=87 | C94: ='Unserved Vehicles'!C94 -> 1.197916667 | D94: ='Unserved Vehicles'!D94 -> 1.208333333
B95: t=88 | C95: ='Unserved Vehicles'!C95 -> 1.208333333 | D95: ='Unserved Vehicles'!D95 -> 1.21875
B96: t=89 | C96: ='Unserved Vehicles'!C96 -> 1.21875 | D96: ='Unserved Vehicles'!D96 -> 1.229166667
B97: t=90 | C97: ='Unserved Vehicles'!C97 -> 1.229166667 | D97: ='Unserved Vehicles'!D97 -> 1.239583333
B98: t=91 | C98: ='Unserved Vehicles'!C98 -> 1.239583333 | D98: ='Unserved Vehicles'!D98 -> 1.25
B99: t=92 | C99: ='Unserved Vehicles'!C99 -> 1.25 | D99: ='Unserved Vehicles'!D99 -> 1.260416667
B100: t=93 | C100: ='Unserved Vehicles'!C100 -> 1.260416667 | D100: ='Unserved Vehicles'!D100 -> 1.270833333
B101: t=94 | C101: ='Unserved Vehicles'!C101 -> 1.270833333 | D101: ='Unserved Vehicles'!D101 -> 1.28125
B102: t=95 | C102: ='Unserved Vehicles'!C102 -> 1.28125 | D102: ='Unserved Vehicles'!D102 -> 1.291666667
B103: t=96 | C103: ='Unserved Vehicles'!C103 -> 1.291666667 | D103: ='Unserved Vehicles'!D103 -> 1.302083333
B106: Direction 6:
B107: Feature #: | E107: 1 | F107: 2 | G107: 3 | H107: 4 | I107: 5
B108: Feature Name:
B109: Feature Type: | E109: Int. | F109: Link | G109: Int. | H109: Link | I109: Int.
B110: t=1 | C110: =C8 -> 07:15:00 | D110: =D8 -> 07:30:00 | F110: 4.271109669 | H110: 8.969335934
B111: t=2 | C111: =C9 -> 07:30:00 | D111: 07:45:00 | F111: 2.535404795 | H111: 2.51611855
B112: t=3 | C112: 07:45:00 | D112: 08:00:00 | F112: 2.563543147 | H112: 2.573623977
B113: t=4 | C113: 08:00:00 | D113: 08:15:00 | F113: 2.585727393 | H113: 2.618584999
B114: t=5 | C114: 08:15:00 | D114: 08:30:00 | F114: 2.687221001 | H114: 8.106447926
B115: t=6 | C115: 08:30:00 | D115: 08:45:00 | F115: 2.92350742 | H115: 14.14860783
B116: t=7 | C116: 08:45:00 | D116: 09:00:00 | F116: 2.975077526 | H116: 3.365552898
B117: t=8 | C117: 09:00:00 | D117: 09:15:00 | F117: 2.93892077 | H117: 3.10481868
B118: t=9 | C118: 09:15:00 | D118: 09:30:00 | F118: 2.843639692 | H118: 2.916314939
B119: t=10 | C119: 09:30:00 | D119: 09:45:00 | F119: 2.958943546 | H119: 3.077764624
B120: t=11 | C120: 09:45:00 | D120: 10:00:00 | F120: 2.921357471 | H120: 3.042230009
B121: t=12 | C121: 10:00:00 | D121: 10:15:00 | F121: 2.85948582 | H121: 2.974698114
B122: t=13 | C122: 10:15:00 | D122: 10:30:00 | F122: 2.825107849 | H122: 2.935812636
B123: t=14 | C123: 10:30:00 | D123: 10:45:00 | F123: 2.792045334 | H123: 2.898538851
B124: t=15 | C124: 10:45:00 | D124: 11:00:00 | F124: 2.760144963 | H124: 2.862706525
B125: t=16 | C125: 11:00:00 | D125: 11:15:00 | F125: 2.630794933 | H125: 2.697720326
B126: t=17 | C126: 11:15:00 | D126: 11:30:00 | F126: 2.649606113 | H126: 2.716663191
B127: t=18 | C127: =C25 -> 11:30:00 | D127: 11:45:00 | F127: 2.668073193 | H127: 2.735494848
B128: t=19 | C128: 11:45:00 | D128: 12:00:00 | F128: 2.686682181 | H128: 2.754243918
B129: t=20 | C129: 12:00:00 | D129: 12:15:00 | F129: 2.705007026 | H129: 2.7726892
B130: t=21 | C130: 12:15:00 | D130: 12:30:00
B131: t=22 | C131: 12:30:00 | D131: 12:45:00
B132: t=23 | C132: 12:45:00 | D132: 13:00:00
B133: t=24 | C133: 13:00:00 | D133: 13:15:00
B134: t=25 | C134: 13:15:00 | D134: 13:30:00
B135: t=26 | C135: 13:30:00 | D135: 13:45:00
B136: t=27 | C136: 13:45:00 | D136: 14:00:00
B137: t=28 | C137: 14:00:00 | D137: 14:15:00
B138: t=29 | C138: 14:15:00 | D138: 14:30:00
B139: t=30 | C139: 14:30:00 | D139: 14:45:00
B140: t=31 | C140: 14:45:00 | D140: 15:00:00
B141: t=32 | C141: 15:00:00 | D141: 15:15:00
B142: t=33 | C142: 15:15:00 | D142: 15:30:00
B143: t=34 | C143: =C41 -> 15:30:00 | D143: 15:45:00
B144: t=35 | C144: 15:45:00 | D144: 16:00:00
B145: t=36 | C145: 16:00:00 | D145: 16:15:00
B146: t=37 | C146: 16:15:00 | D146: 16:30:00
B147: t=38 | C147: 16:30:00 | D147: 16:45:00
B148: t=39 | C148: 16:45:00 | D148: 17:00:00
B149: t=40 | C149: 17:00:00 | D149: 17:15:00
B150: t=41 | C150: 17:15:00 | D150: 17:30:00
B151: t=42 | C151: 17:30:00 | D151: 17:45:00
B152: t=43 | C152: 17:45:00 | D152: 18:00:00
B153: t=44 | C153: 18:00:00 | D153: 18:15:00
B154: t=45 | C154: 18:15:00 | D154: 18:30:00
B155: t=46 | C155: 18:30:00 | D155: 18:45:00
B156: t=47 | C156: 18:45:00 | D156: 19:00:00
B157: t=48 | C157: 19:00:00 | D157: 19:15:00
B158: t=49 | C158: 19:15:00 | D158: 19:30:00
B159: t=50 | C159: =C57 -> 19:30:00 | D159: 19:45:00
B160: t=51 | C160: 19:45:00 | D160: 20:00:00
B161: t=52 | C161: 20:00:00 | D161: 20:15:00
B162: t=53 | C162: 20:15:00 | D162: 20:30:00
B163: t=54 | C163: 20:30:00 | D163: 20:45:00
B164: t=55 | C164: 20:45:00 | D164: 21:00:00
B165: t=56 | C165: 21:00:00 | D165: 21:15:00
B166: t=57 | C166: 21:15:00 | D166: 21:30:00
B167: t=58 | C167: 21:30:00 | D167: 21:45:00
B168: t=59 | C168: 21:45:00 | D168: 22:00:00
B169: t=60 | C169: 22:00:00 | D169: 22:15:00
B170: t=61 | C170: 22:15:00 | D170: 22:30:00
B171: t=62 | C171: 22:30:00 | D171: 22:45:00
B172: t=63 | C172: 22:45:00 | D172: 23:00:00
B173: t=64 | C173: 23:00:00 | D173: 23:15:00
B174: t=65 | C174: 23:15:00 | D174: 23:30:00
B175: t=66 | C175: =C73 -> 23:30:00 | D175: 23:45:00
B176: t=67 | C176: 23:45:00 | D176: 1
B177: t=68 | C177: 1 | D177: 1.010416667
B178: t=69 | C178: 1.010416667 | D178: 1.020833333
B179: t=70 | C179: 1.020833333 | D179: 1.03125
B180: t=71 | C180: 1.03125 | D180: 1.041666667
B181: t=72 | C181: 1.041666667 | D181: 1.052083333
B182: t=73 | C182: 1.052083333 | D182: 1.0625
B183: t=74 | C183: 1.0625 | D183: 1.072916667
B184: t=75 | C184: 1.072916667 | D184: 1.083333333
B185: t=76 | C185: 1.083333333 | D185: 1.09375
B186: t=77 | C186: 1.09375 | D186: 1.104166667
B187: t=78 | C187: 1.104166667 | D187: 1.114583333
B188: t=79 | C188: 1.114583333 | D188: 1.125
B189: t=80 | C189: 1.125 | D189: 1.135416667
B190: t=81 | C190: 1.135416667 | D190: 1.145833333
B191: t=82 | C191: =C89 -> 1.145833333 | D191: 1.15625
B192: t=83 | C192: 1.15625 | D192: 1.166666667
B193: t=84 | C193: 1.166666667 | D193: 1.177083333
B194: t=85 | C194: 1.177083333 | D194: 1.1875
B195: t=86 | C195: 1.1875 | D195: 1.197916667
B196: t=87 | C196: 1.197916667 | D196: 1.208333333
B197: t=88 | C197: 1.208333333 | D197: 1.21875
B198: t=89 | C198: 1.21875 | D198: 1.229166667
B199: t=90 | C199: 1.229166667 | D199: 1.239583333
B200: t=91 | C200: 1.239583333 | D200: 1.25
B201: t=92 | C201: 1.25 | D201: 1.260416667
B202: t=93 | C202: 1.260416667 | D202: 1.270833333
B203: t=94 | C203: 1.270833333 | D203: 1.28125
B204: t=95 | C204: 1.28125 | D204: 1.291666667
... 1 more rows

Sheet Speed (hidden)
B2: Travel Speeds (mph) on the Facility Features:
B4: Direction 2:
B5: Feature #: | E5: 1 | F5: 2 | G5: 3 | H5: 4 | I5: 5
B6: Feature Name:
B7: Feature Type: | E7: Int. | F7: Link | G7: Int. | H7: Link | I7: Int.
B8: t=1 | C8: ='Unserved Vehicles'!C8 -> 07:15:00 | D8: ='Unserved Vehicles'!D8 -> 07:30:00 | F8: 14.30251238 | H8: 13.70270943
B9: t=2 | C9: ='Unserved Vehicles'!C9 -> 07:30:00 | D9: ='Unserved Vehicles'!D9 -> 07:45:00 | F9: 15.17067665 | H9: 14.59533961
B10: t=3 | C10: ='Unserved Vehicles'!C10 -> 07:45:00 | D10: ='Unserved Vehicles'!D10 -> 08:00:00 | F10: 14.05318644 | H10: 13.35450886
B11: t=4 | C11: ='Unserved Vehicles'!C11 -> 08:00:00 | D11: ='Unserved Vehicles'!D11 -> 08:15:00 | F11: 13.88266139 | H11: 13.18546286
B12: t=5 | C12: ='Unserved Vehicles'!C12 -> 08:15:00 | D12: ='Unserved Vehicles'!D12 -> 08:30:00 | F12: 13.61926262 | H12: 12.91456017
B13: t=6 | C13: ='Unserved Vehicles'!C13 -> 08:30:00 | D13: ='Unserved Vehicles'!D13 -> 08:45:00 | F13: 6.333933203 | H13: 14.95440821
B14: t=7 | C14: ='Unserved Vehicles'!C14 -> 08:45:00 | D14: ='Unserved Vehicles'!D14 -> 09:00:00 | F14: 14.75825025 | H14: 14.46815112
B15: t=8 | C15: ='Unserved Vehicles'!C15 -> 09:00:00 | D15: ='Unserved Vehicles'!D15 -> 09:15:00 | F15: 14.65451732 | H15: 14.30128021
B16: t=9 | C16: ='Unserved Vehicles'!C16 -> 09:15:00 | D16: ='Unserved Vehicles'!D16 -> 09:30:00 | F16: 17.9070838 | H16: 16.12450876
B17: t=10 | C17: ='Unserved Vehicles'!C17 -> 09:30:00 | D17: ='Unserved Vehicles'!D17 -> 09:45:00 | F17: 17.10015679 | H17: 15.13839989
B18: t=11 | C18: ='Unserved Vehicles'!C18 -> 09:45:00 | D18: ='Unserved Vehicles'!D18 -> 10:00:00 | F18: 17.07928271 | H18: 15.10868854
B19: t=12 | C19: ='Unserved Vehicles'!C19 -> 10:00:00 | D19: ='Unserved Vehicles'!D19 -> 10:15:00 | F19: 17.18834741 | H19: 15.24727366
B20: t=13 | C20: ='Unserved Vehicles'!C20 -> 10:15:00 | D20: ='Unserved Vehicles'!D20 -> 10:30:00 | F20: 17.20172729 | H20: 15.26786968
B21: t=14 | C21: ='Unserved Vehicles'!C21 -> 10:30:00 | D21: ='Unserved Vehicles'!D21 -> 10:45:00 | F21: 17.21432136 | H21: 15.28330674
B22: t=15 | C22: ='Unserved Vehicles'!C22 -> 10:45:00 | D22: ='Unserved Vehicles'!D22 -> 11:00:00 | F22: 17.22295154 | H22: 15.29829932
B23: t=16 | C23: ='Unserved Vehicles'!C23 -> 11:00:00 | D23: ='Unserved Vehicles'!D23 -> 11:15:00 | F23: 17.86519356 | H23: 16.0862723
B24: t=17 | C24: ='Unserved Vehicles'!C24 -> 11:15:00 | D24: ='Unserved Vehicles'!D24 -> 11:30:00 | F24: 17.76662894 | H24: 15.96240825
B25: t=18 | C25: ='Unserved Vehicles'!C25 -> 11:30:00 | D25: ='Unserved Vehicles'!D25 -> 11:45:00 | F25: 17.66987242 | H25: 15.84147539
B26: t=19 | C26: ='Unserved Vehicles'!C26 -> 11:45:00 | D26: ='Unserved Vehicles'!D26 -> 12:00:00 | F26: 17.57478305 | H26: 15.71890738
B27: t=20 | C27: ='Unserved Vehicles'!C27 -> 12:00:00 | D27: ='Unserved Vehicles'!D27 -> 12:15:00 | F27: 17.48273563 | H27: 15.59662682
B28: t=21 | C28: ='Unserved Vehicles'!C28 -> 12:15:00 | D28: ='Unserved Vehicles'!D28 -> 12:30:00
B29: t=22 | C29: ='Unserved Vehicles'!C29 -> 12:30:00 | D29: ='Unserved Vehicles'!D29 -> 12:45:00
B30: t=23 | C30: ='Unserved Vehicles'!C30 -> 12:45:00 | D30: ='Unserved Vehicles'!D30 -> 13:00:00
B31: t=24 | C31: ='Unserved Vehicles'!C31 -> 13:00:00 | D31: ='Unserved Vehicles'!D31 -> 13:15:00
B32: t=25 | C32: ='Unserved Vehicles'!C32 -> 13:15:00 | D32: ='Unserved Vehicles'!D32 -> 13:30:00
B33: t=26 | C33: ='Unserved Vehicles'!C33 -> 13:30:00 | D33: ='Unserved Vehicles'!D33 -> 13:45:00
B34: t=27 | C34: ='Unserved Vehicles'!C34 -> 13:45:00 | D34: ='Unserved Vehicles'!D34 -> 14:00:00
B35: t=28 | C35: ='Unserved Vehicles'!C35 -> 14:00:00 | D35: ='Unserved Vehicles'!D35 -> 14:15:00
B36: t=29 | C36: ='Unserved Vehicles'!C36 -> 14:15:00 | D36: ='Unserved Vehicles'!D36 -> 14:30:00
B37: t=30 | C37: ='Unserved Vehicles'!C37 -> 14:30:00 | D37: ='Unserved Vehicles'!D37 -> 14:45:00
B38: t=31 | C38: ='Unserved Vehicles'!C38 -> 14:45:00 | D38: ='Unserved Vehicles'!D38 -> 15:00:00
B39: t=32 | C39: ='Unserved Vehicles'!C39 -> 15:00:00 | D39: ='Unserved Vehicles'!D39 -> 15:15:00
B40: t=33 | C40: ='Unserved Vehicles'!C40 -> 15:15:00 | D40: ='Unserved Vehicles'!D40 -> 15:30:00
B41: t=34 | C41: ='Unserved Vehicles'!C41 -> 15:30:00 | D41: ='Unserved Vehicles'!D41 -> 15:45:00
B42: t=35 | C42: ='Unserved Vehicles'!C42 -> 15:45:00 | D42: ='Unserved Vehicles'!D42 -> 16:00:00
B43: t=36 | C43: ='Unserved Vehicles'!C43 -> 16:00:00 | D43: ='Unserved Vehicles'!D43 -> 16:15:00
B44: t=37 | C44: ='Unserved Vehicles'!C44 -> 16:15:00 | D44: ='Unserved Vehicles'!D44 -> 16:30:00
B45: t=38 | C45: ='Unserved Vehicles'!C45 -> 16:30:00 | D45: ='Unserved Vehicles'!D45 -> 16:45:00
B46: t=39 | C46: ='Unserved Vehicles'!C46 -> 16:45:00 | D46: ='Unserved Vehicles'!D46 -> 17:00:00
B47: t=40 | C47: ='Unserved Vehicles'!C47 -> 17:00:00 | D47: ='Unserved Vehicles'!D47 -> 17:15:00
B48: t=41 | C48: ='Unserved Vehicles'!C48 -> 17:15:00 | D48: ='Unserved Vehicles'!D48 -> 17:30:00
B49: t=42 | C49: ='Unserved Vehicles'!C49 -> 17:30:00 | D49: ='Unserved Vehicles'!D49 -> 17:45:00
B50: t=43 | C50: ='Unserved Vehicles'!C50 -> 17:45:00 | D50: ='Unserved Vehicles'!D50 -> 18:00:00
B51: t=44 | C51: ='Unserved Vehicles'!C51 -> 18:00:00 | D51: ='Unserved Vehicles'!D51 -> 18:15:00
B52: t=45 | C52: ='Unserved Vehicles'!C52 -> 18:15:00 | D52: ='Unserved Vehicles'!D52 -> 18:30:00
B53: t=46 | C53: ='Unserved Vehicles'!C53 -> 18:30:00 | D53: ='Unserved Vehicles'!D53 -> 18:45:00
B54: t=47 | C54: ='Unserved Vehicles'!C54 -> 18:45:00 | D54: ='Unserved Vehicles'!D54 -> 19:00:00
B55: t=48 | C55: ='Unserved Vehicles'!C55 -> 19:00:00 | D55: ='Unserved Vehicles'!D55 -> 19:15:00
B56: t=49 | C56: ='Unserved Vehicles'!C56 -> 19:15:00 | D56: ='Unserved Vehicles'!D56 -> 19:30:00
B57: t=50 | C57: ='Unserved Vehicles'!C57 -> 19:30:00 | D57: ='Unserved Vehicles'!D57 -> 19:45:00
B58: t=51 | C58: ='Unserved Vehicles'!C58 -> 19:45:00 | D58: ='Unserved Vehicles'!D58 -> 20:00:00
B59: t=52 | C59: ='Unserved Vehicles'!C59 -> 20:00:00 | D59: ='Unserved Vehicles'!D59 -> 20:15:00
B60: t=53 | C60: ='Unserved Vehicles'!C60 -> 20:15:00 | D60: ='Unserved Vehicles'!D60 -> 20:30:00
B61: t=54 | C61: ='Unserved Vehicles'!C61 -> 20:30:00 | D61: ='Unserved Vehicles'!D61 -> 20:45:00
B62: t=55 | C62: ='Unserved Vehicles'!C62 -> 20:45:00 | D62: ='Unserved Vehicles'!D62 -> 21:00:00
B63: t=56 | C63: ='Unserved Vehicles'!C63 -> 21:00:00 | D63: ='Unserved Vehicles'!D63 -> 21:15:00
B64: t=57 | C64: ='Unserved Vehicles'!C64 -> 21:15:00 | D64: ='Unserved Vehicles'!D64 -> 21:30:00
B65: t=58 | C65: ='Unserved Vehicles'!C65 -> 21:30:00 | D65: ='Unserved Vehicles'!D65 -> 21:45:00
B66: t=59 | C66: ='Unserved Vehicles'!C66 -> 21:45:00 | D66: ='Unserved Vehicles'!D66 -> 22:00:00
B67: t=60 | C67: ='Unserved Vehicles'!C67 -> 22:00:00 | D67: ='Unserved Vehicles'!D67 -> 22:15:00
B68: t=61 | C68: ='Unserved Vehicles'!C68 -> 22:15:00 | D68: ='Unserved Vehicles'!D68 -> 22:30:00
B69: t=62 | C69: ='Unserved Vehicles'!C69 -> 22:30:00 | D69: ='Unserved Vehicles'!D69 -> 22:45:00
B70: t=63 | C70: ='Unserved Vehicles'!C70 -> 22:45:00 | D70: ='Unserved Vehicles'!D70 -> 23:00:00
B71: t=64 | C71: ='Unserved Vehicles'!C71 -> 23:00:00 | D71: ='Unserved Vehicles'!D71 -> 23:15:00
B72: t=65 | C72: ='Unserved Vehicles'!C72 -> 23:15:00 | D72: ='Unserved Vehicles'!D72 -> 23:30:00
B73: t=66 | C73: ='Unserved Vehicles'!C73 -> 23:30:00 | D73: ='Unserved Vehicles'!D73 -> 23:45:00
B74: t=67 | C74: ='Unserved Vehicles'!C74 -> 23:45:00 | D74: ='Unserved Vehicles'!D74 -> 1
B75: t=68 | C75: ='Unserved Vehicles'!C75 -> 1 | D75: ='Unserved Vehicles'!D75 -> 1.010416667
B76: t=69 | C76: ='Unserved Vehicles'!C76 -> 1.010416667 | D76: ='Unserved Vehicles'!D76 -> 1.020833333
B77: t=70 | C77: ='Unserved Vehicles'!C77 -> 1.020833333 | D77: ='Unserved Vehicles'!D77 -> 1.03125
B78: t=71 | C78: ='Unserved Vehicles'!C78 -> 1.03125 | D78: ='Unserved Vehicles'!D78 -> 1.041666667
B79: t=72 | C79: ='Unserved Vehicles'!C79 -> 1.041666667 | D79: ='Unserved Vehicles'!D79 -> 1.052083333
B80: t=73 | C80: ='Unserved Vehicles'!C80 -> 1.052083333 | D80: ='Unserved Vehicles'!D80 -> 1.0625
B81: t=74 | C81: ='Unserved Vehicles'!C81 -> 1.0625 | D81: ='Unserved Vehicles'!D81 -> 1.072916667
B82: t=75 | C82: ='Unserved Vehicles'!C82 -> 1.072916667 | D82: ='Unserved Vehicles'!D82 -> 1.083333333
B83: t=76 | C83: ='Unserved Vehicles'!C83 -> 1.083333333 | D83: ='Unserved Vehicles'!D83 -> 1.09375
B84: t=77 | C84: ='Unserved Vehicles'!C84 -> 1.09375 | D84: ='Unserved Vehicles'!D84 -> 1.104166667
B85: t=78 | C85: ='Unserved Vehicles'!C85 -> 1.104166667 | D85: ='Unserved Vehicles'!D85 -> 1.114583333
B86: t=79 | C86: ='Unserved Vehicles'!C86 -> 1.114583333 | D86: ='Unserved Vehicles'!D86 -> 1.125
B87: t=80 | C87: ='Unserved Vehicles'!C87 -> 1.125 | D87: ='Unserved Vehicles'!D87 -> 1.135416667
B88: t=81 | C88: ='Unserved Vehicles'!C88 -> 1.135416667 | D88: ='Unserved Vehicles'!D88 -> 1.145833333
B89: t=82 | C89: ='Unserved Vehicles'!C89 -> 1.145833333 | D89: ='Unserved Vehicles'!D89 -> 1.15625
B90: t=83 | C90: ='Unserved Vehicles'!C90 -> 1.15625 | D90: ='Unserved Vehicles'!D90 -> 1.166666667
B91: t=84 | C91: ='Unserved Vehicles'!C91 -> 1.166666667 | D91: ='Unserved Vehicles'!D91 -> 1.177083333
B92: t=85 | C92: ='Unserved Vehicles'!C92 -> 1.177083333 | D92: ='Unserved Vehicles'!D92 -> 1.1875
B93: t=86 | C93: ='Unserved Vehicles'!C93 -> 1.1875 | D93: ='Unserved Vehicles'!D93 -> 1.197916667
B94: t=87 | C94: ='Unserved Vehicles'!C94 -> 1.197916667 | D94: ='Unserved Vehicles'!D94 -> 1.208333333
B95: t=88 | C95: ='Unserved Vehicles'!C95 -> 1.208333333 | D95: ='Unserved Vehicles'!D95 -> 1.21875
B96: t=89 | C96: ='Unserved Vehicles'!C96 -> 1.21875 | D96: ='Unserved Vehicles'!D96 -> 1.229166667
B97: t=90 | C97: ='Unserved Vehicles'!C97 -> 1.229166667 | D97: ='Unserved Vehicles'!D97 -> 1.239583333
B98: t=91 | C98: ='Unserved Vehicles'!C98 -> 1.239583333 | D98: ='Unserved Vehicles'!D98 -> 1.25
B99: t=92 | C99: ='Unserved Vehicles'!C99 -> 1.25 | D99: ='Unserved Vehicles'!D99 -> 1.260416667
B100: t=93 | C100: ='Unserved Vehicles'!C100 -> 1.260416667 | D100: ='Unserved Vehicles'!D100 -> 1.270833333
B101: t=94 | C101: ='Unserved Vehicles'!C101 -> 1.270833333 | D101: ='Unserved Vehicles'!D101 -> 1.28125
B102: t=95 | C102: ='Unserved Vehicles'!C102 -> 1.28125 | D102: ='Unserved Vehicles'!D102 -> 1.291666667
B103: t=96 | C103: ='Unserved Vehicles'!C103 -> 1.291666667 | D103: ='Unserved Vehicles'!D103 -> 1.302083333
B106: Direction 6:
B107: Feature #: | E107: 1 | F107: 2 | G107: 3 | H107: 4 | I107: 5
B108: Feature Name:
B109: Feature Type: | E109: Int. | F109: Link | G109: Int. | H109: Link | I109: Int.
B110: t=1 | C110: =C8 -> 07:15:00 | D110: =D8 -> 07:30:00 | F110: 10.24745403 | H110: 4.879736953
B111: t=2 | C111: =C9 -> 07:30:00 | D111: 07:45:00 | F111: 17.26272668 | H111: 17.39504683
B112: t=3 | C112: 07:45:00 | D112: 08:00:00 | F112: 17.07324492 | H112: 17.00636938
B113: t=4 | C113: 08:00:00 | D113: 08:15:00 | F113: 16.92676502 | H113: 16.71437055
B114: t=5 | C114: 08:15:00 | D114: 08:30:00 | F114: 16.2874583 | H114: 5.379914902
B115: t=6 | C115: 08:30:00 | D115: 08:45:00 | F115: 16.39742717 | H115: 3.388177875
B116: t=7 | C116: 08:45:00 | D116: 09:00:00 | F116: 16.11319355 | H116: 14.24372204
B117: t=8 | C117: 09:00:00 | D117: 09:15:00 | F117: 16.31142986 | H117: 15.43987103
B118: t=9 | C118: 09:15:00 | D118: 09:30:00 | F118: 16.3287959 | H118: 15.92394579
B119: t=10 | C119: 09:30:00 | D119: 09:45:00 | F119: 15.6924968 | H119: 15.08862654
B120: t=11 | C120: 09:45:00 | D120: 10:00:00 | F120: 15.89439588 | H120: 15.26486849
B121: t=12 | C121: 10:00:00 | D121: 10:15:00 | F121: 16.23830823 | H121: 15.61141306
B122: t=13 | C122: 10:15:00 | D122: 10:30:00 | F122: 16.4359078 | H122: 15.81818963
B123: t=14 | C123: 10:30:00 | D123: 10:45:00 | F123: 16.63053661 | H123: 16.02160378
B124: t=15 | C124: 10:45:00 | D124: 11:00:00 | F124: 16.82274401 | H124: 16.22214523
B125: t=16 | C125: 11:00:00 | D125: 11:15:00 | F125: 17.64987896 | H125: 17.21425329
B126: t=17 | C126: 11:15:00 | D126: 11:30:00 | F126: 17.52457164 | H126: 17.09422101
B127: t=18 | C127: =C25 -> 11:30:00 | D127: 11:45:00 | F127: 17.40327524 | H127: 16.9765412
B128: t=19 | C128: 11:45:00 | D128: 12:00:00 | F128: 17.2827335 | H128: 16.86097614
B129: t=20 | C129: 12:00:00 | D129: 12:15:00 | F129: 17.16565306 | H129: 16.7488087
B130: t=21 | C130: 12:15:00 | D130: 12:30:00
B131: t=22 | C131: 12:30:00 | D131: 12:45:00
B132: t=23 | C132: 12:45:00 | D132: 13:00:00
B133: t=24 | C133: 13:00:00 | D133: 13:15:00
B134: t=25 | C134: 13:15:00 | D134: 13:30:00
B135: t=26 | C135: 13:30:00 | D135: 13:45:00
B136: t=27 | C136: 13:45:00 | D136: 14:00:00
B137: t=28 | C137: 14:00:00 | D137: 14:15:00
B138: t=29 | C138: 14:15:00 | D138: 14:30:00
B139: t=30 | C139: 14:30:00 | D139: 14:45:00
B140: t=31 | C140: 14:45:00 | D140: 15:00:00
B141: t=32 | C141: 15:00:00 | D141: 15:15:00
B142: t=33 | C142: 15:15:00 | D142: 15:30:00
B143: t=34 | C143: =C41 -> 15:30:00 | D143: 15:45:00
B144: t=35 | C144: 15:45:00 | D144: 16:00:00
B145: t=36 | C145: 16:00:00 | D145: 16:15:00
B146: t=37 | C146: 16:15:00 | D146: 16:30:00
B147: t=38 | C147: 16:30:00 | D147: 16:45:00
B148: t=39 | C148: 16:45:00 | D148: 17:00:00
B149: t=40 | C149: 17:00:00 | D149: 17:15:00
B150: t=41 | C150: 17:15:00 | D150: 17:30:00
B151: t=42 | C151: 17:30:00 | D151: 17:45:00
B152: t=43 | C152: 17:45:00 | D152: 18:00:00
B153: t=44 | C153: 18:00:00 | D153: 18:15:00
B154: t=45 | C154: 18:15:00 | D154: 18:30:00
B155: t=46 | C155: 18:30:00 | D155: 18:45:00
B156: t=47 | C156: 18:45:00 | D156: 19:00:00
B157: t=48 | C157: 19:00:00 | D157: 19:15:00
B158: t=49 | C158: 19:15:00 | D158: 19:30:00
B159: t=50 | C159: =C57 -> 19:30:00 | D159: 19:45:00
B160: t=51 | C160: 19:45:00 | D160: 20:00:00
B161: t=52 | C161: 20:00:00 | D161: 20:15:00
B162: t=53 | C162: 20:15:00 | D162: 20:30:00
B163: t=54 | C163: 20:30:00 | D163: 20:45:00
B164: t=55 | C164: 20:45:00 | D164: 21:00:00
B165: t=56 | C165: 21:00:00 | D165: 21:15:00
B166: t=57 | C166: 21:15:00 | D166: 21:30:00
B167: t=58 | C167: 21:30:00 | D167: 21:45:00
B168: t=59 | C168: 21:45:00 | D168: 22:00:00
B169: t=60 | C169: 22:00:00 | D169: 22:15:00
B170: t=61 | C170: 22:15:00 | D170: 22:30:00
B171: t=62 | C171: 22:30:00 | D171: 22:45:00
B172: t=63 | C172: 22:45:00 | D172: 23:00:00
B173: t=64 | C173: 23:00:00 | D173: 23:15:00
B174: t=65 | C174: 23:15:00 | D174: 23:30:00
B175: t=66 | C175: =C73 -> 23:30:00 | D175: 23:45:00
B176: t=67 | C176: 23:45:00 | D176: 1
B177: t=68 | C177: 1 | D177: 1.010416667
B178: t=69 | C178: 1.010416667 | D178: 1.020833333
B179: t=70 | C179: 1.020833333 | D179: 1.03125
B180: t=71 | C180: 1.03125 | D180: 1.041666667
B181: t=72 | C181: 1.041666667 | D181: 1.052083333
B182: t=73 | C182: 1.052083333 | D182: 1.0625
B183: t=74 | C183: 1.0625 | D183: 1.072916667
B184: t=75 | C184: 1.072916667 | D184: 1.083333333
B185: t=76 | C185: 1.083333333 | D185: 1.09375
B186: t=77 | C186: 1.09375 | D186: 1.104166667
B187: t=78 | C187: 1.104166667 | D187: 1.114583333
B188: t=79 | C188: 1.114583333 | D188: 1.125
B189: t=80 | C189: 1.125 | D189: 1.135416667
B190: t=81 | C190: 1.135416667 | D190: 1.145833333
B191: t=82 | C191: =C89 -> 1.145833333 | D191: 1.15625
B192: t=83 | C192: 1.15625 | D192: 1.166666667
B193: t=84 | C193: 1.166666667 | D193: 1.177083333
B194: t=85 | C194: 1.177083333 | D194: 1.1875
B195: t=86 | C195: 1.1875 | D195: 1.197916667
B196: t=87 | C196: 1.197916667 | D196: 1.208333333
B197: t=88 | C197: 1.208333333 | D197: 1.21875
B198: t=89 | C198: 1.21875 | D198: 1.229166667
B199: t=90 | C199: 1.229166667 | D199: 1.239583333
B200: t=91 | C200: 1.239583333 | D200: 1.25
B201: t=92 | C201: 1.25 | D201: 1.260416667
B202: t=93 | C202: 1.260416667 | D202: 1.270833333
B203: t=94 | C203: 1.270833333 | D203: 1.28125
B204: t=95 | C204: 1.28125 | D204: 1.291666667
... 1 more rows

Sheet Delay (hidden)
B2: Delay (sec) on the Facility Features:
B4: Direction 2:
B5: Feature #: | E5: 1 | F5: 2 | G5: 3 | H5: 4 | I5: 5
B6: Feature Name:
B7: Feature Type: | E7: Int. | F7: Link | G7: Int. | H7: Link | I7: Int.
B8: t=1 | C8: ='Unserved Vehicles'!C8 -> 07:15:00 | D8: ='Unserved Vehicles'!D8 -> 07:30:00 | E8: 14.70955673 | G8: 18.86665255 | I8: 17.41617235
B9: t=2 | C9: ='Unserved Vehicles'!C9 -> 07:30:00 | D9: ='Unserved Vehicles'!D9 -> 07:45:00 | E9: 11.14634155 | G9: 13.43232526 | I9: 12.75849815
B10: t=3 | C10: ='Unserved Vehicles'!C10 -> 07:45:00 | D10: ='Unserved Vehicles'!D10 -> 08:00:00 | E10: 16.43945739 | G10: 19.91875901 | I10: 18.90010302
B11: t=4 | C11: ='Unserved Vehicles'!C11 -> 08:00:00 | D11: ='Unserved Vehicles'!D11 -> 08:15:00 | E11: 16.99740565 | G11: 20.77334889 | I11: 19.65710898
B12: t=5 | C12: ='Unserved Vehicles'!C12 -> 08:15:00 | D12: ='Unserved Vehicles'!D12 -> 08:30:00 | E12: 17.94775628 | G12: 22.30660564 | I12: 21.04569801
B13: t=6 | C13: ='Unserved Vehicles'!C13 -> 08:30:00 | D13: ='Unserved Vehicles'!D13 -> 08:45:00 | E13: 10.50601465 | G13: 133.4688628 | I13: 12.28256848
B14: t=7 | C14: ='Unserved Vehicles'!C14 -> 08:45:00 | D14: ='Unserved Vehicles'!D14 -> 09:00:00 | E14: 12.0188287 | G14: 16.54781094 | I14: 14.33047641
B15: t=8 | C15: ='Unserved Vehicles'!C15 -> 09:00:00 | D15: ='Unserved Vehicles'!D15 -> 09:15:00 | E15: 12.4148163 | G15: 17.0990401 | I15: 14.94328223
B16: t=9 | C16: ='Unserved Vehicles'!C16 -> 09:15:00 | D16: ='Unserved Vehicles'!D16 -> 09:30:00 | E16: 5.857442703 | F16: 5.857442703 | G16: 5.352475926 | I16: 6.740544543
B17: t=10 | C17: ='Unserved Vehicles'!C17 -> 09:30:00 | D17: ='Unserved Vehicles'!D17 -> 09:45:00 | E17: 9.627675689 | F17: 9.627675689 | G17: 9.05789661 | I17: 10.86997714
B18: t=11 | C18: ='Unserved Vehicles'!C18 -> 09:45:00 | D18: ='Unserved Vehicles'!D18 -> 10:00:00 | E18: 9.846764021 | F18: 9.846764021 | G18: 9.273700935 | I18: 11.09459883
B19: t=12 | C19: ='Unserved Vehicles'!C19 -> 10:00:00 | D19: ='Unserved Vehicles'!D19 -> 10:15:00 | E19: 9.423696469 | F19: 9.423696469 | G19: 8.880511413 | I19: 10.59543287
B20: t=13 | C20: ='Unserved Vehicles'!C20 -> 10:15:00 | D20: ='Unserved Vehicles'!D20 -> 10:30:00 | E20: 9.154170608 | F20: 9.154170608 | G20: 8.609516607 | I20: 10.33229468
B21: t=14 | C21: ='Unserved Vehicles'!C21 -> 10:30:00 | D21: ='Unserved Vehicles'!D21 -> 10:45:00 | E21: 8.898552115 | F21: 8.898552115 | G21: 8.350159406 | I21: 10.08800351
B22: t=15 | C22: ='Unserved Vehicles'!C22 -> 10:45:00 | D22: ='Unserved Vehicles'!D22 -> 11:00:00 | E22: 8.655964869 | F22: 8.655964869 | G22: 8.105760164 | I22: 9.852747468
B23: t=16 | C23: ='Unserved Vehicles'!C23 -> 11:00:00 | D23: ='Unserved Vehicles'!D23 -> 11:15:00 | E23: 5.576160638 | F23: 5.576160638 | G23: 5.062389569 | I23: 6.484083882
B24: t=17 | C24: ='Unserved Vehicles'!C24 -> 11:15:00 | D24: ='Unserved Vehicles'!D24 -> 11:30:00 | E24: 5.706336149 | F24: 5.706336149 | G24: 5.161842383 | I24: 6.686213255
B25: t=18 | C25: ='Unserved Vehicles'!C25 -> 11:30:00 | D25: ='Unserved Vehicles'!D25 -> 11:45:00 | E25: 5.84002781 | F25: 5.84002781 | G25: 5.263403784 | I25: 6.893419115
B26: t=19 | C26: ='Unserved Vehicles'!C26 -> 11:45:00 | D26: ='Unserved Vehicles'!D26 -> 12:00:00 | E26: 5.980360375 | F26: 5.980360375 | G26: 5.36723412 | I26: 7.113550787
B27: t=20 | C27: ='Unserved Vehicles'!C27 -> 12:00:00 | D27: ='Unserved Vehicles'!D27 -> 12:15:00 | E27: 6.121940205 | F27: 6.121940205 | G27: 5.471890195 | I27: 7.34403235
B28: t=21 | C28: ='Unserved Vehicles'!C28 -> 12:15:00 | D28: ='Unserved Vehicles'!D28 -> 12:30:00
B29: t=22 | C29: ='Unserved Vehicles'!C29 -> 12:30:00 | D29: ='Unserved Vehicles'!D29 -> 12:45:00
B30: t=23 | C30: ='Unserved Vehicles'!C30 -> 12:45:00 | D30: ='Unserved Vehicles'!D30 -> 13:00:00
B31: t=24 | C31: ='Unserved Vehicles'!C31 -> 13:00:00 | D31: ='Unserved Vehicles'!D31 -> 13:15:00
B32: t=25 | C32: ='Unserved Vehicles'!C32 -> 13:15:00 | D32: ='Unserved Vehicles'!D32 -> 13:30:00
B33: t=26 | C33: ='Unserved Vehicles'!C33 -> 13:30:00 | D33: ='Unserved Vehicles'!D33 -> 13:45:00
B34: t=27 | C34: ='Unserved Vehicles'!C34 -> 13:45:00 | D34: ='Unserved Vehicles'!D34 -> 14:00:00
B35: t=28 | C35: ='Unserved Vehicles'!C35 -> 14:00:00 | D35: ='Unserved Vehicles'!D35 -> 14:15:00
B36: t=29 | C36: ='Unserved Vehicles'!C36 -> 14:15:00 | D36: ='Unserved Vehicles'!D36 -> 14:30:00
B37: t=30 | C37: ='Unserved Vehicles'!C37 -> 14:30:00 | D37: ='Unserved Vehicles'!D37 -> 14:45:00
B38: t=31 | C38: ='Unserved Vehicles'!C38 -> 14:45:00 | D38: ='Unserved Vehicles'!D38 -> 15:00:00
B39: t=32 | C39: ='Unserved Vehicles'!C39 -> 15:00:00 | D39: ='Unserved Vehicles'!D39 -> 15:15:00
B40: t=33 | C40: ='Unserved Vehicles'!C40 -> 15:15:00 | D40: ='Unserved Vehicles'!D40 -> 15:30:00
B41: t=34 | C41: ='Unserved Vehicles'!C41 -> 15:30:00 | D41: ='Unserved Vehicles'!D41 -> 15:45:00
B42: t=35 | C42: ='Unserved Vehicles'!C42 -> 15:45:00 | D42: ='Unserved Vehicles'!D42 -> 16:00:00
B43: t=36 | C43: ='Unserved Vehicles'!C43 -> 16:00:00 | D43: ='Unserved Vehicles'!D43 -> 16:15:00
B44: t=37 | C44: ='Unserved Vehicles'!C44 -> 16:15:00 | D44: ='Unserved Vehicles'!D44 -> 16:30:00
B45: t=38 | C45: ='Unserved Vehicles'!C45 -> 16:30:00 | D45: ='Unserved Vehicles'!D45 -> 16:45:00
B46: t=39 | C46: ='Unserved Vehicles'!C46 -> 16:45:00 | D46: ='Unserved Vehicles'!D46 -> 17:00:00
B47: t=40 | C47: ='Unserved Vehicles'!C47 -> 17:00:00 | D47: ='Unserved Vehicles'!D47 -> 17:15:00
B48: t=41 | C48: ='Unserved Vehicles'!C48 -> 17:15:00 | D48: ='Unserved Vehicles'!D48 -> 17:30:00
B49: t=42 | C49: ='Unserved Vehicles'!C49 -> 17:30:00 | D49: ='Unserved Vehicles'!D49 -> 17:45:00
B50: t=43 | C50: ='Unserved Vehicles'!C50 -> 17:45:00 | D50: ='Unserved Vehicles'!D50 -> 18:00:00
B51: t=44 | C51: ='Unserved Vehicles'!C51 -> 18:00:00 | D51: ='Unserved Vehicles'!D51 -> 18:15:00
B52: t=45 | C52: ='Unserved Vehicles'!C52 -> 18:15:00 | D52: ='Unserved Vehicles'!D52 -> 18:30:00
B53: t=46 | C53: ='Unserved Vehicles'!C53 -> 18:30:00 | D53: ='Unserved Vehicles'!D53 -> 18:45:00
B54: t=47 | C54: ='Unserved Vehicles'!C54 -> 18:45:00 | D54: ='Unserved Vehicles'!D54 -> 19:00:00
B55: t=48 | C55: ='Unserved Vehicles'!C55 -> 19:00:00 | D55: ='Unserved Vehicles'!D55 -> 19:15:00
B56: t=49 | C56: ='Unserved Vehicles'!C56 -> 19:15:00 | D56: ='Unserved Vehicles'!D56 -> 19:30:00
B57: t=50 | C57: ='Unserved Vehicles'!C57 -> 19:30:00 | D57: ='Unserved Vehicles'!D57 -> 19:45:00
B58: t=51 | C58: ='Unserved Vehicles'!C58 -> 19:45:00 | D58: ='Unserved Vehicles'!D58 -> 20:00:00
B59: t=52 | C59: ='Unserved Vehicles'!C59 -> 20:00:00 | D59: ='Unserved Vehicles'!D59 -> 20:15:00
B60: t=53 | C60: ='Unserved Vehicles'!C60 -> 20:15:00 | D60: ='Unserved Vehicles'!D60 -> 20:30:00
B61: t=54 | C61: ='Unserved Vehicles'!C61 -> 20:30:00 | D61: ='Unserved Vehicles'!D61 -> 20:45:00
B62: t=55 | C62: ='Unserved Vehicles'!C62 -> 20:45:00 | D62: ='Unserved Vehicles'!D62 -> 21:00:00
B63: t=56 | C63: ='Unserved Vehicles'!C63 -> 21:00:00 | D63: ='Unserved Vehicles'!D63 -> 21:15:00
B64: t=57 | C64: ='Unserved Vehicles'!C64 -> 21:15:00 | D64: ='Unserved Vehicles'!D64 -> 21:30:00
B65: t=58 | C65: ='Unserved Vehicles'!C65 -> 21:30:00 | D65: ='Unserved Vehicles'!D65 -> 21:45:00
B66: t=59 | C66: ='Unserved Vehicles'!C66 -> 21:45:00 | D66: ='Unserved Vehicles'!D66 -> 22:00:00
B67: t=60 | C67: ='Unserved Vehicles'!C67 -> 22:00:00 | D67: ='Unserved Vehicles'!D67 -> 22:15:00
B68: t=61 | C68: ='Unserved Vehicles'!C68 -> 22:15:00 | D68: ='Unserved Vehicles'!D68 -> 22:30:00
B69: t=62 | C69: ='Unserved Vehicles'!C69 -> 22:30:00 | D69: ='Unserved Vehicles'!D69 -> 22:45:00
B70: t=63 | C70: ='Unserved Vehicles'!C70 -> 22:45:00 | D70: ='Unserved Vehicles'!D70 -> 23:00:00
B71: t=64 | C71: ='Unserved Vehicles'!C71 -> 23:00:00 | D71: ='Unserved Vehicles'!D71 -> 23:15:00
B72: t=65 | C72: ='Unserved Vehicles'!C72 -> 23:15:00 | D72: ='Unserved Vehicles'!D72 -> 23:30:00
B73: t=66 | C73: ='Unserved Vehicles'!C73 -> 23:30:00 | D73: ='Unserved Vehicles'!D73 -> 23:45:00
B74: t=67 | C74: ='Unserved Vehicles'!C74 -> 23:45:00 | D74: ='Unserved Vehicles'!D74 -> 1
B75: t=68 | C75: ='Unserved Vehicles'!C75 -> 1 | D75: ='Unserved Vehicles'!D75 -> 1.010416667
B76: t=69 | C76: ='Unserved Vehicles'!C76 -> 1.010416667 | D76: ='Unserved Vehicles'!D76 -> 1.020833333
B77: t=70 | C77: ='Unserved Vehicles'!C77 -> 1.020833333 | D77: ='Unserved Vehicles'!D77 -> 1.03125
B78: t=71 | C78: ='Unserved Vehicles'!C78 -> 1.03125 | D78: ='Unserved Vehicles'!D78 -> 1.041666667
B79: t=72 | C79: ='Unserved Vehicles'!C79 -> 1.041666667 | D79: ='Unserved Vehicles'!D79 -> 1.052083333
B80: t=73 | C80: ='Unserved Vehicles'!C80 -> 1.052083333 | D80: ='Unserved Vehicles'!D80 -> 1.0625
B81: t=74 | C81: ='Unserved Vehicles'!C81 -> 1.0625 | D81: ='Unserved Vehicles'!D81 -> 1.072916667
B82: t=75 | C82: ='Unserved Vehicles'!C82 -> 1.072916667 | D82: ='Unserved Vehicles'!D82 -> 1.083333333
B83: t=76 | C83: ='Unserved Vehicles'!C83 -> 1.083333333 | D83: ='Unserved Vehicles'!D83 -> 1.09375
B84: t=77 | C84: ='Unserved Vehicles'!C84 -> 1.09375 | D84: ='Unserved Vehicles'!D84 -> 1.104166667
B85: t=78 | C85: ='Unserved Vehicles'!C85 -> 1.104166667 | D85: ='Unserved Vehicles'!D85 -> 1.114583333
B86: t=79 | C86: ='Unserved Vehicles'!C86 -> 1.114583333 | D86: ='Unserved Vehicles'!D86 -> 1.125
B87: t=80 | C87: ='Unserved Vehicles'!C87 -> 1.125 | D87: ='Unserved Vehicles'!D87 -> 1.135416667
B88: t=81 | C88: ='Unserved Vehicles'!C88 -> 1.135416667 | D88: ='Unserved Vehicles'!D88 -> 1.145833333
B89: t=82 | C89: ='Unserved Vehicles'!C89 -> 1.145833333 | D89: ='Unserved Vehicles'!D89 -> 1.15625
B90: t=83 | C90: ='Unserved Vehicles'!C90 -> 1.15625 | D90: ='Unserved Vehicles'!D90 -> 1.166666667
B91: t=84 | C91: ='Unserved Vehicles'!C91 -> 1.166666667 | D91: ='Unserved Vehicles'!D91 -> 1.177083333
B92: t=85 | C92: ='Unserved Vehicles'!C92 -> 1.177083333 | D92: ='Unserved Vehicles'!D92 -> 1.1875
B93: t=86 | C93: ='Unserved Vehicles'!C93 -> 1.1875 | D93: ='Unserved Vehicles'!D93 -> 1.197916667
B94: t=87 | C94: ='Unserved Vehicles'!C94 -> 1.197916667 | D94: ='Unserved Vehicles'!D94 -> 1.208333333
B95: t=88 | C95: ='Unserved Vehicles'!C95 -> 1.208333333 | D95: ='Unserved Vehicles'!D95 -> 1.21875
B96: t=89 | C96: ='Unserved Vehicles'!C96 -> 1.21875 | D96: ='Unserved Vehicles'!D96 -> 1.229166667
B97: t=90 | C97: ='Unserved Vehicles'!C97 -> 1.229166667 | D97: ='Unserved Vehicles'!D97 -> 1.239583333
B98: t=91 | C98: ='Unserved Vehicles'!C98 -> 1.239583333 | D98: ='Unserved Vehicles'!D98 -> 1.25
B99: t=92 | C99: ='Unserved Vehicles'!C99 -> 1.25 | D99: ='Unserved Vehicles'!D99 -> 1.260416667
B100: t=93 | C100: ='Unserved Vehicles'!C100 -> 1.260416667 | D100: ='Unserved Vehicles'!D100 -> 1.270833333
B101: t=94 | C101: ='Unserved Vehicles'!C101 -> 1.270833333 | D101: ='Unserved Vehicles'!D101 -> 1.28125
B102: t=95 | C102: ='Unserved Vehicles'!C102 -> 1.28125 | D102: ='Unserved Vehicles'!D102 -> 1.291666667
B103: t=96 | C103: ='Unserved Vehicles'!C103 -> 1.291666667 | D103: ='Unserved Vehicles'!D103 -> 1.302083333
B106: Direction 6:
B107: Feature #: | E107: 1 | F107: 2 | G107: 3 | H107: 4 | I107: 5
B108: Feature Name:
B109: Feature Type: | E109: Int. | F109: Link | G109: Int. | H109: Link | I109: Int.
B110: t=1 | C110: =C8 -> 07:15:00 | D110: =D8 -> 07:30:00 | E110: 50.9678104 | G110: 147.3048717 | I110: 35.76818139
B111: t=2 | C111: =C9 -> 07:30:00 | D111: 07:45:00 | E111: 0.5147956815 | G111: 0.7159947642 | I111: 0.4871967435
B112: t=3 | C112: 07:45:00 | D112: 08:00:00 | E112: 2.011775948 | G112: 2.524451116 | I112: 1.947597109
B113: t=4 | C113: 08:00:00 | D113: 08:15:00 | E113: 3.345081735 | G113: 4.058898942 | I113: 3.260574304
B114: t=5 | C114: 08:15:00 | D114: 08:30:00 | E114: 7.030493062 | G114: 126.133816 | I114: 6.893290621
B115: t=6 | C115: 08:30:00 | D115: 08:45:00 | E115: 6.994795951 | G115: 239.704257 | I115: 6.785211955
B116: t=7 | C116: 08:45:00 | D116: 09:00:00 | E116: 9.038345144 | G116: 15.644859 | I116: 8.788989306
B117: t=8 | C117: 09:00:00 | D117: 09:15:00 | E117: 8.740259395 | G117: 10.90179689 | I117: 8.545607639
B118: t=9 | C118: 09:15:00 | D118: 09:30:00 | E118: 7.453965496 | F118: 7.453965496 | G118: 6.886182412 | I118: 5.92607393
B119: t=10 | C119: 09:30:00 | D119: 09:45:00 | E119: 11.63890087 | F119: 11.63890087 | G119: 10.90852461 | I119: 9.638869724
B120: t=11 | C120: 09:45:00 | D120: 10:00:00 | E120: 11.35539145 | F120: 11.35539145 | G120: 10.71822656 | I120: 9.587381412
B121: t=12 | C121: 10:00:00 | D121: 10:15:00 | E121: 10.38802044 | F121: 10.38802044 | G121: 9.865266807 | I121: 8.928425926
B122: t=13 | C122: 10:15:00 | D122: 10:30:00 | E122: 9.76595845 | F122: 9.76595845 | G122: 9.299811436 | I122: 8.457258055
B123: t=14 | C123: 10:30:00 | D123: 10:45:00 | E123: 9.189523201 | F123: 9.189523201 | G123: 8.773912015 | I123: 8.014462807
B124: t=15 | C124: 10:45:00 | D124: 11:00:00 | E124: 8.654671227 | F124: 8.654671227 | G124: 8.284233456 | I124: 7.601655593
B125: t=16 | C125: 11:00:00 | D125: 11:15:00 | E125: 5.265909286 | F125: 5.265909286 | G125: 5.029993634 | I125: 4.595171925
B126: t=17 | C126: 11:15:00 | D126: 11:30:00 | E126: 5.403263018 | F126: 5.403263018 | G126: 5.147269508 | I126: 4.679100853
B127: t=18 | C127: =C25 -> 11:30:00 | D127: 11:45:00 | E127: 5.54370765 | F127: 5.54370765 | G127: 5.267928218 | I127: 4.764557018
B128: t=19 | C128: 11:45:00 | D128: 12:00:00 | E128: 5.690820192 | F128: 5.690820192 | G128: 5.392214135 | I128: 4.851662512
B129: t=20 | C129: 12:00:00 | D129: 12:15:00 | E129: 5.841610407 | F129: 5.841610407 | G129: 5.518753501 | I129: 4.940537972
B130: t=21 | C130: 12:15:00 | D130: 12:30:00
B131: t=22 | C131: 12:30:00 | D131: 12:45:00
B132: t=23 | C132: 12:45:00 | D132: 13:00:00
B133: t=24 | C133: 13:00:00 | D133: 13:15:00
B134: t=25 | C134: 13:15:00 | D134: 13:30:00
B135: t=26 | C135: 13:30:00 | D135: 13:45:00
B136: t=27 | C136: 13:45:00 | D136: 14:00:00
B137: t=28 | C137: 14:00:00 | D137: 14:15:00
B138: t=29 | C138: 14:15:00 | D138: 14:30:00
B139: t=30 | C139: 14:30:00 | D139: 14:45:00
B140: t=31 | C140: 14:45:00 | D140: 15:00:00
B141: t=32 | C141: 15:00:00 | D141: 15:15:00
B142: t=33 | C142: 15:15:00 | D142: 15:30:00
B143: t=34 | C143: =C41 -> 15:30:00 | D143: 15:45:00
B144: t=35 | C144: 15:45:00 | D144: 16:00:00
B145: t=36 | C145: 16:00:00 | D145: 16:15:00
B146: t=37 | C146: 16:15:00 | D146: 16:30:00
B147: t=38 | C147: 16:30:00 | D147: 16:45:00
B148: t=39 | C148: 16:45:00 | D148: 17:00:00
B149: t=40 | C149: 17:00:00 | D149: 17:15:00
B150: t=41 | C150: 17:15:00 | D150: 17:30:00
B151: t=42 | C151: 17:30:00 | D151: 17:45:00
B152: t=43 | C152: 17:45:00 | D152: 18:00:00
B153: t=44 | C153: 18:00:00 | D153: 18:15:00
B154: t=45 | C154: 18:15:00 | D154: 18:30:00
B155: t=46 | C155: 18:30:00 | D155: 18:45:00
B156: t=47 | C156: 18:45:00 | D156: 19:00:00
B157: t=48 | C157: 19:00:00 | D157: 19:15:00
B158: t=49 | C158: 19:15:00 | D158: 19:30:00
B159: t=50 | C159: =C57 -> 19:30:00 | D159: 19:45:00
B160: t=51 | C160: 19:45:00 | D160: 20:00:00
B161: t=52 | C161: 20:00:00 | D161: 20:15:00
B162: t=53 | C162: 20:15:00 | D162: 20:30:00
B163: t=54 | C163: 20:30:00 | D163: 20:45:00
B164: t=55 | C164: 20:45:00 | D164: 21:00:00
B165: t=56 | C165: 21:00:00 | D165: 21:15:00
B166: t=57 | C166: 21:15:00 | D166: 21:30:00
B167: t=58 | C167: 21:30:00 | D167: 21:45:00
B168: t=59 | C168: 21:45:00 | D168: 22:00:00
B169: t=60 | C169: 22:00:00 | D169: 22:15:00
B170: t=61 | C170: 22:15:00 | D170: 22:30:00
B171: t=62 | C171: 22:30:00 | D171: 22:45:00
B172: t=63 | C172: 22:45:00 | D172: 23:00:00
B173: t=64 | C173: 23:00:00 | D173: 23:15:00
B174: t=65 | C174: 23:15:00 | D174: 23:30:00
B175: t=66 | C175: =C73 -> 23:30:00 | D175: 23:45:00
B176: t=67 | C176: 23:45:00 | D176: 1
B177: t=68 | C177: 1 | D177: 1.010416667
B178: t=69 | C178: 1.010416667 | D178: 1.020833333
B179: t=70 | C179: 1.020833333 | D179: 1.03125
B180: t=71 | C180: 1.03125 | D180: 1.041666667
B181: t=72 | C181: 1.041666667 | D181: 1.052083333
B182: t=73 | C182: 1.052083333 | D182: 1.0625
B183: t=74 | C183: 1.0625 | D183: 1.072916667
B184: t=75 | C184: 1.072916667 | D184: 1.083333333
B185: t=76 | C185: 1.083333333 | D185: 1.09375
B186: t=77 | C186: 1.09375 | D186: 1.104166667
B187: t=78 | C187: 1.104166667 | D187: 1.114583333
B188: t=79 | C188: 1.114583333 | D188: 1.125
B189: t=80 | C189: 1.125 | D189: 1.135416667
B190: t=81 | C190: 1.135416667 | D190: 1.145833333
B191: t=82 | C191: =C89 -> 1.145833333 | D191: 1.15625
B192: t=83 | C192: 1.15625 | D192: 1.166666667
B193: t=84 | C193: 1.166666667 | D193: 1.177083333
B194: t=85 | C194: 1.177083333 | D194: 1.1875
B195: t=86 | C195: 1.1875 | D195: 1.197916667
B196: t=87 | C196: 1.197916667 | D196: 1.208333333
B197: t=88 | C197: 1.208333333 | D197: 1.21875
B198: t=89 | C198: 1.21875 | D198: 1.229166667
B199: t=90 | C199: 1.229166667 | D199: 1.239583333
B200: t=91 | C200: 1.239583333 | D200: 1.25
B201: t=92 | C201: 1.25 | D201: 1.260416667
B202: t=93 | C202: 1.260416667 | D202: 1.270833333
B203: t=94 | C203: 1.270833333 | D203: 1.28125
B204: t=95 | C204: 1.28125 | D204: 1.291666667
... 1 more rows

Sheet LOS Int. (hidden)
B2: Level of Service (LOS) on the Facility Intersections:
B4: Direction 2:
B5: Feature #: | E5: 1 | F5: 2 | G5: 3 | H5: 4 | I5: 5
B6: Feature Name:
B7: Feature Type: | E7: Int. | F7: Link | G7: Int. | H7: Link | I7: Int.
B8: t=1 | C8: ='Unserved Vehicles'!C8 -> 07:15:00 | D8: ='Unserved Vehicles'!D8 -> 07:30:00 | E8: B | G8: B | I8: B
B9: t=2 | C9: ='Unserved Vehicles'!C9 -> 07:30:00 | D9: ='Unserved Vehicles'!D9 -> 07:45:00 | E9: B | G9: B | I9: B
B10: t=3 | C10: ='Unserved Vehicles'!C10 -> 07:45:00 | D10: ='Unserved Vehicles'!D10 -> 08:00:00 | E10: B | G10: B | I10: B
B11: t=4 | C11: ='Unserved Vehicles'!C11 -> 08:00:00 | D11: ='Unserved Vehicles'!D11 -> 08:15:00 | E11: B | G11: C | I11: B
B12: t=5 | C12: ='Unserved Vehicles'!C12 -> 08:15:00 | D12: ='Unserved Vehicles'!D12 -> 08:30:00 | E12: B | G12: C | I12: C
B13: t=6 | C13: ='Unserved Vehicles'!C13 -> 08:30:00 | D13: ='Unserved Vehicles'!D13 -> 08:45:00 | E13: B | G13: F | I13: B
B14: t=7 | C14: ='Unserved Vehicles'!C14 -> 08:45:00 | D14: ='Unserved Vehicles'!D14 -> 09:00:00 | E14: B | G14: B | I14: B
B15: t=8 | C15: ='Unserved Vehicles'!C15 -> 09:00:00 | D15: ='Unserved Vehicles'!D15 -> 09:15:00 | E15: B | G15: B | I15: B
B16: t=9 | C16: ='Unserved Vehicles'!C16 -> 09:15:00 | D16: ='Unserved Vehicles'!D16 -> 09:30:00 | H16: E
B17: t=10 | C17: ='Unserved Vehicles'!C17 -> 09:30:00 | D17: ='Unserved Vehicles'!D17 -> 09:45:00 | H17: E
B18: t=11 | C18: ='Unserved Vehicles'!C18 -> 09:45:00 | D18: ='Unserved Vehicles'!D18 -> 10:00:00 | H18: E
B19: t=12 | C19: ='Unserved Vehicles'!C19 -> 10:00:00 | D19: ='Unserved Vehicles'!D19 -> 10:15:00 | H19: E
B20: t=13 | C20: ='Unserved Vehicles'!C20 -> 10:15:00 | D20: ='Unserved Vehicles'!D20 -> 10:30:00 | H20: E
B21: t=14 | C21: ='Unserved Vehicles'!C21 -> 10:30:00 | D21: ='Unserved Vehicles'!D21 -> 10:45:00 | H21: E
B22: t=15 | C22: ='Unserved Vehicles'!C22 -> 10:45:00 | D22: ='Unserved Vehicles'!D22 -> 11:00:00 | H22: E
B23: t=16 | C23: ='Unserved Vehicles'!C23 -> 11:00:00 | D23: ='Unserved Vehicles'!D23 -> 11:15:00 | H23: E
B24: t=17 | C24: ='Unserved Vehicles'!C24 -> 11:15:00 | D24: ='Unserved Vehicles'!D24 -> 11:30:00 | H24: E
B25: t=18 | C25: ='Unserved Vehicles'!C25 -> 11:30:00 | D25: ='Unserved Vehicles'!D25 -> 11:45:00 | H25: E
B26: t=19 | C26: ='Unserved Vehicles'!C26 -> 11:45:00 | D26: ='Unserved Vehicles'!D26 -> 12:00:00 | H26: E
B27: t=20 | C27: ='Unserved Vehicles'!C27 -> 12:00:00 | D27: ='Unserved Vehicles'!D27 -> 12:15:00 | H27: E
B28: t=21 | C28: ='Unserved Vehicles'!C28 -> 12:15:00 | D28: ='Unserved Vehicles'!D28 -> 12:30:00
B29: t=22 | C29: ='Unserved Vehicles'!C29 -> 12:30:00 | D29: ='Unserved Vehicles'!D29 -> 12:45:00
B30: t=23 | C30: ='Unserved Vehicles'!C30 -> 12:45:00 | D30: ='Unserved Vehicles'!D30 -> 13:00:00
B31: t=24 | C31: ='Unserved Vehicles'!C31 -> 13:00:00 | D31: ='Unserved Vehicles'!D31 -> 13:15:00
B32: t=25 | C32: ='Unserved Vehicles'!C32 -> 13:15:00 | D32: ='Unserved Vehicles'!D32 -> 13:30:00
B33: t=26 | C33: ='Unserved Vehicles'!C33 -> 13:30:00 | D33: ='Unserved Vehicles'!D33 -> 13:45:00
B34: t=27 | C34: ='Unserved Vehicles'!C34 -> 13:45:00 | D34: ='Unserved Vehicles'!D34 -> 14:00:00
B35: t=28 | C35: ='Unserved Vehicles'!C35 -> 14:00:00 | D35: ='Unserved Vehicles'!D35 -> 14:15:00
B36: t=29 | C36: ='Unserved Vehicles'!C36 -> 14:15:00 | D36: ='Unserved Vehicles'!D36 -> 14:30:00
B37: t=30 | C37: ='Unserved Vehicles'!C37 -> 14:30:00 | D37: ='Unserved Vehicles'!D37 -> 14:45:00
B38: t=31 | C38: ='Unserved Vehicles'!C38 -> 14:45:00 | D38: ='Unserved Vehicles'!D38 -> 15:00:00
B39: t=32 | C39: ='Unserved Vehicles'!C39 -> 15:00:00 | D39: ='Unserved Vehicles'!D39 -> 15:15:00
B40: t=33 | C40: ='Unserved Vehicles'!C40 -> 15:15:00 | D40: ='Unserved Vehicles'!D40 -> 15:30:00
B41: t=34 | C41: ='Unserved Vehicles'!C41 -> 15:30:00 | D41: ='Unserved Vehicles'!D41 -> 15:45:00
B42: t=35 | C42: ='Unserved Vehicles'!C42 -> 15:45:00 | D42: ='Unserved Vehicles'!D42 -> 16:00:00
B43: t=36 | C43: ='Unserved Vehicles'!C43 -> 16:00:00 | D43: ='Unserved Vehicles'!D43 -> 16:15:00
B44: t=37 | C44: ='Unserved Vehicles'!C44 -> 16:15:00 | D44: ='Unserved Vehicles'!D44 -> 16:30:00
B45: t=38 | C45: ='Unserved Vehicles'!C45 -> 16:30:00 | D45: ='Unserved Vehicles'!D45 -> 16:45:00
B46: t=39 | C46: ='Unserved Vehicles'!C46 -> 16:45:00 | D46: ='Unserved Vehicles'!D46 -> 17:00:00
B47: t=40 | C47: ='Unserved Vehicles'!C47 -> 17:00:00 | D47: ='Unserved Vehicles'!D47 -> 17:15:00
B48: t=41 | C48: ='Unserved Vehicles'!C48 -> 17:15:00 | D48: ='Unserved Vehicles'!D48 -> 17:30:00
B49: t=42 | C49: ='Unserved Vehicles'!C49 -> 17:30:00 | D49: ='Unserved Vehicles'!D49 -> 17:45:00
B50: t=43 | C50: ='Unserved Vehicles'!C50 -> 17:45:00 | D50: ='Unserved Vehicles'!D50 -> 18:00:00
B51: t=44 | C51: ='Unserved Vehicles'!C51 -> 18:00:00 | D51: ='Unserved Vehicles'!D51 -> 18:15:00
B52: t=45 | C52: ='Unserved Vehicles'!C52 -> 18:15:00 | D52: ='Unserved Vehicles'!D52 -> 18:30:00
B53: t=46 | C53: ='Unserved Vehicles'!C53 -> 18:30:00 | D53: ='Unserved Vehicles'!D53 -> 18:45:00
B54: t=47 | C54: ='Unserved Vehicles'!C54 -> 18:45:00 | D54: ='Unserved Vehicles'!D54 -> 19:00:00
B55: t=48 | C55: ='Unserved Vehicles'!C55 -> 19:00:00 | D55: ='Unserved Vehicles'!D55 -> 19:15:00
B56: t=49 | C56: ='Unserved Vehicles'!C56 -> 19:15:00 | D56: ='Unserved Vehicles'!D56 -> 19:30:00
B57: t=50 | C57: ='Unserved Vehicles'!C57 -> 19:30:00 | D57: ='Unserved Vehicles'!D57 -> 19:45:00
B58: t=51 | C58: ='Unserved Vehicles'!C58 -> 19:45:00 | D58: ='Unserved Vehicles'!D58 -> 20:00:00
B59: t=52 | C59: ='Unserved Vehicles'!C59 -> 20:00:00 | D59: ='Unserved Vehicles'!D59 -> 20:15:00
B60: t=53 | C60: ='Unserved Vehicles'!C60 -> 20:15:00 | D60: ='Unserved Vehicles'!D60 -> 20:30:00
B61: t=54 | C61: ='Unserved Vehicles'!C61 -> 20:30:00 | D61: ='Unserved Vehicles'!D61 -> 20:45:00
B62: t=55 | C62: ='Unserved Vehicles'!C62 -> 20:45:00 | D62: ='Unserved Vehicles'!D62 -> 21:00:00
B63: t=56 | C63: ='Unserved Vehicles'!C63 -> 21:00:00 | D63: ='Unserved Vehicles'!D63 -> 21:15:00
B64: t=57 | C64: ='Unserved Vehicles'!C64 -> 21:15:00 | D64: ='Unserved Vehicles'!D64 -> 21:30:00
B65: t=58 | C65: ='Unserved Vehicles'!C65 -> 21:30:00 | D65: ='Unserved Vehicles'!D65 -> 21:45:00
B66: t=59 | C66: ='Unserved Vehicles'!C66 -> 21:45:00 | D66: ='Unserved Vehicles'!D66 -> 22:00:00
B67: t=60 | C67: ='Unserved Vehicles'!C67 -> 22:00:00 | D67: ='Unserved Vehicles'!D67 -> 22:15:00
B68: t=61 | C68: ='Unserved Vehicles'!C68 -> 22:15:00 | D68: ='Unserved Vehicles'!D68 -> 22:30:00
B69: t=62 | C69: ='Unserved Vehicles'!C69 -> 22:30:00 | D69: ='Unserved Vehicles'!D69 -> 22:45:00
B70: t=63 | C70: ='Unserved Vehicles'!C70 -> 22:45:00 | D70: ='Unserved Vehicles'!D70 -> 23:00:00
B71: t=64 | C71: ='Unserved Vehicles'!C71 -> 23:00:00 | D71: ='Unserved Vehicles'!D71 -> 23:15:00
B72: t=65 | C72: ='Unserved Vehicles'!C72 -> 23:15:00 | D72: ='Unserved Vehicles'!D72 -> 23:30:00
B73: t=66 | C73: ='Unserved Vehicles'!C73 -> 23:30:00 | D73: ='Unserved Vehicles'!D73 -> 23:45:00
B74: t=67 | C74: ='Unserved Vehicles'!C74 -> 23:45:00 | D74: ='Unserved Vehicles'!D74 -> 1
B75: t=68 | C75: ='Unserved Vehicles'!C75 -> 1 | D75: ='Unserved Vehicles'!D75 -> 1.010416667
B76: t=69 | C76: ='Unserved Vehicles'!C76 -> 1.010416667 | D76: ='Unserved Vehicles'!D76 -> 1.020833333
B77: t=70 | C77: ='Unserved Vehicles'!C77 -> 1.020833333 | D77: ='Unserved Vehicles'!D77 -> 1.03125
B78: t=71 | C78: ='Unserved Vehicles'!C78 -> 1.03125 | D78: ='Unserved Vehicles'!D78 -> 1.041666667
B79: t=72 | C79: ='Unserved Vehicles'!C79 -> 1.041666667 | D79: ='Unserved Vehicles'!D79 -> 1.052083333
B80: t=73 | C80: ='Unserved Vehicles'!C80 -> 1.052083333 | D80: ='Unserved Vehicles'!D80 -> 1.0625
B81: t=74 | C81: ='Unserved Vehicles'!C81 -> 1.0625 | D81: ='Unserved Vehicles'!D81 -> 1.072916667
B82: t=75 | C82: ='Unserved Vehicles'!C82 -> 1.072916667 | D82: ='Unserved Vehicles'!D82 -> 1.083333333
B83: t=76 | C83: ='Unserved Vehicles'!C83 -> 1.083333333 | D83: ='Unserved Vehicles'!D83 -> 1.09375
B84: t=77 | C84: ='Unserved Vehicles'!C84 -> 1.09375 | D84: ='Unserved Vehicles'!D84 -> 1.104166667
B85: t=78 | C85: ='Unserved Vehicles'!C85 -> 1.104166667 | D85: ='Unserved Vehicles'!D85 -> 1.114583333
B86: t=79 | C86: ='Unserved Vehicles'!C86 -> 1.114583333 | D86: ='Unserved Vehicles'!D86 -> 1.125
B87: t=80 | C87: ='Unserved Vehicles'!C87 -> 1.125 | D87: ='Unserved Vehicles'!D87 -> 1.135416667
B88: t=81 | C88: ='Unserved Vehicles'!C88 -> 1.135416667 | D88: ='Unserved Vehicles'!D88 -> 1.145833333
B89: t=82 | C89: ='Unserved Vehicles'!C89 -> 1.145833333 | D89: ='Unserved Vehicles'!D89 -> 1.15625
B90: t=83 | C90: ='Unserved Vehicles'!C90 -> 1.15625 | D90: ='Unserved Vehicles'!D90 -> 1.166666667
B91: t=84 | C91: ='Unserved Vehicles'!C91 -> 1.166666667 | D91: ='Unserved Vehicles'!D91 -> 1.177083333
B92: t=85 | C92: ='Unserved Vehicles'!C92 -> 1.177083333 | D92: ='Unserved Vehicles'!D92 -> 1.1875
B93: t=86 | C93: ='Unserved Vehicles'!C93 -> 1.1875 | D93: ='Unserved Vehicles'!D93 -> 1.197916667
B94: t=87 | C94: ='Unserved Vehicles'!C94 -> 1.197916667 | D94: ='Unserved Vehicles'!D94 -> 1.208333333
B95: t=88 | C95: ='Unserved Vehicles'!C95 -> 1.208333333 | D95: ='Unserved Vehicles'!D95 -> 1.21875
B96: t=89 | C96: ='Unserved Vehicles'!C96 -> 1.21875 | D96: ='Unserved Vehicles'!D96 -> 1.229166667
B97: t=90 | C97: ='Unserved Vehicles'!C97 -> 1.229166667 | D97: ='Unserved Vehicles'!D97 -> 1.239583333
B98: t=91 | C98: ='Unserved Vehicles'!C98 -> 1.239583333 | D98: ='Unserved Vehicles'!D98 -> 1.25
B99: t=92 | C99: ='Unserved Vehicles'!C99 -> 1.25 | D99: ='Unserved Vehicles'!D99 -> 1.260416667
B100: t=93 | C100: ='Unserved Vehicles'!C100 -> 1.260416667 | D100: ='Unserved Vehicles'!D100 -> 1.270833333
B101: t=94 | C101: ='Unserved Vehicles'!C101 -> 1.270833333 | D101: ='Unserved Vehicles'!D101 -> 1.28125
B102: t=95 | C102: ='Unserved Vehicles'!C102 -> 1.28125 | D102: ='Unserved Vehicles'!D102 -> 1.291666667
B103: t=96 | C103: ='Unserved Vehicles'!C103 -> 1.291666667 | D103: ='Unserved Vehicles'!D103 -> 1.302083333
B106: Direction 6:
B107: Feature #: | E107: 1 | F107: 2 | G107: 3 | H107: 4 | I107: 5
B108: Feature Name:
B109: Feature Type: | E109: Int. | F109: Link | G109: Int. | H109: Link | I109: Int.
B110: t=1 | C110: =C8 -> 07:15:00 | D110: =D8 -> 07:30:00 | E110: F | G110: F | I110: F
B111: t=2 | C111: =C9 -> 07:30:00 | D111: 07:45:00 | E111: A | G111: A | I111: A
B112: t=3 | C112: 07:45:00 | D112: 08:00:00 | E112: A | G112: A | I112: A
B113: t=4 | C113: 08:00:00 | D113: 08:15:00 | E113: A | G113: A | I113: A
B114: t=5 | C114: 08:15:00 | D114: 08:30:00 | E114: A | G114: F | I114: A
B115: t=6 | C115: 08:30:00 | D115: 08:45:00 | E115: A | G115: F | I115: A
B116: t=7 | C116: 08:45:00 | D116: 09:00:00 | E116: A | G116: F | I116: A
B117: t=8 | C117: 09:00:00 | D117: 09:15:00 | E117: A | G117: B | I117: A
B118: t=9 | C118: 09:15:00 | D118: 09:30:00 | H118: E
B119: t=10 | C119: 09:30:00 | D119: 09:45:00 | H119: E
B120: t=11 | C120: 09:45:00 | D120: 10:00:00 | H120: E
B121: t=12 | C121: 10:00:00 | D121: 10:15:00 | H121: E
B122: t=13 | C122: 10:15:00 | D122: 10:30:00 | H122: E
B123: t=14 | C123: 10:30:00 | D123: 10:45:00 | H123: E
B124: t=15 | C124: 10:45:00 | D124: 11:00:00 | H124: E
B125: t=16 | C125: 11:00:00 | D125: 11:15:00 | H125: E
B126: t=17 | C126: 11:15:00 | D126: 11:30:00 | H126: E
B127: t=18 | C127: =C25 -> 11:30:00 | D127: 11:45:00 | H127: E
B128: t=19 | C128: 11:45:00 | D128: 12:00:00 | H128: E
B129: t=20 | C129: 12:00:00 | D129: 12:15:00 | H129: E
B130: t=21 | C130: 12:15:00 | D130: 12:30:00
B131: t=22 | C131: 12:30:00 | D131: 12:45:00
B132: t=23 | C132: 12:45:00 | D132: 13:00:00
B133: t=24 | C133: 13:00:00 | D133: 13:15:00
B134: t=25 | C134: 13:15:00 | D134: 13:30:00
B135: t=26 | C135: 13:30:00 | D135: 13:45:00
B136: t=27 | C136: 13:45:00 | D136: 14:00:00
B137: t=28 | C137: 14:00:00 | D137: 14:15:00
B138: t=29 | C138: 14:15:00 | D138: 14:30:00
B139: t=30 | C139: 14:30:00 | D139: 14:45:00
B140: t=31 | C140: 14:45:00 | D140: 15:00:00
B141: t=32 | C141: 15:00:00 | D141: 15:15:00
B142: t=33 | C142: 15:15:00 | D142: 15:30:00
B143: t=34 | C143: =C41 -> 15:30:00 | D143: 15:45:00
B144: t=35 | C144: 15:45:00 | D144: 16:00:00
B145: t=36 | C145: 16:00:00 | D145: 16:15:00
B146: t=37 | C146: 16:15:00 | D146: 16:30:00
B147: t=38 | C147: 16:30:00 | D147: 16:45:00
B148: t=39 | C148: 16:45:00 | D148: 17:00:00
B149: t=40 | C149: 17:00:00 | D149: 17:15:00
B150: t=41 | C150: 17:15:00 | D150: 17:30:00
B151: t=42 | C151: 17:30:00 | D151: 17:45:00
B152: t=43 | C152: 17:45:00 | D152: 18:00:00
B153: t=44 | C153: 18:00:00 | D153: 18:15:00
B154: t=45 | C154: 18:15:00 | D154: 18:30:00
B155: t=46 | C155: 18:30:00 | D155: 18:45:00
B156: t=47 | C156: 18:45:00 | D156: 19:00:00
B157: t=48 | C157: 19:00:00 | D157: 19:15:00
B158: t=49 | C158: 19:15:00 | D158: 19:30:00
B159: t=50 | C159: =C57 -> 19:30:00 | D159: 19:45:00
B160: t=51 | C160: 19:45:00 | D160: 20:00:00
B161: t=52 | C161: 20:00:00 | D161: 20:15:00
B162: t=53 | C162: 20:15:00 | D162: 20:30:00
B163: t=54 | C163: 20:30:00 | D163: 20:45:00
B164: t=55 | C164: 20:45:00 | D164: 21:00:00
B165: t=56 | C165: 21:00:00 | D165: 21:15:00
B166: t=57 | C166: 21:15:00 | D166: 21:30:00
B167: t=58 | C167: 21:30:00 | D167: 21:45:00
B168: t=59 | C168: 21:45:00 | D168: 22:00:00
B169: t=60 | C169: 22:00:00 | D169: 22:15:00
B170: t=61 | C170: 22:15:00 | D170: 22:30:00
B171: t=62 | C171: 22:30:00 | D171: 22:45:00
B172: t=63 | C172: 22:45:00 | D172: 23:00:00
B173: t=64 | C173: 23:00:00 | D173: 23:15:00
B174: t=65 | C174: 23:15:00 | D174: 23:30:00
B175: t=66 | C175: =C73 -> 23:30:00 | D175: 23:45:00
B176: t=67 | C176: 23:45:00 | D176: 1
B177: t=68 | C177: 1 | D177: 1.010416667
B178: t=69 | C178: 1.010416667 | D178: 1.020833333
B179: t=70 | C179: 1.020833333 | D179: 1.03125
B180: t=71 | C180: 1.03125 | D180: 1.041666667
B181: t=72 | C181: 1.041666667 | D181: 1.052083333
B182: t=73 | C182: 1.052083333 | D182: 1.0625
B183: t=74 | C183: 1.0625 | D183: 1.072916667
B184: t=75 | C184: 1.072916667 | D184: 1.083333333
B185: t=76 | C185: 1.083333333 | D185: 1.09375
B186: t=77 | C186: 1.09375 | D186: 1.104166667
B187: t=78 | C187: 1.104166667 | D187: 1.114583333
B188: t=79 | C188: 1.114583333 | D188: 1.125
B189: t=80 | C189: 1.125 | D189: 1.135416667
B190: t=81 | C190: 1.135416667 | D190: 1.145833333
B191: t=82 | C191: =C89 -> 1.145833333 | D191: 1.15625
B192: t=83 | C192: 1.15625 | D192: 1.166666667
B193: t=84 | C193: 1.166666667 | D193: 1.177083333
B194: t=85 | C194: 1.177083333 | D194: 1.1875
B195: t=86 | C195: 1.1875 | D195: 1.197916667
B196: t=87 | C196: 1.197916667 | D196: 1.208333333
B197: t=88 | C197: 1.208333333 | D197: 1.21875
B198: t=89 | C198: 1.21875 | D198: 1.229166667
B199: t=90 | C199: 1.229166667 | D199: 1.239583333
B200: t=91 | C200: 1.239583333 | D200: 1.25
B201: t=92 | C201: 1.25 | D201: 1.260416667
B202: t=93 | C202: 1.260416667 | D202: 1.270833333
B203: t=94 | C203: 1.270833333 | D203: 1.28125
B204: t=95 | C204: 1.28125 | D204: 1.291666667
... 1 more rows

Sheet LOS HCM Segment (hidden)
B2: Level of Service (LOS) on the Facility Segments:
B4: Direction 2:
B5: Feature #: | E5: 1 | F5: 2 | G5: 3 | H5: 4 | I5: 5
B6: Feature Name:
B7: Feature Type: | E7: Int. | F7: Link | G7: Int. | H7: Link | I7: Int.
B8: t=1 | C8: ='Unserved Vehicles'!C8 -> 07:15:00 | D8: ='Unserved Vehicles'!D8 -> 07:30:00 | F8: E | H8: E
B9: t=2 | C9: ='Unserved Vehicles'!C9 -> 07:30:00 | D9: ='Unserved Vehicles'!D9 -> 07:45:00 | F9: E | H9: E
B10: t=3 | C10: ='Unserved Vehicles'!C10 -> 07:45:00 | D10: ='Unserved Vehicles'!D10 -> 08:00:00 | F10: E | H10: E
B11: t=4 | C11: ='Unserved Vehicles'!C11 -> 08:00:00 | D11: ='Unserved Vehicles'!D11 -> 08:15:00 | F11: E | H11: E
B12: t=5 | C12: ='Unserved Vehicles'!C12 -> 08:15:00 | D12: ='Unserved Vehicles'!D12 -> 08:30:00 | F12: E | H12: F
B13: t=6 | C13: ='Unserved Vehicles'!C13 -> 08:30:00 | D13: ='Unserved Vehicles'!D13 -> 08:45:00 | F13: F | H13: E
B14: t=7 | C14: ='Unserved Vehicles'!C14 -> 08:45:00 | D14: ='Unserved Vehicles'!D14 -> 09:00:00 | F14: E | H14: E
B15: t=8 | C15: ='Unserved Vehicles'!C15 -> 09:00:00 | D15: ='Unserved Vehicles'!D15 -> 09:15:00 | F15: E | H15: F
B16: t=9 | C16: ='Unserved Vehicles'!C16 -> 09:15:00 | D16: ='Unserved Vehicles'!D16 -> 09:30:00 | G16: E | H16: E
B17: t=10 | C17: ='Unserved Vehicles'!C17 -> 09:30:00 | D17: ='Unserved Vehicles'!D17 -> 09:45:00 | G17: E | H17: E
B18: t=11 | C18: ='Unserved Vehicles'!C18 -> 09:45:00 | D18: ='Unserved Vehicles'!D18 -> 10:00:00 | G18: E | H18: E
B19: t=12 | C19: ='Unserved Vehicles'!C19 -> 10:00:00 | D19: ='Unserved Vehicles'!D19 -> 10:15:00 | G19: E | H19: E
B20: t=13 | C20: ='Unserved Vehicles'!C20 -> 10:15:00 | D20: ='Unserved Vehicles'!D20 -> 10:30:00 | G20: E | H20: E
B21: t=14 | C21: ='Unserved Vehicles'!C21 -> 10:30:00 | D21: ='Unserved Vehicles'!D21 -> 10:45:00 | G21: E | H21: E
B22: t=15 | C22: ='Unserved Vehicles'!C22 -> 10:45:00 | D22: ='Unserved Vehicles'!D22 -> 11:00:00 | G22: E | H22: E
B23: t=16 | C23: ='Unserved Vehicles'!C23 -> 11:00:00 | D23: ='Unserved Vehicles'!D23 -> 11:15:00 | G23: E | H23: E
B24: t=17 | C24: ='Unserved Vehicles'!C24 -> 11:15:00 | D24: ='Unserved Vehicles'!D24 -> 11:30:00 | G24: E | H24: E
B25: t=18 | C25: ='Unserved Vehicles'!C25 -> 11:30:00 | D25: ='Unserved Vehicles'!D25 -> 11:45:00 | G25: E | H25: E
B26: t=19 | C26: ='Unserved Vehicles'!C26 -> 11:45:00 | D26: ='Unserved Vehicles'!D26 -> 12:00:00 | G26: E | H26: E
B27: t=20 | C27: ='Unserved Vehicles'!C27 -> 12:00:00 | D27: ='Unserved Vehicles'!D27 -> 12:15:00 | G27: E | H27: E
B28: t=21 | C28: ='Unserved Vehicles'!C28 -> 12:15:00 | D28: ='Unserved Vehicles'!D28 -> 12:30:00
B29: t=22 | C29: ='Unserved Vehicles'!C29 -> 12:30:00 | D29: ='Unserved Vehicles'!D29 -> 12:45:00
B30: t=23 | C30: ='Unserved Vehicles'!C30 -> 12:45:00 | D30: ='Unserved Vehicles'!D30 -> 13:00:00
B31: t=24 | C31: ='Unserved Vehicles'!C31 -> 13:00:00 | D31: ='Unserved Vehicles'!D31 -> 13:15:00
B32: t=25 | C32: ='Unserved Vehicles'!C32 -> 13:15:00 | D32: ='Unserved Vehicles'!D32 -> 13:30:00
B33: t=26 | C33: ='Unserved Vehicles'!C33 -> 13:30:00 | D33: ='Unserved Vehicles'!D33 -> 13:45:00
B34: t=27 | C34: ='Unserved Vehicles'!C34 -> 13:45:00 | D34: ='Unserved Vehicles'!D34 -> 14:00:00
B35: t=28 | C35: ='Unserved Vehicles'!C35 -> 14:00:00 | D35: ='Unserved Vehicles'!D35 -> 14:15:00
B36: t=29 | C36: ='Unserved Vehicles'!C36 -> 14:15:00 | D36: ='Unserved Vehicles'!D36 -> 14:30:00
B37: t=30 | C37: ='Unserved Vehicles'!C37 -> 14:30:00 | D37: ='Unserved Vehicles'!D37 -> 14:45:00
B38: t=31 | C38: ='Unserved Vehicles'!C38 -> 14:45:00 | D38: ='Unserved Vehicles'!D38 -> 15:00:00
B39: t=32 | C39: ='Unserved Vehicles'!C39 -> 15:00:00 | D39: ='Unserved Vehicles'!D39 -> 15:15:00
B40: t=33 | C40: ='Unserved Vehicles'!C40 -> 15:15:00 | D40: ='Unserved Vehicles'!D40 -> 15:30:00
B41: t=34 | C41: ='Unserved Vehicles'!C41 -> 15:30:00 | D41: ='Unserved Vehicles'!D41 -> 15:45:00
B42: t=35 | C42: ='Unserved Vehicles'!C42 -> 15:45:00 | D42: ='Unserved Vehicles'!D42 -> 16:00:00
B43: t=36 | C43: ='Unserved Vehicles'!C43 -> 16:00:00 | D43: ='Unserved Vehicles'!D43 -> 16:15:00
B44: t=37 | C44: ='Unserved Vehicles'!C44 -> 16:15:00 | D44: ='Unserved Vehicles'!D44 -> 16:30:00
B45: t=38 | C45: ='Unserved Vehicles'!C45 -> 16:30:00 | D45: ='Unserved Vehicles'!D45 -> 16:45:00
B46: t=39 | C46: ='Unserved Vehicles'!C46 -> 16:45:00 | D46: ='Unserved Vehicles'!D46 -> 17:00:00
B47: t=40 | C47: ='Unserved Vehicles'!C47 -> 17:00:00 | D47: ='Unserved Vehicles'!D47 -> 17:15:00
B48: t=41 | C48: ='Unserved Vehicles'!C48 -> 17:15:00 | D48: ='Unserved Vehicles'!D48 -> 17:30:00
B49: t=42 | C49: ='Unserved Vehicles'!C49 -> 17:30:00 | D49: ='Unserved Vehicles'!D49 -> 17:45:00
B50: t=43 | C50: ='Unserved Vehicles'!C50 -> 17:45:00 | D50: ='Unserved Vehicles'!D50 -> 18:00:00
B51: t=44 | C51: ='Unserved Vehicles'!C51 -> 18:00:00 | D51: ='Unserved Vehicles'!D51 -> 18:15:00
B52: t=45 | C52: ='Unserved Vehicles'!C52 -> 18:15:00 | D52: ='Unserved Vehicles'!D52 -> 18:30:00
B53: t=46 | C53: ='Unserved Vehicles'!C53 -> 18:30:00 | D53: ='Unserved Vehicles'!D53 -> 18:45:00
B54: t=47 | C54: ='Unserved Vehicles'!C54 -> 18:45:00 | D54: ='Unserved Vehicles'!D54 -> 19:00:00
B55: t=48 | C55: ='Unserved Vehicles'!C55 -> 19:00:00 | D55: ='Unserved Vehicles'!D55 -> 19:15:00
B56: t=49 | C56: ='Unserved Vehicles'!C56 -> 19:15:00 | D56: ='Unserved Vehicles'!D56 -> 19:30:00
B57: t=50 | C57: ='Unserved Vehicles'!C57 -> 19:30:00 | D57: ='Unserved Vehicles'!D57 -> 19:45:00
B58: t=51 | C58: ='Unserved Vehicles'!C58 -> 19:45:00 | D58: ='Unserved Vehicles'!D58 -> 20:00:00
B59: t=52 | C59: ='Unserved Vehicles'!C59 -> 20:00:00 | D59: ='Unserved Vehicles'!D59 -> 20:15:00
B60: t=53 | C60: ='Unserved Vehicles'!C60 -> 20:15:00 | D60: ='Unserved Vehicles'!D60 -> 20:30:00
B61: t=54 | C61: ='Unserved Vehicles'!C61 -> 20:30:00 | D61: ='Unserved Vehicles'!D61 -> 20:45:00
B62: t=55 | C62: ='Unserved Vehicles'!C62 -> 20:45:00 | D62: ='Unserved Vehicles'!D62 -> 21:00:00
B63: t=56 | C63: ='Unserved Vehicles'!C63 -> 21:00:00 | D63: ='Unserved Vehicles'!D63 -> 21:15:00
B64: t=57 | C64: ='Unserved Vehicles'!C64 -> 21:15:00 | D64: ='Unserved Vehicles'!D64 -> 21:30:00
B65: t=58 | C65: ='Unserved Vehicles'!C65 -> 21:30:00 | D65: ='Unserved Vehicles'!D65 -> 21:45:00
B66: t=59 | C66: ='Unserved Vehicles'!C66 -> 21:45:00 | D66: ='Unserved Vehicles'!D66 -> 22:00:00
B67: t=60 | C67: ='Unserved Vehicles'!C67 -> 22:00:00 | D67: ='Unserved Vehicles'!D67 -> 22:15:00
B68: t=61 | C68: ='Unserved Vehicles'!C68 -> 22:15:00 | D68: ='Unserved Vehicles'!D68 -> 22:30:00
B69: t=62 | C69: ='Unserved Vehicles'!C69 -> 22:30:00 | D69: ='Unserved Vehicles'!D69 -> 22:45:00
B70: t=63 | C70: ='Unserved Vehicles'!C70 -> 22:45:00 | D70: ='Unserved Vehicles'!D70 -> 23:00:00
B71: t=64 | C71: ='Unserved Vehicles'!C71 -> 23:00:00 | D71: ='Unserved Vehicles'!D71 -> 23:15:00
B72: t=65 | C72: ='Unserved Vehicles'!C72 -> 23:15:00 | D72: ='Unserved Vehicles'!D72 -> 23:30:00
B73: t=66 | C73: ='Unserved Vehicles'!C73 -> 23:30:00 | D73: ='Unserved Vehicles'!D73 -> 23:45:00
B74: t=67 | C74: ='Unserved Vehicles'!C74 -> 23:45:00 | D74: ='Unserved Vehicles'!D74 -> 1
B75: t=68 | C75: ='Unserved Vehicles'!C75 -> 1 | D75: ='Unserved Vehicles'!D75 -> 1.010416667
B76: t=69 | C76: ='Unserved Vehicles'!C76 -> 1.010416667 | D76: ='Unserved Vehicles'!D76 -> 1.020833333
B77: t=70 | C77: ='Unserved Vehicles'!C77 -> 1.020833333 | D77: ='Unserved Vehicles'!D77 -> 1.03125
B78: t=71 | C78: ='Unserved Vehicles'!C78 -> 1.03125 | D78: ='Unserved Vehicles'!D78 -> 1.041666667
B79: t=72 | C79: ='Unserved Vehicles'!C79 -> 1.041666667 | D79: ='Unserved Vehicles'!D79 -> 1.052083333
B80: t=73 | C80: ='Unserved Vehicles'!C80 -> 1.052083333 | D80: ='Unserved Vehicles'!D80 -> 1.0625
B81: t=74 | C81: ='Unserved Vehicles'!C81 -> 1.0625 | D81: ='Unserved Vehicles'!D81 -> 1.072916667
B82: t=75 | C82: ='Unserved Vehicles'!C82 -> 1.072916667 | D82: ='Unserved Vehicles'!D82 -> 1.083333333
B83: t=76 | C83: ='Unserved Vehicles'!C83 -> 1.083333333 | D83: ='Unserved Vehicles'!D83 -> 1.09375
B84: t=77 | C84: ='Unserved Vehicles'!C84 -> 1.09375 | D84: ='Unserved Vehicles'!D84 -> 1.104166667
B85: t=78 | C85: ='Unserved Vehicles'!C85 -> 1.104166667 | D85: ='Unserved Vehicles'!D85 -> 1.114583333
B86: t=79 | C86: ='Unserved Vehicles'!C86 -> 1.114583333 | D86: ='Unserved Vehicles'!D86 -> 1.125
B87: t=80 | C87: ='Unserved Vehicles'!C87 -> 1.125 | D87: ='Unserved Vehicles'!D87 -> 1.135416667
B88: t=81 | C88: ='Unserved Vehicles'!C88 -> 1.135416667 | D88: ='Unserved Vehicles'!D88 -> 1.145833333
B89: t=82 | C89: ='Unserved Vehicles'!C89 -> 1.145833333 | D89: ='Unserved Vehicles'!D89 -> 1.15625
B90: t=83 | C90: ='Unserved Vehicles'!C90 -> 1.15625 | D90: ='Unserved Vehicles'!D90 -> 1.166666667
B91: t=84 | C91: ='Unserved Vehicles'!C91 -> 1.166666667 | D91: ='Unserved Vehicles'!D91 -> 1.177083333
B92: t=85 | C92: ='Unserved Vehicles'!C92 -> 1.177083333 | D92: ='Unserved Vehicles'!D92 -> 1.1875
B93: t=86 | C93: ='Unserved Vehicles'!C93 -> 1.1875 | D93: ='Unserved Vehicles'!D93 -> 1.197916667
B94: t=87 | C94: ='Unserved Vehicles'!C94 -> 1.197916667 | D94: ='Unserved Vehicles'!D94 -> 1.208333333
B95: t=88 | C95: ='Unserved Vehicles'!C95 -> 1.208333333 | D95: ='Unserved Vehicles'!D95 -> 1.21875
B96: t=89 | C96: ='Unserved Vehicles'!C96 -> 1.21875 | D96: ='Unserved Vehicles'!D96 -> 1.229166667
B97: t=90 | C97: ='Unserved Vehicles'!C97 -> 1.229166667 | D97: ='Unserved Vehicles'!D97 -> 1.239583333
B98: t=91 | C98: ='Unserved Vehicles'!C98 -> 1.239583333 | D98: ='Unserved Vehicles'!D98 -> 1.25
B99: t=92 | C99: ='Unserved Vehicles'!C99 -> 1.25 | D99: ='Unserved Vehicles'!D99 -> 1.260416667
B100: t=93 | C100: ='Unserved Vehicles'!C100 -> 1.260416667 | D100: ='Unserved Vehicles'!D100 -> 1.270833333
B101: t=94 | C101: ='Unserved Vehicles'!C101 -> 1.270833333 | D101: ='Unserved Vehicles'!D101 -> 1.28125
B102: t=95 | C102: ='Unserved Vehicles'!C102 -> 1.28125 | D102: ='Unserved Vehicles'!D102 -> 1.291666667
B103: t=96 | C103: ='Unserved Vehicles'!C103 -> 1.291666667 | D103: ='Unserved Vehicles'!D103 -> 1.302083333
B106: Direction 6:
B107: Feature #: | E107: 1 | F107: 2 | G107: 3 | H107: 4 | I107: 5
B108: Feature Name:
B109: Feature Type: | E109: Int. | F109: Link | G109: Int. | H109: Link | I109: Int.
B110: t=1 | C110: =C8 -> 07:15:00 | D110: =D8 -> 07:30:00 | F110: F | H110: F
B111: t=2 | C111: =C9 -> 07:30:00 | D111: 07:45:00 | F111: E | H111: E
B112: t=3 | C112: 07:45:00 | D112: 08:00:00 | F112: E | H112: E
B113: t=4 | C113: 08:00:00 | D113: 08:15:00 | F113: E | H113: E
B114: t=5 | C114: 08:15:00 | D114: 08:30:00 | F114: E | H114: F
B115: t=6 | C115: 08:30:00 | D115: 08:45:00 | F115: E | H115: F
B116: t=7 | C116: 08:45:00 | D116: 09:00:00 | F116: E | H116: F
B117: t=8 | C117: 09:00:00 | D117: 09:15:00 | F117: E | H117: E
B118: t=9 | C118: 09:15:00 | D118: 09:30:00 | G118: E | H118: E
B119: t=10 | C119: 09:30:00 | D119: 09:45:00 | G119: E | H119: E
B120: t=11 | C120: 09:45:00 | D120: 10:00:00 | G120: E | H120: E
B121: t=12 | C121: 10:00:00 | D121: 10:15:00 | G121: E | H121: E
B122: t=13 | C122: 10:15:00 | D122: 10:30:00 | G122: E | H122: E
B123: t=14 | C123: 10:30:00 | D123: 10:45:00 | G123: E | H123: E
B124: t=15 | C124: 10:45:00 | D124: 11:00:00 | G124: E | H124: E
B125: t=16 | C125: 11:00:00 | D125: 11:15:00 | G125: E | H125: E
B126: t=17 | C126: 11:15:00 | D126: 11:30:00 | G126: E | H126: E
B127: t=18 | C127: 11:30:00 | D127: 11:45:00 | G127: E | H127: E
B128: t=19 | C128: 11:45:00 | D128: 12:00:00 | G128: E | H128: E
B129: t=20 | C129: 12:00:00 | D129: 12:15:00 | G129: E | H129: E
B130: t=21 | C130: 12:15:00 | D130: 12:30:00
B131: t=22 | C131: 12:30:00 | D131: 12:45:00
B132: t=23 | C132: 12:45:00 | D132: 13:00:00
B133: t=24 | C133: 13:00:00 | D133: 13:15:00
B134: t=25 | C134: 13:15:00 | D134: 13:30:00
B135: t=26 | C135: 13:30:00 | D135: 13:45:00
B136: t=27 | C136: 13:45:00 | D136: 14:00:00
B137: t=28 | C137: 14:00:00 | D137: 14:15:00
B138: t=29 | C138: 14:15:00 | D138: 14:30:00
B139: t=30 | C139: 14:30:00 | D139: 14:45:00
B140: t=31 | C140: 14:45:00 | D140: 15:00:00
B141: t=32 | C141: 15:00:00 | D141: 15:15:00
B142: t=33 | C142: 15:15:00 | D142: 15:30:00
B143: t=34 | C143: 15:30:00 | D143: 15:45:00
B144: t=35 | C144: 15:45:00 | D144: 16:00:00
B145: t=36 | C145: 16:00:00 | D145: 16:15:00
B146: t=37 | C146: 16:15:00 | D146: 16:30:00
B147: t=38 | C147: 16:30:00 | D147: 16:45:00
B148: t=39 | C148: 16:45:00 | D148: 17:00:00
B149: t=40 | C149: 17:00:00 | D149: 17:15:00
B150: t=41 | C150: 17:15:00 | D150: 17:30:00
B151: t=42 | C151: 17:30:00 | D151: 17:45:00
B152: t=43 | C152: 17:45:00 | D152: 18:00:00
B153: t=44 | C153: 18:00:00 | D153: 18:15:00
B154: t=45 | C154: 18:15:00 | D154: 18:30:00
B155: t=46 | C155: 18:30:00 | D155: 18:45:00
B156: t=47 | C156: 18:45:00 | D156: 19:00:00
B157: t=48 | C157: 19:00:00 | D157: 19:15:00
B158: t=49 | C158: 19:15:00 | D158: 19:30:00
B159: t=50 | C159: 19:30:00 | D159: 19:45:00
B160: t=51 | C160: 19:45:00 | D160: 20:00:00
B161: t=52 | C161: 20:00:00 | D161: 20:15:00
B162: t=53 | C162: 20:15:00 | D162: 20:30:00
B163: t=54 | C163: 20:30:00 | D163: 20:45:00
B164: t=55 | C164: 20:45:00 | D164: 21:00:00
B165: t=56 | C165: 21:00:00 | D165: 21:15:00
B166: t=57 | C166: 21:15:00 | D166: 21:30:00
B167: t=58 | C167: 21:30:00 | D167: 21:45:00
B168: t=59 | C168: 21:45:00 | D168: 22:00:00
B169: t=60 | C169: 22:00:00 | D169: 22:15:00
B170: t=61 | C170: 22:15:00 | D170: 22:30:00
B171: t=62 | C171: 22:30:00 | D171: 22:45:00
B172: t=63 | C172: 22:45:00 | D172: 23:00:00
B173: t=64 | C173: 23:00:00 | D173: 23:15:00
B174: t=65 | C174: 23:15:00 | D174: 23:30:00
B175: t=66 | C175: =C73 -> 23:30:00 | D175: 23:45:00
B176: t=67 | C176: 23:45:00 | D176: 1
B177: t=68 | C177: 1 | D177: 1.010416667
B178: t=69 | C178: 1.010416667 | D178: 1.020833333
B179: t=70 | C179: 1.020833333 | D179: 1.03125
B180: t=71 | C180: 1.03125 | D180: 1.041666667
B181: t=72 | C181: 1.041666667 | D181: 1.052083333
B182: t=73 | C182: 1.052083333 | D182: 1.0625
B183: t=74 | C183: 1.0625 | D183: 1.072916667
B184: t=75 | C184: 1.072916667 | D184: 1.083333333
B185: t=76 | C185: 1.083333333 | D185: 1.09375
B186: t=77 | C186: 1.09375 | D186: 1.104166667
B187: t=78 | C187: 1.104166667 | D187: 1.114583333
B188: t=79 | C188: 1.114583333 | D188: 1.125
B189: t=80 | C189: 1.125 | D189: 1.135416667
B190: t=81 | C190: 1.135416667 | D190: 1.145833333
B191: t=82 | C191: =C89 -> 1.145833333 | D191: 1.15625
B192: t=83 | C192: 1.15625 | D192: 1.166666667
B193: t=84 | C193: 1.166666667 | D193: 1.177083333
B194: t=85 | C194: 1.177083333 | D194: 1.1875
B195: t=86 | C195: 1.1875 | D195: 1.197916667
B196: t=87 | C196: 1.197916667 | D196: 1.208333333
B197: t=88 | C197: 1.208333333 | D197: 1.21875
B198: t=89 | C198: 1.21875 | D198: 1.229166667
B199: t=90 | C199: 1.229166667 | D199: 1.239583333
B200: t=91 | C200: 1.239583333 | D200: 1.25
B201: t=92 | C201: 1.25 | D201: 1.260416667
B202: t=93 | C202: 1.260416667 | D202: 1.270833333
B203: t=94 | C203: 1.270833333 | D203: 1.28125
B204: t=95 | C204: 1.28125 | D204: 1.291666667
... 1 more rows
